Workbook

Sheet Introduction
B6: Tool Description | C6: The purpose of the tool is to provide a quick economic assessment for the practitioners about a wastewater circular economy intervention.A whole set of technologies today exist to treat wastewater and recover water, energy or nutrients. While it provides diversity of choice to select the set of technologies suitable to a local context, it also increases the complexity for practitioners to make decisions. In order to facilitate the decision making for the technology, this practitioner guide is accompanied by an MS Excel based economic assessment tool. In the tool, practitioners have the option to select suitable treatment technology & resource recovery options. Practitioners can provide their desired payback on investment as an input, and the tool can determine the potential tariff at which the recycled water can be sold to the industry. The tool also provides the net present value of the intervention. The tool is designed to have sufficient flexibility for the users to input values as per their local context, however, it uses default values in case the user wants to retain benchmark numbers. It does not omit the need of a detailed budgeting exercise for the intervention, which would determine the final cost of the project. However, it provides an initial ball-park estimate about the potential costs and revenues.
B7: Contributors | C7: Rudresh Sugam; Abhishek Jain; Kangkanika Neog
B8: Contact Details | C8: kangkanika.neog@ceew.in; abhishek.jain@ceew.in
C10: Copyright © 2016 2030 Water Resources Group & Council on Energy, Environment and Water (CEEW) Open access. Some rights reserved. This database is licensed under the Creative Commons Attribution - Noncommercial 4.0 International (CC BY-NC 4.0) license. To view the full license, visit: www.creativecommons.org/licenses/by-nc/4.0/legalcode
B12: Suggested Citation | C12: Sugam, Rudresh, Abhishek Jain, Kangkanika Neog. October 2016. Circular Economy Pathways for Wastewater Management in India - A Practitioners’ Guide. New Delhi: 2030 Water Resources Group/Council on Energy, Environment and Water.

Sheet Tool Guide
A1: TOOL GUIDE
A2: MACROS need to be enabled in order to use this tool effectively.
A4: All the inputs required for the tool are need to be filled in this sheet. User should add/edit values in this sheet as per their discretion. These input value are reflected in specific sheet in pink color.
A6: 1. WW DEMAND AND COLLECTION: This sheet calculates the domestic,agricultural and industrial water demand
A7: User inputs reflected in pink cells
A8: · Decadal growth in agriculture and industrial water demand; Current agriculture and industrial water demand.
A9: · Population of previous decades
A10: · Water supply in lpcd and % collection efficiency
A11: · WW treatment capacity (if capacity is manually planned)
A12: Outputs populate in the blue cells as
A13: · Agriculture and industrial water demands (for coming decades)
A14: · Estimated population and corresponding water demand and WW generation for the next three decades
A16: 2. Technologies - Input Cost: This sheet serves as a technology cost input sheet for various WW treatment technologies and collection network.
A17: Assumptions are given in purple cells.
A18: User inputs reflected in pink cells
A19: · INR to USD rate
A20: · Cost of land ('000 INR/m2)
A21: · CAPEX and OPEX (power, repairs, chemical, manpower) investment in various technologies in INR (already entered from CPCB report, but can be changed)
A22: · Land requirement in m2/MLD
A23: Outputs populate in the blue cells as
A24: · Total cost of land per technology
A25: · Total CAPEX (including cost of land)
A26: · OPEX for first year of operation
A28: 3. Other resources from wastewater: This sheet serves as cost input sheer for various technologies for energy (CHP unit for on-site electricity generation) and nutrient recovery (Phosphate and nitrogen recovery).
A29: Assumptions are given in purple cells.
A30: User inputs reflected in pink cells
A31: · CAPEX and OPEX (power, repairs, chemical, manpower) investment in various technologies in INR
A32: · Land requirement in m2/MLD
A33: Outputs populate in the blue cells as
A34: · Total cost of land per technology
A35: · Total CAPEX + cost of land
A36: · Total OPEX
A38: 4. WWTP - Capacity & Technology Selection: In this sheet, the user makes the decision for the capacity sizing of the treatment plant, as well as makes the choice of technologies to be used for treatment and recovery. User also need to input here the details of network infrastructure for pumping recyled water to point of sale
A39: User inputs reflected in pink cells
A40: · WW treatment capacity as per? (select from drop down box)
A41: · Appropriate technology for WW treatment
A42: · If on-site electricity is to be generated, choose the option from dropdown list, else leave the cell empty
A43: · If phosphorus is to be recovered, choose the option from dropdown list, else leave the cell empty
A44: · Length of supply infrastructure
A45: Outputs populate in the blue cells as
A46: · Total cost CAPEX (incl. cost of land) and OPEX for selected technologies
A48: 5. Revenue Earned: This sheet determines the total economic potential of recyled water, recovered energy and fertiliser.
A49: User inputs reflected in pink cells
A50: · Reclaimed water tariff for agriculture
A51: Outputs populate in the blue cells as
A52: · Total water, energy and fertiliser selling potential
A53: · Total revenue earned
A55: 6. Economic Analysis-This is the main economic analysis sheet, where user provides all the major assumption with regards to economic analysis and the desired payback period of the intervention. Basis the user inputs, the tool (on pressing the 'Determine tariff' button) determines the tariff at which the recyled water could be sold to the industry.
A56: User inputs reflected in pink cells
A57: · Discount rate, rate of increase in repairs cost, chemical cost, manpower cost, agricultural water tariff, industrial water tariff, fertiliser tariff
A58: · Variation in electricity tariff, cost of land, distance of industry from point of discharge, industrial water sale tariff
A59: · Nominal rate of increase in electricity tariff
A60: · Desired payback period
A61: · Proportion of treated water for sale.
A62: Outputs populate in the blue cells as
A63: · Tariff for water resale to industries
A64: · Net Present Value
A66: 7. Summary sheet - provides a broad overview of the economic analysis with key figures
A68: 8. ASSUMPTIONS FOR SENSITIVITY ANALYSIS - The sheet presents a reference case for sensitivity analysis. Depending upon the local context, the user may change the value of sensitivity scenarios (under the what -if manager in the Economic Analysis Sheet)
A70: 9. SENSITVITY ANALYSIS OF TECHNOLOGIES AGAINST NPV(for reference case)
A72: 10. SENSITVITY ANALYSIS OF TECHNOLOGIES AGAINST PAYBACK PERIOD (for reference case)

Sheet Inputs
A1: 1. General information
A2: a. INR to USD | B2: 67
A3: b. Cost of Land (INR/m2) | B3: 4000
A4: c. Power Tariff - INR/kWh | B4: 6
A5: d. Fertiliser - MAP(Struvite) Price (INR per metric ton) ref. Feb 2012 | B5: 20000
A6: e. Tariff for reclaimed water for agriculture | B6: 0
A8: 2. Water Demand Estimation
A9: Population (for domestic water demand estimtion)
A10: Year | B10: POPULATION (million)
A11: 1951 | B11: 1.744
A12: 1961 | B12: 2.659
A13: 1971 | B13: 4.066
A14: 1981 | B14: 6.22
A15: 1991 | B15: 9.421
A16: 2001 | B16: 13.851
A17: 2011 | B17: 16.753
A18: Water Demand
A19: Agricultural | B19: 50
A20: Industrial | B20: 20
A21: Decadal growth in water demand
A22: Agricultural | B22: 0.1
A23: Industrial | B23: 0.25
A24: Water supply to domestic sector (in lpcd) | B24: 120
A25: WW collection efficiency (in percent) | B25: 0.7
A27: Size of treatment plant in MLD (input only if you intend to manually plan the capacity and not through population projections) | B27: 50
A29: 3. Technologies - Input cost
A30: Collection network: Piping rates | B30: '000 INR/m
A31: 400 mm Diameter Pipe | B31: 3256
A32: 600 mm Diameter Pipe | B32: 6512
A33: 900 mm Diameter Pipe | B33: 19536
A35: Wastewater Treatment Technology | B35: CAPEX/MLD* | C35: Annula OPEX (INR/MLD) | G35: Land Requirement (m2/MLD)
C36: Power Required | D36: Repairs Cost | E36: Chemical Cost | F36: Manpower Cost
B37: '000 INR | C37: kWh/d/ MLD | D37: '000 INR | E37: '000 INR | F37: '000 INR
A38: Waste Stabilization Pond (WSP) | B38: 2300 | C38: 4.5 | D38: =(1.11*100000)/1000 -> 111 | E38: =(0.6*100000)/1000 -> 60 | F38: =(0.51*100000)/1000 -> 51 | G38: 6000
A39: WSP with Tertiary Treatment | B39: 6300 | C39: 5.7 | D39: =(1.76*100000)/1000 -> 176 | E39: =(7.2*100000)/1000 -> 720 | F39: =(0.6*100000)/1000 -> 60 | G39: 6100
A40: Activated SludgeProcess (ASP) | B40: 6800 | C40: 184.5 | D40: =(1.5*100000)/1000 -> 150 | E40: =(0.85*100000)/1000 -> 85 | F40: =(0.67*100000)/1000 -> 67 | G40: 900
A41: ASP with Tertiary Treatment | B41: 10800 | C41: 185.7 | D41: =(2.38*100000)/1000 -> 238 | E41: =(5.3*100000)/1000 -> 530 | F41: =(0.8*100000)/1000 -> 80 | G41: 1000
A42: Sequencing Batch Reactor (SBR) | B42: 7500 | C42: 152.5 | D42: =(1.16*100000)/1000 -> 116 | E42: =(0.85*100000)/1000 -> 85 | F42: =(0.41*100000)/1000 -> 41 | G42: 450
A43: SBR with Tertiary Treatment | B43: 11500 | C43: 153.7 | D43: =(1.84*100000)/1000 -> 184 | E43: =(5.3*100000)/1000 -> 530 | F43: =(0.5*100000)/1000 -> 50 | G43: 550
A44: Moving Bed Biological Reactor (MBBR) | B44: 6800 | C44: 222.5 | D44: =(1.22*100000)/1000 -> 122 | E44: =(0.85*100000)/1000 -> 85 | F44: =(0.49*100000)/1000 -> 49 | G44: 450
A45: MBBR with Tertiary Treatment | B45: 10800 | C45: 223.7 | D45: =(4.9*100000)/1000 -> 490 | E45: =(5.3*100000)/1000 -> 530 | F45: =(0.6*100000)/1000 -> 60 | G45: 550
A46: Membrane Bioreactor (MBR) | B46: 30000 | C46: 302.5 | D46: 220 | E46: 660 | F46: 120 | G46: 450
A47: Upstream Anaerobic Sludge Blanket | B47: 6800 | C47: 125.7 | D47: =(2.48*100000)/1000 -> 248 | E47: =(6.3*100000)/1000 -> 630 | F47: =(0.84*100000)/1000 -> 84 | G47: 1100
A49: Energy and Nutrient Recovery Technology | B49: CAPEX/MLD | C49: Annula OPEX (INR/MLD) | G49: Land Requirement (m2/MLD)
C50: Power Cost | D50: Repairs Cost | E50: Chemical Cost | F50: Manpower Cost
B51: ' 000 INR | C51: ' 000 INR | D51: ' 000 INR | E51: ' 000 INR | F51: ' 000 INR
A52: Biogas to electricity unit | B52: 125 | C52: 0 | D52: 6.25 | E52: 0 | F52: 0 | G52: 5
A53: Struvite Recovery | B53: 281.775 | C53: 7.5 | D53: 7.5 | E53: 30 | F53: 7.5 | G53: 5
A55: 4. WWTP-Capacity & Technology Selection
B56: Select from drop-down list
A57: WW treatment capacity as per | B57: Manually planned
A58: Technology for WW treatment | B58: ASP with Tertiary Treatment
A59: For on-site power generation (leave blank if not planned) | B59: Biogas to electricity unit
A60: For Phosphate Recovery (leave blank if not planned)
A61: Length of supply infrastructure
A62: Industrial
A63: 400 mm Dia Pipe (m) | B63: 0
A64: 600 mm Dia Pipe (m) | B64: 500
A65: 900 mm Dia Pipe (m) | B65: 700
A66: Agricultural
A67: 400 mm Dia Pipe (m) | B67: 600
A68: 600 mm Dia Pipe (m) | B68: 700
A69: 900 mm Dia Pipe (m) | B69: 1200
A72: 5. Other Variables
B73: in percentage
A74: Discount rate | B74: 0.1
A75: Rate of increase of repair costs | B75: 0.05
A76: Rate of increase of chemical cost | B76: 0.05
A77: Rate of increase of manpower cost | B77: 0.1
A78: Rate of increase of agricultural water tariff | B78: 0.04
A79: Rate of increase of industrial water tariff | B79: 0.05
A80: Rate of increase of fertiliser tariff | B80: 0.05
A82: Following are the variables (also) used for sensitivity anaysis (please refer scenario manager (under What-If analysis) in case you want to change the values
A83: Variation in the electricity tariff | B83: 1
A84: Variation in the cost of land | B84: 1
A85: Variation in distance of industry from point of STP discharge | B85: 1
A86: Nominal rate of increase in electricity Tariff | B86: 0.08
A87: Variation in industrial water sale tariff | B87: 1
A89: Enter your desired payback period (years) | B89: 10
A90: Enter the proportion of treated water for sale | B90: 0.4

Sheet WW Demand and Collection
A1: Input: Decadal growth in agriculture and industrial water demand, present agriculture and industrial water demand, population of previous decades, water supply in lpcd, % collection efficiency, WW treatment capacity as per manual planning
A2: Output: Agriculture and industrial water demand projections, population projections
A4: WATER DEMAND
A6: Decadal growth in water demand
A7: Agricultural | D7: =Inputs!B22 -> 0.1
A8: Industrial | D8: =Inputs!B23 -> 0.25
A10: Water Demand in MLD | B10: Domestic | C10: Agricultural | D10: Industrial
A11: 2011 | B11: =C32 -> 2010.36 | C11: =Inputs!B19 -> 50 | D11: =Inputs!B20 -> 20
A12: 2021 | B12: =C33 -> 2576.634089 | C12: =C11*(1+$D$7) -> 55 | D12: =D11*(1+$D$8) -> 25
A13: 2031 | B13: 3222.450215 | C13: =C12*(1+$D$7) -> 60.5 | D13: =D12*(1+$D$8) -> 31.25
A14: 2041 | B14: 4134.314891 | C14: =C13*(1+$D$7) -> 66.55 | D14: =D13*(1+$D$8) -> 39.0625
A16: POPULATION (for estimation of domestic water demand) | F16: Domestic water supply and WW generation (assumptions)
A17: YEAR | D17: POPULATION (million) | F17: Water Supply (in lpcd) | I17: =Inputs!B24 -> 120
A18: 1951 | D18: =Inputs!B11 -> 1.744 | F18: WW Generation (as % of water supply) | I18: 0.8
A19: 1961 | D19: =Inputs!B12 -> 2.659 | F19: Collection efficiency in % | I19: =Inputs!B25 -> 0.7
A20: 1971 | D20: =Inputs!B13 -> 4.066
A21: 1981 | D21: =Inputs!B14 -> 6.22
A22: 1991 | D22: =Inputs!B15 -> 9.421
A23: 2001 | D23: =Inputs!B16 -> 13.851
A24: 2011 | D24: =Inputs!B17 -> 16.753
A26: 2021 | D26: =AVERAGE(A55:C55) -> 21.47195074
A27: 2031 | D27: =AVERAGE(A56:C56) -> 26.85375179
A28: 2041 | D28: =AVERAGE(A57:C57) -> 34.45262409
A30: Domestic WW collection (MLD)
B31: Population | C31: Water Supply | D31: WW Generation | E31: Collected WW
A32: 2011 | B32: ='WW Demand and Collection'!D24 -> 16.753 | C32: =I17*B32 -> 2010.36 | D32: =$I$18*C32 -> 1608.288 | E32: =($I$19)*D32 -> 1125.8016
A33: 2021 | B33: ='WW Demand and Collection'!D26 -> 21.47195074 | C33: =I17*B33 -> 2576.634089 | D33: =$I$18*C33 -> 2061.307271 | E33: =($I$19)*D33 -> 1442.91509
A34: 2031 | B34: ='WW Demand and Collection'!D27 -> 26.85375179 | C34: =I17*B34 -> 3222.450215 | D34: =$I$18*C34 -> 2577.960172 | E34: =($I$19)*D34 -> 1804.57212
A35: 2041 | B35: ='WW Demand and Collection'!D28 -> 34.45262409 | C35: =I17*B35 -> 4134.314891 | D35: =$I$18*C35 -> 3307.451913 | E35: =($I$19)*D35 -> 2315.216339
A37: WW treatment capacity in MLD as per
A38: Population: 2011 | E38: =E32 -> 1125.8016
A39: Population: 2021 | E39: =E33 -> 1442.91509
A40: Population: 2031 | E40: =E34 -> 1804.57212
A41: Population: 2041 | E41: =E35 -> 2315.216339
A42: Manually planned | E42: =Inputs!B27 -> 50
A44: Annex - Calculations for population forecasting
A45: INCREMENT | B45: GEOMETRICAL INCREASE RATE OF GROWTH | C45: INCREMENTAL INCREASE
A47: =D19-D18 -> 0.915 | B47: =A47/D18 -> 0.5246559633
A48: 1.407 | B48: 0.5291462956 | C48: =A48-A47 -> 0.492
A49: 2.154 | B49: 0.5297589769 | C49: =A49-A48 -> 0.747
A50: 3.201 | B50: 0.5146302251 | C50: 1.047
A51: 4.43 | B51: 0.4702260906 | C51: 1.229
A52: 2.902 | B52: 0.2095155584 | C52: -1.528
A53: =AVERAGE(A47:A52) -> 2.5015 | B53: =AVERAGE(B47:B52) -> 0.4629888517 | C53: =AVERAGE(C48:C52) -> 0.3974
A54: Arithmetical Increase | B54: Geometrical Increase | C54: Incremental Increase
A55: =D24+A53 -> 19.2545 | B55: =D24*((1+B53)^1) -> 24.50945223 | C55: =D24+(1+A53)+((1*(1+1))/2)*C53 -> 20.6519
A56: =D24+(A53*2) -> 21.756 | B56: =D24*((1+B53)^2) -> 35.85705538 | C56: =D24+(2*A53)+((2*(2+1))/2)*C53 -> 22.9482
A57: =D24+(A53*3) -> 24.2575 | B57: =D24*((1+B53)^3) -> 52.45847227 | C57: =D24+(3*A53)+((3*(3+1))/2)*C53 -> 26.6419

Sheet Technologies - Input cost
A1: Input: INR to USD, cost of land per unit area, CAPEX-OPEX (power, repairs, chemical, manpower) of technologies, price of land and Requirement of land
A2: Output: Total cost of land, Total CAPEX + Cost of land, Total OPEX
A4: ASSUMPTIONS
A5: Recovery after Secondary STP | B5: 0.8
A6: Recovery after Tertiary (Non-R.O) | B6: 0.8
A8: INR to USD | B8: =Inputs!B2 -> 67
A10: Collection Network - Piping rates
B11: '000 INR/m | C11: '000 USD/m
A12: 400 mm Diameter Pipe | B12: =Inputs!B31 -> 3256 | C12: =B12/B8 -> 48.59701493
A13: 600 mm Diameter Pipe | B13: =Inputs!B32 -> 6512 | C13: =B13/B8 -> 97.19402985
A14: 900 mm Diameter Pipe | B14: =Inputs!B33 -> 19536 | C14: =B14/B8 -> 291.5820896
A16: Cost of Land (INR/m2) | B16: =Inputs!B3 -> 4000
A18: Power Tariff - INR/kWh | B18: =Inputs!B4 -> 6
A20: Technology | B20: CAPEX/MLD* | E20: Annual OPEX/MLD | M20: Land Requirement (m2/MLD) | N20: Total Cost of Land | O20: Total CAPEX (inc. cost of land) | P20: Annual OPEX | Q20: Output Water Quality
D21: Power Required | E21: Power Cost | G21: Repairs Cost | I21: Chemical Cost | K21: Manpower Cost | N21: million INR/MLD | O21: million INR/MLD | P21: million INR/MLD | Q21: BOD (mg/L) | R21: SS (mg/L) | S21: Faecal Coliform Removal (log unit) | T21: T - N Removal Efficiency (%) | U21: Effluent NH3N (mg/L) | V21: Effluent TP (mg/L) | W21: Effluent Total Coliforms, (MPN/100mL)
B22: '000 INR | C22: '000 USD | D22: kWh/d/ MLD | E22: '000 INR | F22: '000 USD | G22: '000 INR | H22: '000 USD | I22: '000 INR | J22: '000 USD | K22: '000 INR | L22: '000 USD
A23: Waste Stabilization Pond (WSP) | B23: =Inputs!B38 -> 2300 | C23: =B23/B8 -> 34.32835821 | D23: =Inputs!C38 -> 4.5 | E23: =(D23*$B$18*365*'Economic Analysis'!$B$14)/1000 -> 9.855 | F23: =E23/B8 -> 0.1470895522 | G23: =Inputs!D38 -> 111 | H23: =G23/B8 -> 1.656716418 | I23: =Inputs!E38 -> 60 | J23: =I23/B8 -> 0.8955223881 | K23: =Inputs!F38 -> 51 | L23: =K23/B8 -> 0.7611940299 | M23: =Inputs!G38 -> 6000 | N23: =(M23*$B$16*'Economic Analysis'!$B$15)/1000000 -> 24 | O23: =B23/1000+N23 -> 26.3 | P23: =(E23+G23+I23+K23)/1000 -> 0.231855 | Q23: <40 | R23: <100 | S23: Upto 2<3 | T23: 10 - 20
A24: WSP with Tertiary Treatment | B24: =Inputs!B39 -> 6300 | C24: =B24/B8 -> 94.02985075 | D24: =Inputs!C39 -> 5.7 | E24: =(D24*$B$18*365*'Economic Analysis'!$B$14)/1000 -> 12.483 | F24: =E24/B8 -> 0.1863134328 | G24: =Inputs!D39 -> 176 | H24: =G24/B8 -> 2.626865672 | I24: =Inputs!E39 -> 720 | J24: =I24/B8 -> 10.74626866 | K24: =Inputs!F39 -> 60 | L24: =K24/B8 -> 0.8955223881 | M24: =Inputs!G39 -> 6100 | N24: =(M24*$B$16*'Economic Analysis'!$B$15)/1000000 -> 24.4 | O24: =B24/1000+N24 -> 30.7 | P24: =(E24+G24+I24+K24)/1000 -> 0.968483 | Q24: <10 | R24: <5 | U24: <1 | V24: <0.5 | W24: 10
A25: Activated SludgeProcess (ASP) | B25: =Inputs!B40 -> 6800 | C25: =B25/B8 -> 101.4925373 | D25: =Inputs!C40 -> 184.5 | E25: =(D25*$B$18*365*'Economic Analysis'!$B$14)/1000 -> 404.055 | F25: =E25/B8 -> 6.030671642 | G25: =Inputs!D40 -> 150 | H25: =G25/B8 -> 2.23880597 | I25: =Inputs!E40 -> 85 | J25: =I25/B8 -> 1.268656716 | K25: =Inputs!F40 -> 67 | L25: =K25/B8 -> 1 | M25: =Inputs!G40 -> 900 | N25: =(M25*$B$16*'Economic Analysis'!$B$15)/1000000 -> 3.6 | O25: 10.4 | P25: 0.706055 | Q25: <20 | R25: <30 | S25: Upto 2<3 | T25: 10 - 20
A26: ASP with Tertiary Treatment | B26: =Inputs!B41 -> 10800 | C26: =B26/B8 -> 161.1940299 | D26: =Inputs!C41 -> 185.7 | E26: =(D26*$B$18*365*'Economic Analysis'!$B$14)/1000 -> 406.683 | F26: =E26/B8 -> 6.069895522 | G26: =Inputs!D41 -> 238 | H26: =G26/B8 -> 3.552238806 | I26: =Inputs!E41 -> 530 | J26: =I26/B8 -> 7.910447761 | K26: =Inputs!F41 -> 80 | L26: =K26/B8 -> 1.194029851 | M26: =Inputs!G41 -> 1000 | N26: =(M26*$B$16*'Economic Analysis'!$B$15)/1000000 -> 4 | O26: 14.8 | P26: 1.254683 | Q26: <10 | R26: <5 | U26: <1 | V26: <0.5 | W26: 10
A27: Sequencing Batch Reactor (SBR) | B27: =Inputs!B42 -> 7500 | C27: =B27/B8 -> 111.9402985 | D27: =Inputs!C42 -> 152.5 | E27: =(D27*$B$18*365*'Economic Analysis'!$B$14)/1000 -> 333.975 | F27: =E27/B8 -> 4.984701493 | G27: =Inputs!D42 -> 116 | H27: =G27/B8 -> 1.731343284 | I27: =Inputs!E42 -> 85 | J27: =I27/B8 -> 1.268656716 | K27: =Inputs!F42 -> 41 | L27: =K27/B8 -> 0.6119402985 | M27: =Inputs!G42 -> 450 | N27: =(M27*$B$16*'Economic Analysis'!$B$15)/1000000 -> 1.8 | O27: 9.3 | P27: 0.575975 | Q27: <10 | R27: <10 | S27: Upto 3<4 | T27: 70 - 80
A28: SBR with Tertiary Treatment | B28: =Inputs!B43 -> 11500 | C28: =B28/B8 -> 171.641791 | D28: =Inputs!C43 -> 153.7 | E28: =(D28*$B$18*365*'Economic Analysis'!$B$14)/1000 -> 336.603 | F28: =E28/B8 -> 5.023925373 | G28: =Inputs!D43 -> 184 | H28: =G28/B8 -> 2.746268657 | I28: =Inputs!E43 -> 530 | J28: =I28/B8 -> 7.910447761 | K28: =Inputs!F43 -> 50 | L28: =K28/B8 -> 0.7462686567 | M28: =Inputs!G43 -> 550 | N28: =(M28*$B$16*'Economic Analysis'!$B$15)/1000000 -> 2.2 | O28: 13.7 | P28: 1.100603 | Q28: <10 | R28: <5 | U28: <1 | V28: <0.5 | W28: 10
A29: Moving Bed Biological Reactor (MBBR) | B29: =Inputs!B44 -> 6800 | C29: =B29/B8 -> 101.4925373 | D29: =Inputs!C44 -> 222.5 | E29: =(D29*$B$18*365*'Economic Analysis'!$B$14)/1000 -> 487.275 | F29: =E29/B8 -> 7.272761194 | G29: =Inputs!D44 -> 122 | H29: =G29/B8 -> 1.820895522 | I29: =Inputs!E44 -> 85 | J29: =I29/B8 -> 1.268656716 | K29: =Inputs!F44 -> 49 | L29: =K29/B8 -> 0.7313432836 | M29: =Inputs!G44 -> 450 | N29: =(M29*$B$16*'Economic Analysis'!$B$15)/1000000 -> 1.8 | O29: 8.6 | P29: 0.743275 | Q29: <30 | R29: <30 | S29: Upto 2<3 | T29: 10 - 20
A30: MBBR with Tertiary Treatment | B30: =Inputs!B45 -> 10800 | C30: =B30/B8 -> 161.1940299 | D30: =Inputs!C45 -> 223.7 | E30: =(D30*$B$18*365*'Economic Analysis'!$B$14)/1000 -> 489.903 | F30: =E30/B8 -> 7.311985075 | G30: =Inputs!D45 -> 490 | H30: =G30/B8 -> 7.313432836 | I30: =Inputs!E45 -> 530 | J30: =I30/B8 -> 7.910447761 | K30: =Inputs!F45 -> 60 | L30: =K30/B8 -> 0.8955223881 | M30: =Inputs!G45 -> 550 | N30: =(M30*$B$16*'Economic Analysis'!$B$15)/1000000 -> 2.2 | O30: 13 | P30: 1.569903 | Q30: <10 | R30: <5 | U30: <1 | V30: <0.5 | W30: 10
A31: Membrane Bioreactor (MBR) | B31: =Inputs!B46 -> 30000 | C31: =B31/B8 -> 447.761194 | D31: =Inputs!C46 -> 302.5 | E31: =(D31*$B$18*365*'Economic Analysis'!$B$14)/1000 -> 662.475 | F31: =E27/B8 -> 4.984701493 | G31: =Inputs!D46 -> 220 | H31: =G31/B8 -> 3.28358209 | I31: =Inputs!E46 -> 660 | J31: =I31/B8 -> 9.850746269 | K31: =Inputs!F46 -> 120 | L31: =K31/B8 -> 1.791044776 | M31: =Inputs!G46 -> 450 | N31: =(M31*$B$16*'Economic Analysis'!$B$15)/1000000 -> 1.8 | O31: 31.8 | P31: 1.662475 | Q31: <5 | R31: <5 | S31: Upto 5<6 | T31: 70 - 80
A32: Upstream Anaerobic Sludge Blanket | B32: =Inputs!B47 -> 6800 | C32: =B32/'Technologies - Input cost'!B8 -> 101.4925373 | D32: =Inputs!C47 -> 125.7 | E32: =(D32*$B$18*365*'Economic Analysis'!$B$14)/1000 -> 275.283 | F32: =E32/$B8 -> 4.108701493 | G32: =Inputs!D47 -> 248 | H32: =G32/B8 -> 3.701492537 | I32: =Inputs!E47 -> 630 | J32: =I32/B8 -> 9.402985075 | K32: =Inputs!F47 -> 84 | L32: =K32/B8 -> 1.253731343 | M32: =Inputs!G47 -> 1100 | N32: =(M32*$B$16*'Economic Analysis'!$B$15)/1000000 -> 4.4 | O32: 11.2 | P32: 1.237283
A34: *It should be noted that the reference values for CAPEX are from CPCB. Our interactions with practitioners suggest that these are conservative numbers and actual numbers could be higher. However, given no other publicly available information, we have used these numbers as reference. Practitioners are urged to input more adequate CAPEX number as per their experience or in discussion with technology providers. The CAPEX per MLD also strongly depends on the total capacity of the plant. The smaller the plant, the higher is the CAPEX. For instance, for a plant smaller than 10 MLD, the cost provided in the tool might increase by 100%.

Sheet Other resources from WW
A1: Input: CAPEX-OPEX (power, repairs, chemical, manpower) of technologies, price of land and Requirement of land
A2: Output: Cost of land, Total cost of technologies
B4: Technology | C4: CAPEX/MLD | E4: Annula OPEX (INR/MLD) | M4: Land Requirement (m2/MLD) | N4: Total Cost of Land | O4: Total CAPEX (incl. cost of Land) | P4: Total OPEX
E5: Power Cost | G5: Repairs Cost | I5: Chemical Cost | K5: Manpower Cost | N5: million INR/MLD | O5: million INR/MLD | P5: million INR/MLD
C6: ' 000 INR | D6: ' 000 USD | E6: ' 000 INR | F6: ' 000 USD | G6: ' 000 INR | H6: ' 000 USD | I6: ' 000 INR | J6: ' 000 USD | K6: ' 000 INR | L6: ' 000 USD
A7: For On-site Power generation | B7: Biogas to electricity unit | C7: =Inputs!B52 -> 125 | D7: =C7/'Technologies - Input cost'!B8 -> 1.865671642 | E7: =Inputs!C52 -> 0 | F7: =E7/'Technologies - Input cost'!B8 -> 0 | G7: =Inputs!D52 -> 6.25 | H7: =G7/'Technologies - Input cost'!$B$8 -> 0.09328358209 | I7: =Inputs!E52 -> 0 | J7: =I7/'Technologies - Input cost'!B8 -> 0 | K7: =Inputs!F52 -> 0 | L7: =K7/'Technologies - Input cost'!B8 -> 0 | M7: =Inputs!G52 -> 5 | N7: =M7*'Technologies - Input cost'!$B$16/1000000 -> 0.02 | O7: =C7/1000+N7 -> 0.145 | P7: =(E7+G7+I7+K7)/1000 -> 0.00625
A8: For Phosphate Recovery | B8: Struvite Recovery | C8: =Inputs!B53 -> 281.775 | D8: =C8/'Technologies - Input cost'!B8 -> 4.205597015 | E8: =Inputs!C53 -> 7.5 | F8: =E8/'Technologies - Input cost'!B8 -> 0.1119402985 | G8: =Inputs!D53 -> 7.5 | H8: =G8/'Technologies - Input cost'!B8 -> 0.1119402985 | I8: =Inputs!E53 -> 30 | J8: =I8/'Technologies - Input cost'!B8 -> 0.447761194 | K8: =Inputs!F53 -> 7.5 | L8: =K8/'Technologies - Input cost'!B8 -> 0.1119402985 | M8: =Inputs!G53 -> 5 | N8: =M8*'Technologies - Input cost'!$B$16/1000000 -> 0.02 | O8: =C8/1000+N8 -> 0.301775 | P8: =(E8+G8+I8+K8)/1000 -> 0.0525
B10: Sources:
B11: CHP | C11: Opportunities for and Benefits of Combined Heat and Power at Wastewater Treatment Facilities, USEPA, 2006
B12: Phophorus | C12: http://www.ncbi.nlm.nih.gov/pmc/articles/PMC3357736/

Sheet WWTP-Capacity & Tech. Selection
A1: Input: WW treatment capacity as per (select from drop down list), Distance to point of sale in metres, Technology for Primary and Secondary treatment (select from dropdown list), Technology for on-site CHP generation for N and P recovery, Length of supply infrastructure (for both agriculture and industrial)
A2: Output: Total CAPEX + Cost of land, Total Power Cost, Total Repairs Cost, Total Chemical Cost, Total Manpower Cost
C4: in MLD
A5: WW treatment capacity as per | B5: =Inputs!B57 -> Manually planned | C5: =IFERROR(VLOOKUP(B5,'WW Demand and Collection'!A38:E42,5,FALSE),0) -> 50
A7: Cost Incurred (million INR)
C8: Select from drop-down list | D8: CAPEX (inc. cost of land) | E8: Power Cost | F8: Repairs cost | G8: Chemical Cost | H8: Manpower Cost
D9: million INR | E9: million INR | F9: million INR | G9: million INR | H9: million INR
A10: Technology for WW treatment | C10: =Inputs!B58 -> ASP with Tertiary Treatment | D10: =(IFERROR(VLOOKUP(C10,'Technologies - Input cost'!A23:P38,15,FALSE),0))*C5 -> 740 | E10: =(IFERROR(VLOOKUP(C10,'Technologies - Input cost'!A23:P38,5,FALSE),0))*C5/1000 -> 20.33415 | F10: =(IFERROR(VLOOKUP(C10,'Technologies - Input cost'!A23:P38,7,FALSE),0))*C5/1000 -> 11.9 | G10: =(IFERROR(VLOOKUP(C10,'Technologies - Input cost'!A23:P38,9,FALSE),0))*C5/1000 -> 26.5 | H10: =(IFERROR(VLOOKUP(C10,'Technologies - Input cost'!A23:P38,11,FALSE),0))*C5/1000 -> 4
A11: For on-site power generation | C11: =Inputs!B59 -> Biogas to electricity unit | D11: =IFERROR(VLOOKUP(C11,'Other resources from WW'!B7:P7,14,FALSE),0)*C5 -> 7.25 | E11: =IFERROR(VLOOKUP(C11,'Other resources from WW'!B7:P7,4,FALSE),0)*C5/1000 -> 0 | F11: =IFERROR(VLOOKUP(C11,'Other resources from WW'!B7:P7,6,FALSE),0)*C5/1000 -> 0.3125 | G11: =IFERROR(VLOOKUP(C11,'Other resources from WW'!B7:P7,8,FALSE),0)*C5/1000 -> 0 | H11: =IFERROR(VLOOKUP(C11,'Other resources from WW'!B7:P7,10,FALSE),0)*C5/1000 -> 0
A12: For Phosphate Recovery | C12: =Inputs!B60 -> 0 | D12: =IFERROR(VLOOKUP(C12,'Other resources from WW'!B8:P8,14,FALSE),0)*C5 -> 0 | E12: =IFERROR(VLOOKUP(C12,'Other resources from WW'!B8:P8,4,FALSE),0)*C5/1000 -> 0 | F12: =IFERROR(VLOOKUP(C12,'Other resources from WW'!B8:P8,6,FALSE),0)*C5/1000 -> 0 | G12: =IFERROR(VLOOKUP(C12,'Other resources from WW'!B8:P8,8,FALSE),0)*C5/1000 -> 0 | H12: =IFERROR(VLOOKUP(C12,'Other resources from WW'!B8:P8,10,FALSE),0)*C5/1000 -> 0
A13: Length of Supply Infrastructure | B13: Industrial | C13: 400 mm Dia Pipe (m) | D13: =Inputs!B63 -> 0
C14: 600 mm Dia Pipe (m) | D14: =Inputs!B64 -> 500
C15: 900 mm Dia Pipe (m) | D15: =Inputs!B65 -> 700
B16: Agricultural | C16: 400 mm Dia Pipe (m) | D16: =Inputs!B67 -> 600
C17: 600 mm Dia Pipe (m) | D17: =Inputs!B68 -> 700
C18: 900 mm Dia Pipe (m) | D18: =Inputs!B69 -> 1200
A19: Cost of Supply Infrastructure | B19: Industrial | C19: 400 mm Dia Pipe ('000 INR) | D19: ='Technologies - Input cost'!B12*D13*'Economic Analysis'!B16/1000000 -> 0
C20: 600 mm Dia Pipe ('000 INR) | D20: ='Technologies - Input cost'!B13*D14*'Economic Analysis'!B16/1000000 -> 3.256
C21: 900 mm Dia Pipe ('000 INR) | D21: ='Technologies - Input cost'!B14*D15*'Economic Analysis'!B16/1000000 -> 13.6752
B22: Agricultural | C22: 400 mm Dia Pipe ('000 INR) | D22: ='Technologies - Input cost'!B12*D16/1000000 -> 1.9536
C23: 600 mm Dia Pipe ('000 INR) | D23: ='Technologies - Input cost'!B13*D17/1000000 -> 4.5584
C24: 900 mm Dia Pipe ('000 INR) | D24: ='Technologies - Input cost'!B14*D18/1000000 -> 23.4432
A25: Total Cost Incurred | D25: =SUM(D10:D12,D19:D24) -> 794.1364 | E25: =(E10+E11+E12) -> 20.33415 | F25: =(F10+F11+F12) -> 12.2125 | G25: =(G10+G11+G12) -> 26.5 | H25: =(H10+H11+H12) -> 4

Sheet Revenue Earned
A1: Input: Reclaimed water tariff from agriculture
A2: Output: Water, electricity and fertiliser selling potential
A4: ASSUMPTIONS
A5: 1 | B5: MLD of wastewater | C5: equals | D5: 100 | E5: m3 of biogas generated | F5: REF: Biogas Production in Municipal Wastewater Treatment Plants – Current Status in EU with a Focus on the Slovak Republic http://www.academia.edu/4921725/Resource_Recovery_from_Sewage_Treatment_Plants
A6: 1 | B6: m3 of biogas generated | C6: equals | D6: 1.6 | E6: kWh of electricity | F6: REF: Jangid and Gupta, 2014
A7: 1 | B7: litre of wastewater | C7: equals | D7: 10 | E7: mg of MAP (Struvite)
A8: 1 | B8: mg | C8: equals | D8: =10^-9 -> 1e-09 | E8: metric ton
A10: For Electricity Generation | B10: Amount of electricity that can be produced | C10: ='WWTP-Capacity & Tech. Selection'!C5*D5*D6 -> 8000 | D10: kWh
B11: Capacity utilisation of power generation unit | C11: 0.9
B12: Capacity of power generation unit | C12: =C10/24/C11 -> 370.3703704 | D12: kW
A14: Commodity Prices - Electricity & Fetiliser | B14: Electricity - INR per kWh (energy generated from biogas) | C14: Fertiliser - INR per metric ton MAP(Struvite) for Feb 2012 | D14: Ref: Ministry of Chemicals & Fertilisers, Dept. of Fertilisers, Govt. of India
A15: Price | B15: ='Technologies - Input cost'!B18 -> 6 | C15: =Inputs!B5 -> 20000
A17: Tariff for recycled water | B17: INR/kl | C17: USD/kl
A18: Reclaimed (Agricultural) | B18: =Inputs!B6 -> 0 | C18: =B18/'Technologies - Input cost'!$B$8 -> 0
A19: Reclaimed (Industrial) | B19: 30.78091916 | C19: =B19/'Technologies - Input cost'!$B$8 -> 0.4594167039
A21: Total Treated wastewater generated (MLD) | B21: ='WWTP-Capacity & Tech. Selection'!C5*IF(C21=TRUE,80%,64%) -> 32 | C21: =OR('WWTP-Capacity & Tech. Selection'!C10='Technologies - Input cost'!A23,'WWTP-Capacity & Tech. Selection'!C10='Technologies - Input cost'!A25,'WWTP-Capacity & Tech. Selection'!C10='Technologies - Input cost'!A27,'WWTP-Capacity & Tech. Selection'!C10='Technologies - Input cost'!A29) -> FALSE
A22: Water to be supplied for agriculture (MLD) | B22: =IF(B21-B23>'WW Demand and Collection'!C11,'WW Demand and Collection'!C11,B21-B23) -> 19.2 | C22: *capped at the maximum demand (from the demand sheet)
A23: Water to be supplied for Industries (MLD) | B23: =IF(B21*'Economic Analysis'!$B$22>'WW Demand and Collection'!D11,'WW Demand and Collection'!D11,B21*'Economic Analysis'!$B$22) -> 12.8 | C23: *capped at the maximum demand (from the demand sheet)
A25: Annual Revenue Generated (current year)
C26: Total Revenue ('000 INR)
A27: Annual Water Selling Potential: Agriculture | B27: Reclaimed (Agricultural) | C27: =(IF('WWTP-Capacity & Tech. Selection'!D10=0,0,B18)*IF(B22>'WW Demand and Collection'!C11,'WW Demand and Collection'!D11,B22)*365/1000) -> 0
A28: Annual Water Selling Potential: Industry | B28: Reclaimed (Industrial) | C28: =(IF('WWTP-Capacity & Tech. Selection'!D10=0,0,B19)*B23*365/1000) -> 143.8084543
A29: Annual Electricity Selling Potential | C29: =(IF('WWTP-Capacity & Tech. Selection'!D11=0,0,C10*B15*365)*'Economic Analysis'!$B$14)/1000000 -> 17.52
A30: Annual Fertiliser Selling Potential | C30: =(IF('WWTP-Capacity & Tech. Selection'!D12=0,0,('WWTP-Capacity & Tech. Selection'!C5*D7*D8*C15*365))) -> 0
A31: Annual Revenue | C31: =SUM(C27:C30) -> 161.3284543
A33: Note:
A34: 1. The annual health cost per child in the untreated WW irrigated environment is around INR 4000/annum, which is 73% higher than the annual health cost per child in freshwater irrigated area (Grangier et al. 2012)
A35: 2. As per a 2015 UNEP study, establishment of a 25 year lifespan WW treatment plant leads to a total health benefits of around INR 5 million and the total economic value of environmental benefits is around INR 80 million.

Sheet Economic Analysis
A1: Input: Discount rate, rate of increase in repairs cost, chemical cost, manpower cost, agricultural water tariff, industrial water tariff, fertiliser tariff; Variation in electricity tariff, cost of land, distance of industry from point of discharge, industrial water sale tariff; Nominal rate of increase in electricity tariff; Desired payback period; Proportion of treated water for sale.
A2: Output: Tariff for water resale to industries, NPV
A4: Variable | B4: in percentage
A5: Discount rate | B5: =Inputs!B74 -> 0.1
A6: Rate of increase of repair costs | B6: =Inputs!B75 -> 0.05
A7: Rate of increase of chemical cost | B7: =Inputs!B76 -> 0.05
A8: Rate of increase of manpower cost | B8: =Inputs!B77 -> 0.1
A9: Rate of increase of agricultural water tariff | B9: =Inputs!B78 -> 0.04
A10: Rate of increase of industrial water tariff | B10: =Inputs!B79 -> 0.05
A11: Rate of increase of fertiliser tariff | B11: =Inputs!B80 -> 0.05
A13: Following are the variables (also) used for sensitivity anaysis (please refer scenario manager (under What-If analysis) in case you want to change the values
A14: Variation in the electricity tariff | B14: 1
A15: Variation in the cost of land | B15: 1
A16: Variation in distance of industry from point of STP discharge | B16: 1
A17: Nominal rate of increase in electricity Tariff | B17: 0.08
A18: Variation in industrial water sale tariff | B18: 1
A20: Enter your Desired Payback period (years) | B20: =Inputs!B89 -> 10
A22: Enter the proportion of treated water for sale | B22: =Inputs!B90 -> 0.4 | C22: ='Revenue Earned'!B23 -> 12.8 | D22: MLD
A23: Cost | B23: =SUM(OFFSET($B$39,0,0,1,$B$20)) -> 1338.437498
A24: Revenue | B24: =SUM(OFFSET($B$45,0,0,1,$B$20)) -> 1338.437498
B25: =B23-B24 -> 0
B27: ='Revenue Earned'!B19 -> 30.78091916 | C27: INR/kl
A29: Detailed Cash Flows (in million INR)
B30: Year 1 | C30: Year 2 | D30: Year 3 | E30: Year 4 | F30: Year 5 | G30: Year 6 | H30: Year 7 | I30: Year 8 | J30: Year 9 | K30: Year 10 | L30: Year 11 | M30: Year 12 | N30: Year 13 | O30: Year 14 | P30: Year 15
B31: 0 | C31: 1 | D31: 2 | E31: 3 | F31: 4 | G31: 5 | H31: 6 | I31: 7 | J31: 8 | K31: 9 | L31: 10 | M31: 11 | N31: 12 | O31: 13 | P31: 14
A32: Capital outlay | B32: ='WWTP-Capacity & Tech. Selection'!D25 -> 794.1364 | C32: 0 | D32: 0 | E32: 0 | F32: 0 | G32: 0 | H32: 0 | I32: 0 | J32: 0 | K32: 0
A33: Energy cost | B33: ='WWTP-Capacity & Tech. Selection'!E25 -> 20.33415 | C33: =B33*(1+$B17) -> 21.960882 | D33: 23.71775256 | E33: 25.61517276 | F33: 27.66438659 | G33: 29.87753751 | H33: 32.26774051 | I33: 34.84915976 | J33: 37.63709254 | K33: 40.64805994 | L33: 43.89990473 | M33: 47.41189711 | N33: 51.20484888 | O33: 55.30123679 | P33: 59.72533573
A34: Repair Cost | B34: ='WWTP-Capacity & Tech. Selection'!F25 -> 12.2125 | C34: =B34*(1+$B6) -> 12.823125 | D34: 13.46428125 | E34: 14.13749531 | F34: 14.84437008 | G34: 15.58658858 | H34: 16.36591801 | I34: 17.18421391 | J34: 18.04342461 | K34: 18.94559584 | L34: 19.89287563 | M34: 20.88751941 | N34: 21.93189538 | O34: 23.02849015 | P34: 24.17991466
A35: Chemical Cost | B35: ='WWTP-Capacity & Tech. Selection'!G25 -> 26.5 | C35: =B35*(1+$B7) -> 27.825 | D35: 29.21625 | E35: 30.6770625 | F35: 32.21091563 | G35: 33.82146141 | H35: 35.51253448 | I35: 37.2881612 | J35: 39.15256926 | K35: 41.11019772 | L35: 43.16570761 | M35: 45.32399299 | N35: 47.59019264 | O35: 49.96970227 | P35: 52.46818739
A36: Manpower Cost | B36: ='WWTP-Capacity & Tech. Selection'!H25 -> 4 | C36: =B36*(1+$B8) -> 4.4 | D36: 4.84 | E36: 5.324 | F36: 5.8564 | G36: 6.44204 | H36: 7.086244 | I36: 7.7948684 | J36: 8.57435524 | K36: 9.431790764 | L36: 10.37496984 | M36: 11.41246682 | N36: 12.55371351 | O36: 13.80908486 | P36: 15.18999334
A38: Net Cost Incurred | B38: =SUM(B32:B36)-B37 -> 857.18305 | C38: =SUM(C32:C36) -> 67.009007 | D38: 71.23828381 | E38: 75.75373058 | F38: 80.57607229 | G38: 85.7276275 | H38: 91.232437 | I38: 97.11640327 | J38: 103.4074416 | K38: 110.1356443 | L38: 117.3334578 | M38: 125.0358763 | N38: 133.2806504 | O38: 142.1085141 | P38: 151.5634311
A39: Discounted Cost | B39: =B38/(1+$B$5)^B31 -> 857.18305 | C39: =C38/(1+$B$5)^C31 -> 60.91727909 | D39: 58.87461472 | E39: 56.91489901 | F39: 55.03454155 | G39: 53.23011189 | H39: 51.49833226 | I39: 49.83607075 | J39: 48.2403347 | K39: 46.70826443 | L39: 45.23712729 | M39: 43.82431187 | N39: 42.46732262 | O39: 41.16377458 | P39: 39.91138842
A40: Revenue from Industrial Water | B40: ='Revenue Earned'!C28*$B$18 -> 143.8084543 | C40: =B40*(1+$B10) -> 150.998877 | D40: =C40*(1+$B10) -> 158.5488209 | E40: 166.4762619 | F40: 174.800075 | G40: 183.5400788 | H40: 192.7170827 | I40: 202.3529369 | J40: 212.4705837 | K40: 223.0941129 | L40: 234.2488185 | M40: 245.9612595 | N40: 258.2593224 | O40: 271.1722886 | P40: 284.730903
A41: Revenue from Agricultural Water | B41: ='Revenue Earned'!C27 -> 0 | C41: =B41*(1+$B9) -> 0 | D41: =C41*(1+$B9) -> 0 | E41: 0 | F41: 0 | G41: 0 | H41: 0 | I41: 0 | J41: 0 | K41: 0 | L41: 0 | M41: 0 | N41: 0 | O41: 0 | P41: 0
A42: Revenue from Electricity | B42: ='Revenue Earned'!C29 -> 17.52 | C42: =B42*(1+$B17) -> 18.9216 | D42: 20.435328 | E42: 22.07015424 | F42: 23.83576658 | G42: 25.74262791 | H42: 27.80203814 | I42: 30.02620119 | J42: 32.42829728 | K42: 35.02256107 | L42: 37.82436595 | M42: 40.85031523 | N42: 44.11834045 | O42: 47.64780768 | P42: 51.4596323
A43: Revenue from Fertiliser | B43: ='Revenue Earned'!C30 -> 0 | C43: =B43*(1+$B11) -> 0 | D43: 0 | E43: 0 | F43: 0 | G43: 0 | H43: 0 | I43: 0 | J43: 0 | K43: 0 | L43: 0 | M43: 0 | N43: 0 | O43: 0 | P43: 0
A44: Net Revenue Earned | B44: =SUM(B40:B43) -> 161.3284543 | C44: =SUM(C40:C43) -> 169.920477 | D44: 178.9841489 | E44: 188.5464162 | F44: 198.6358416 | G44: 209.2827067 | H44: 220.5191209 | I44: 232.3791381 | J44: 244.898881 | K44: 258.116674 | L44: 272.0731845 | M44: 286.8115747 | N44: 302.3776629 | O44: 318.8200962 | P44: 336.1905353
A45: Discounted Revenue | B45: =B44/(1+$B$5)^B31 -> 161.3284543 | C45: =C44/(1+$B$5)^C31 -> 154.473161 | D45: 147.9207842 | E45: 141.6577131 | F45: =F44/(1+$B$5)^F31 -> 135.6709525 | G45: 129.9480951 | H45: 124.4772948 | I45: 119.2472412 | J45: 114.2471354 | K45: 109.4666667 | L45: 104.8959905 | M45: 100.5257072 | N45: 96.34684198 | O45: 92.35082543 | P45: 88.52947534
A46: Net Cash flow | B46: =B44-B38 -> -695.8545957 | C46: =C44-C38 -> 102.91147 | D46: 107.7458651 | E46: 112.7926856 | F46: 118.0597693 | G46: 123.5550792 | H46: 129.2866839 | I46: 135.2627348 | J46: 141.4914394 | K46: 147.9810297 | L46: 154.7397267 | M46: 161.7756984 | N46: 169.0970125 | O46: 176.7115822 | P46: 184.6271042
A47: NPV | B47: =NPV(B5,B46:P46) -> 245.4953779
A49: Cumulative Cash Flow (discounted) | B49: =-B39+B45 -> -695.8545957 | C49: =B49-C39+C45 -> -602.2987138 | D49: =C49-D39+D45 -> -513.2525443 | E49: =D49-E39+E45 -> -428.5097302 | F49: -347.8733192 | G49: -271.155336 | H49: -198.1763734 | I49: -128.765203 | J49: -62.75840226 | K49: -6.679101716e-13 | L49: 59.65886323 | M49: 116.3602586 | N49: 170.2397779 | O49: 221.4268288 | P49: 270.0449157
B50: =AND(A49<0,B49>=0) -> FALSE | C50: =AND(B49<0,C49>=0) -> FALSE | D50: =AND(C49<0,D49>=0) -> FALSE | E50: FALSE | F50: =AND(E49<0,F49>=0) -> FALSE | G50: =AND(F49<0,G49>=0) -> FALSE | H50: FALSE | I50: FALSE | J50: FALSE | K50: FALSE | L50: TRUE | M50: FALSE | N50: FALSE | O50: FALSE | P50: FALSE
B51: =IF(B50=TRUE,B31+ABS(A49/(-B39+B45)),0) -> 0 | C51: =IF(C50=TRUE,C31+ABS(B49/(-C39+C45)),0) -> 0 | D51: =IF(D50=TRUE,D31+ABS(C49/(-D39+D45)),0) -> 0 | E51: =IF(E50=TRUE,E31+ABS(D49/(-E39+E45)),0) -> 0 | F51: 0 | G51: 0 | H51: 0 | I51: 0 | J51: 0 | K51: 0 | L51: 10 | M51: 0 | N51: 0 | O51: 0 | P51: 0
A52: Discounted Payback Period | B52: =MAX(B51:P51) -> 10

Sheet Summary Sheet
A2: WW Treatment Capacity | B2: ='WWTP-Capacity & Tech. Selection'!B5 -> Manually planned | C2: ='WWTP-Capacity & Tech. Selection'!C5 & " MLD" -> 50 MLD
C4: million INR
A5: Total CAPEX | C5: ='WWTP-Capacity & Tech. Selection'!D25 -> 794.1364
A6: ='WWTP-Capacity & Tech. Selection'!C10 -> ASP with Tertiary Treatment | C6: ='WWTP-Capacity & Tech. Selection'!D10 -> 740
A7: ='WWTP-Capacity & Tech. Selection'!C11 -> Biogas to electricity unit | C7: ='WWTP-Capacity & Tech. Selection'!D11 -> 7.25
A8: ='WWTP-Capacity & Tech. Selection'!C12 -> 0 | C8: ='WWTP-Capacity & Tech. Selection'!D12 -> 0
A9: Cost of supply infrastructure | C9: =SUM('WWTP-Capacity & Tech. Selection'!D19:D24) -> 46.8864
A11: Annual OPEX (year 1) | C11: =SUM('WWTP-Capacity & Tech. Selection'!E25:H25) -> 63.04665
A12: ='WWTP-Capacity & Tech. Selection'!E8 -> Power Cost | C12: ='WWTP-Capacity & Tech. Selection'!E25 -> 20.33415
A13: ='WWTP-Capacity & Tech. Selection'!F8 -> Repairs cost | C13: ='WWTP-Capacity & Tech. Selection'!F25 -> 12.2125
A14: ='WWTP-Capacity & Tech. Selection'!G8 -> Chemical Cost | C14: ='WWTP-Capacity & Tech. Selection'!G25 -> 26.5
A15: ='WWTP-Capacity & Tech. Selection'!H8 -> Manpower Cost | C15: ='WWTP-Capacity & Tech. Selection'!H25 -> 4
A17: ='Revenue Earned'!A31 & " (year 1)" -> Annual Revenue (year 1) | C17: ='Revenue Earned'!C31 -> 161.3284543
A18: Annual water sold to agriculture | B18: ='Revenue Earned'!B22 & " MLD" -> 19.2 MLD | C18: ='Revenue Earned'!C27 -> 0
A19: ="Annual water sold to industry (" & TEXT('Economic Analysis'!B22,"0%") & " of treated water being sold)" -> Annual water sold to industry (40% of treated water being sold) | B19: ='Revenue Earned'!B23 & " MLD" -> 12.8 MLD | C19: ='Revenue Earned'!C28 -> 143.8084543
A20: Annual electricity generated/sold | B20: ='Revenue Earned'!C10 & " kWh/d" -> 8000 kWh/d | C20: ='Revenue Earned'!C29 -> 17.52
A21: Annual MAP eq. fertiliser recovered | B21: ='Revenue Earned'!C30/'Revenue Earned'!C15*1000 & " metric ton" -> 0 metric ton | C21: ='Revenue Earned'!C30 -> 0
A23: Payback period (years) | C23: ='Economic Analysis'!B20 -> 10
A24: Tariff for water resale to industry (INR per kl) | C24: ='Economic Analysis'!B27 -> 30.78091916

Sheet SA NPV WSP (hidden)
B2: Scenario Summary
D3: Current Values: | E3: Elec Tariff rate of increase | F3: E1 | G3: E2 | H3: E3 | I3: E4 | J3: Industrial Water sale potential | K3: I1 | L3: I2 | M3: I3 | N3: Land Cost Variation | O3: L1 | P3: L2 | Q3: L3 | R3: L4 | S3: Dist to Industry | T3: D1 | U3: D2 | V3: D3 | W3: D4 | X3: D5 | Y3: D6 | Z3: D7 | AA3: D8 | AB3: D9 | AC3: D10 | AD3: Elec Tariff Variation | AE3: T1 | AF3: T2 | AG3: T3 | AH3: T4 | AI3: Industrial Water Tariff | AJ3: W1 | AK3: W2 | AL3: W3 | AM3: W4
E4: Created by A on 11-05-2016 Modified by A on 11-05-2016 | F4: Created by A on 11-05-2016 Modified by A on 11-05-2016 | G4: Created by A on 11-05-2016 | H4: Created by A on 11-05-2016 | I4: Created by A on 11-05-2016 | J4: Created by A on 11-05-2016 | K4: Created by A on 11-05-2016 | L4: Created by A on 11-05-2016 | M4: Created by A on 11-05-2016 | N4: Created by A on 11-05-2016 | O4: Created by A on 11-05-2016 | P4: Created by A on 11-05-2016 | Q4: Created by A on 11-05-2016 | R4: Created by A on 11-05-2016 | S4: Created by A on 11-05-2016 | T4: Created by A on 11-05-2016 | U4: Created by A on 11-05-2016 | V4: Created by A on 11-05-2016 | W4: Created by A on 11-05-2016 | X4: Created by A on 11-05-2016 | Y4: Created by A on 11-05-2016 | Z4: Created by A on 11-05-2016 | AA4: Created by A on 11-05-2016 | AB4: Created by A on 11-05-2016 | AC4: Created by A on 11-05-2016 | AD4: Created by A on 11-05-2016 Modified by A on 11-05-2016 | AE4: Created by A on 11-05-2016 | AF4: Created by A on 11-05-2016 | AG4: Created by A on 11-05-2016 | AH4: Created by A on 11-05-2016 | AI4: Created by A on 11-05-2016 | AJ4: Created by A on 11-05-2016 | AK4: Created by A on 11-05-2016 | AL4: Created by A on 11-05-2016 | AM4: Created by A on 11-05-2016
B5: Changing Cells:
C6: $B$17 | D6: 0.08 | E6: 0.04 | F6: 0.06 | G6: 0.08 | H6: 0.1 | I6: 0.12 | J6: 0.08 | K6: 0.08 | L6: 0.08 | M6: 0.08 | N6: 0.08 | O6: 0.08 | P6: 0.08 | Q6: 0.08 | R6: 0.08 | S6: 0.08 | T6: 0.08 | U6: 0.08 | V6: 0.08 | W6: 0.08 | X6: 0.08 | Y6: 0.08 | Z6: 0.08 | AA6: 0.08 | AB6: 0.08 | AC6: 0.08 | AD6: 0.08 | AE6: 0.08 | AF6: 0.08 | AG6: 0.08 | AH6: 0.08 | AI6: 0.08 | AJ6: 0.08 | AK6: 0.08 | AL6: 0.08 | AM6: 0.08
C7: $B$22 | D7: 0.5 | E7: 0.5 | F7: 0.5 | G7: 0.5 | H7: 0.5 | I7: 0.5 | J7: 0.25 | K7: 0.5 | L7: 0.75 | M7: 1 | N7: 0.5 | O7: 0.5 | P7: 0.5 | Q7: 0.5 | R7: 0.5 | S7: 0.5 | T7: 0.5 | U7: 0.5 | V7: 0.5 | W7: 0.5 | X7: 0.5 | Y7: 0.5 | Z7: 0.5 | AA7: 0.5 | AB7: 0.5 | AC7: 0.5 | AD7: 0.5 | AE7: 0.5 | AF7: 0.5 | AG7: 0.5 | AH7: 0.5 | AI7: 0.5 | AJ7: 0.5 | AK7: 0.5 | AL7: 0.5 | AM7: 0.5
C8: $B$15 | D8: 1 | E8: 1 | F8: 1 | G8: 1 | H8: 1 | I8: 1 | J8: 1 | K8: 1 | L8: 1 | M8: 1 | N8: 0.5 | O8: 0.75 | P8: 1 | Q8: 1.25 | R8: 1.5 | S8: 1 | T8: 1 | U8: 1 | V8: 1 | W8: 1 | X8: 1 | Y8: 1 | Z8: 1 | AA8: 1 | AB8: 1 | AC8: 1 | AD8: 1 | AE8: 1 | AF8: 1 | AG8: 1 | AH8: 1 | AI8: 1 | AJ8: 1 | AK8: 1 | AL8: 1 | AM8: 1
C9: $B$16 | D9: 1 | E9: 1 | F9: 1 | G9: 1 | H9: 1 | I9: 1 | J9: 1 | K9: 1 | L9: 1 | M9: 1 | N9: 1 | O9: 1 | P9: 1 | Q9: 1 | R9: 1 | S9: 0.5 | T9: 0.75 | U9: 1 | V9: 1.25 | W9: 1.5 | X9: 1.75 | Y9: 2 | Z9: 2.25 | AA9: 2.5 | AB9: 2.75 | AC9: 3 | AD9: 1 | AE9: 1 | AF9: 1 | AG9: 1 | AH9: 1 | AI9: 1 | AJ9: 1 | AK9: 1 | AL9: 1 | AM9: 1
C10: $B$14 | D10: 1 | E10: 1 | F10: 1 | G10: 1 | H10: 1 | I10: 1 | J10: 1 | K10: 1 | L10: 1 | M10: 1 | N10: 1 | O10: 1 | P10: 1 | Q10: 1 | R10: 1 | S10: 1 | T10: 1 | U10: 1 | V10: 1 | W10: 1 | X10: 1 | Y10: 1 | Z10: 1 | AA10: 1 | AB10: 1 | AC10: 1 | AD10: 0.6 | AE10: 0.8 | AF10: 1 | AG10: 1.2 | AH10: 1.4 | AI10: 1 | AJ10: 1 | AK10: 1 | AL10: 1 | AM10: 1
C11: $B$18 | D11: 1 | E11: 1 | F11: 1 | G11: 1 | H11: 1 | I11: 1 | J11: 1 | K11: 1 | L11: 1 | M11: 1 | N11: 1 | O11: 1 | P11: 1 | Q11: 1 | R11: 1 | S11: 1 | T11: 1 | U11: 1 | V11: 1 | W11: 1 | X11: 1 | Y11: 1 | Z11: 1 | AA11: 1 | AB11: 1 | AC11: 1 | AD11: 1 | AE11: 1 | AF11: 1 | AG11: 1 | AH11: 1 | AI11: 0.5 | AJ11: 0.75 | AK11: 1 | AL11: 1.25 | AM11: 1.5
B12: Result Cells:
C13: $B$46 | D13: 2468242668 | E13: 2425791820 | F13: 2445373781 | G13: 2468242668 | H13: 2494985631 | I13: 2526292570 | J13: 634770570.8 | K13: 2468242668 | L13: 4301714766 | M13: 6135186864 | N13: 3013697214 | O13: 2740969941 | P13: 2468242668 | Q13: 2195515396 | R13: 1922788123 | S13: 2472682668 | T13: 2470462668 | U13: 2468242668 | V13: 2466022668 | W13: 2463802668 | X13: 2461582668 | Y13: 2459362668 | Z13: 2457142668 | AA13: 2454922668 | AB13: 2452702668 | AC13: 2450482668 | AD13: 2386304839 | AE13: 2427273754 | AF13: 2468242668 | AG13: 2509211583 | AH13: 2550180498 | AI13: 634770570.8 | AJ13: 1551506620 | AK13: 2468242668 | AL13: 3384978717 | AM13: 4301714766
B14: Notes: Current Values column represents values of changing cells at
B15: time Scenario Summary Report was created. Changing cells for each
B16: scenario are highlighted in gray.

Sheet SA PBP WSP (hidden)
B2: Scenario Summary
D3: Current Values: | E3: Elec Tariff rate of increase | F3: E1 | G3: E2 | H3: E3 | I3: E4 | J3: Industrial Water sale potential | K3: I1 | L3: I2 | M3: I3 | N3: Land Cost Variation | O3: L1 | P3: L2 | Q3: L3 | R3: L4 | S3: Dist to Industry | T3: D1 | U3: D2 | V3: D3 | W3: D4 | X3: D5 | Y3: D6 | Z3: D7 | AA3: D8 | AB3: D9 | AC3: D10 | AD3: Elec Tariff Variation | AE3: T1 | AF3: T2 | AG3: T3 | AH3: T4 | AI3: Industrial Water Tariff | AJ3: W1 | AK3: W2 | AL3: W3 | AM3: W4
E4: Created by A on 11-05-2016 Modified by A on 11-05-2016 | F4: Created by A on 11-05-2016 Modified by A on 11-05-2016 | G4: Created by A on 11-05-2016 | H4: Created by A on 11-05-2016 | I4: Created by A on 11-05-2016 | J4: Created by A on 11-05-2016 | K4: Created by A on 11-05-2016 | L4: Created by A on 11-05-2016 | M4: Created by A on 11-05-2016 | N4: Created by A on 11-05-2016 | O4: Created by A on 11-05-2016 | P4: Created by A on 11-05-2016 | Q4: Created by A on 11-05-2016 | R4: Created by A on 11-05-2016 | S4: Created by A on 11-05-2016 | T4: Created by A on 11-05-2016 | U4: Created by A on 11-05-2016 | V4: Created by A on 11-05-2016 | W4: Created by A on 11-05-2016 | X4: Created by A on 11-05-2016 | Y4: Created by A on 11-05-2016 | Z4: Created by A on 11-05-2016 | AA4: Created by A on 11-05-2016 | AB4: Created by A on 11-05-2016 | AC4: Created by A on 11-05-2016 | AD4: Created by A on 11-05-2016 Modified by A on 11-05-2016 | AE4: Created by A on 11-05-2016 | AF4: Created by A on 11-05-2016 | AG4: Created by A on 11-05-2016 | AH4: Created by A on 11-05-2016 | AI4: Created by A on 11-05-2016 | AJ4: Created by A on 11-05-2016 | AK4: Created by A on 11-05-2016 | AL4: Created by A on 11-05-2016 | AM4: Created by A on 11-05-2016
B5: Changing Cells:
C6: $B$17 | D6: 0.08 | E6: 0.04 | F6: 0.06 | G6: 0.08 | H6: 0.1 | I6: 0.12 | J6: 0.08 | K6: 0.08 | L6: 0.08 | M6: 0.08 | N6: 0.08 | O6: 0.08 | P6: 0.08 | Q6: 0.08 | R6: 0.08 | S6: 0.08 | T6: 0.08 | U6: 0.08 | V6: 0.08 | W6: 0.08 | X6: 0.08 | Y6: 0.08 | Z6: 0.08 | AA6: 0.08 | AB6: 0.08 | AC6: 0.08 | AD6: 0.08 | AE6: 0.08 | AF6: 0.08 | AG6: 0.08 | AH6: 0.08 | AI6: 0.08 | AJ6: 0.08 | AK6: 0.08 | AL6: 0.08 | AM6: 0.08
C7: $B$22 | D7: 0.5 | E7: 0.5 | F7: 0.5 | G7: 0.5 | H7: 0.5 | I7: 0.5 | J7: 0.25 | K7: 0.5 | L7: 0.75 | M7: 1 | N7: 0.5 | O7: 0.5 | P7: 0.5 | Q7: 0.5 | R7: 0.5 | S7: 0.5 | T7: 0.5 | U7: 0.5 | V7: 0.5 | W7: 0.5 | X7: 0.5 | Y7: 0.5 | Z7: 0.5 | AA7: 0.5 | AB7: 0.5 | AC7: 0.5 | AD7: 0.5 | AE7: 0.5 | AF7: 0.5 | AG7: 0.5 | AH7: 0.5 | AI7: 0.5 | AJ7: 0.5 | AK7: 0.5 | AL7: 0.5 | AM7: 0.5
C8: $B$15 | D8: 1 | E8: 1 | F8: 1 | G8: 1 | H8: 1 | I8: 1 | J8: 1 | K8: 1 | L8: 1 | M8: 1 | N8: 0.5 | O8: 0.75 | P8: 1 | Q8: 1.25 | R8: 1.5 | S8: 1 | T8: 1 | U8: 1 | V8: 1 | W8: 1 | X8: 1 | Y8: 1 | Z8: 1 | AA8: 1 | AB8: 1 | AC8: 1 | AD8: 1 | AE8: 1 | AF8: 1 | AG8: 1 | AH8: 1 | AI8: 1 | AJ8: 1 | AK8: 1 | AL8: 1 | AM8: 1
C9: $B$16 | D9: 1 | E9: 1 | F9: 1 | G9: 1 | H9: 1 | I9: 1 | J9: 1 | K9: 1 | L9: 1 | M9: 1 | N9: 1 | O9: 1 | P9: 1 | Q9: 1 | R9: 1 | S9: 0.5 | T9: 0.75 | U9: 1 | V9: 1.25 | W9: 1.5 | X9: 1.75 | Y9: 2 | Z9: 2.25 | AA9: 2.5 | AB9: 2.75 | AC9: 3 | AD9: 1 | AE9: 1 | AF9: 1 | AG9: 1 | AH9: 1 | AI9: 1 | AJ9: 1 | AK9: 1 | AL9: 1 | AM9: 1
C10: $B$14 | D10: 1 | E10: 1 | F10: 1 | G10: 1 | H10: 1 | I10: 1 | J10: 1 | K10: 1 | L10: 1 | M10: 1 | N10: 1 | O10: 1 | P10: 1 | Q10: 1 | R10: 1 | S10: 1 | T10: 1 | U10: 1 | V10: 1 | W10: 1 | X10: 1 | Y10: 1 | Z10: 1 | AA10: 1 | AB10: 1 | AC10: 1 | AD10: 0.6 | AE10: 0.8 | AF10: 1 | AG10: 1.2 | AH10: 1.4 | AI10: 1 | AJ10: 1 | AK10: 1 | AL10: 1 | AM10: 1
C11: $B$18 | D11: 1 | E11: 1 | F11: 1 | G11: 1 | H11: 1 | I11: 1 | J11: 1 | K11: 1 | L11: 1 | M11: 1 | N11: 1 | O11: 1 | P11: 1 | Q11: 1 | R11: 1 | S11: 1 | T11: 1 | U11: 1 | V11: 1 | W11: 1 | X11: 1 | Y11: 1 | Z11: 1 | AA11: 1 | AB11: 1 | AC11: 1 | AD11: 1 | AE11: 1 | AF11: 1 | AG11: 1 | AH11: 1 | AI11: 0.5 | AJ11: 0.75 | AK11: 1 | AL11: 1.25 | AM11: 1.5
B12: Result Cells:
C13: $B$51 | D13: 4.156615336 | E13: 4.169162421 | F13: 4.162953325 | G13: 4.156615336 | H13: 4.150150513 | I13: 4.143561211 | J13: 9.306203303 | K13: 4.156615336 | L13: 2.683432727 | M13: 1.97653281 | N13: 2.281455761 | O13: 3.194247168 | P13: 4.156615336 | Q13: 5.174497955 | R13: 6.254344104 | S13: 4.140197828 | T13: 4.148406582 | U13: 4.156615336 | V13: 4.164824091 | W13: 4.173032845 | X13: 4.181241599 | Y13: 4.189450354 | Z13: 4.197659108 | AA13: 4.205867862 | AB13: 4.214076617 | AC13: 4.222285371 | AD13: 4.249518577 | AE13: 4.202587408 | AF13: 4.156615336 | AG13: 4.111573259 | AH13: 4.067433237 | AI13: 9.306203303 | AJ13: 5.742371332 | AK13: 4.156615336 | AL13: 3.260840979 | AM13: 2.683432727
B14: Notes: Current Values column represents values of changing cells at
B15: time Scenario Summary Report was created. Changing cells for each
B16: scenario are highlighted in gray.

Sheet SA NPV WSP with tertiary (hidden)
B2: Scenario Summary
D3: Current Values: | E3: Elec Tariff rate of increase | F3: E1 | G3: E2 | H3: E3 | I3: E4 | J3: Industrial Water sale potential | K3: I1 | L3: I2 | M3: I3 | N3: Land Cost Variation | O3: L1 | P3: L2 | Q3: L3 | R3: L4 | S3: Dist to Industry | T3: D1 | U3: D2 | V3: D3 | W3: D4 | X3: D5 | Y3: D6 | Z3: D7 | AA3: D8 | AB3: D9 | AC3: D10 | AD3: Elec Tariff Variation | AE3: T1 | AF3: T2 | AG3: T3 | AH3: T4 | AI3: Industrial Water Tariff | AJ3: W1 | AK3: W2 | AL3: W3 | AM3: W4
E4: Created by A on 11-05-2016 Modified by A on 11-05-2016 | F4: Created by A on 11-05-2016 Modified by A on 11-05-2016 | G4: Created by A on 11-05-2016 | H4: Created by A on 11-05-2016 | I4: Created by A on 11-05-2016 | J4: Created by A on 11-05-2016 | K4: Created by A on 11-05-2016 | L4: Created by A on 11-05-2016 | M4: Created by A on 11-05-2016 | N4: Created by A on 11-05-2016 | O4: Created by A on 11-05-2016 | P4: Created by A on 11-05-2016 | Q4: Created by A on 11-05-2016 | R4: Created by A on 11-05-2016 | S4: Created by A on 11-05-2016 | T4: Created by A on 11-05-2016 | U4: Created by A on 11-05-2016 | V4: Created by A on 11-05-2016 | W4: Created by A on 11-05-2016 | X4: Created by A on 11-05-2016 | Y4: Created by A on 11-05-2016 | Z4: Created by A on 11-05-2016 | AA4: Created by A on 11-05-2016 | AB4: Created by A on 11-05-2016 | AC4: Created by A on 11-05-2016 | AD4: Created by A on 11-05-2016 Modified by A on 11-05-2016 | AE4: Created by A on 11-05-2016 | AF4: Created by A on 11-05-2016 | AG4: Created by A on 11-05-2016 | AH4: Created by A on 11-05-2016 | AI4: Created by A on 11-05-2016 | AJ4: Created by A on 11-05-2016 | AK4: Created by A on 11-05-2016 | AL4: Created by A on 11-05-2016 | AM4: Created by A on 11-05-2016
B5: Changing Cells:
C6: $B$17 | D6: 0.08 | E6: 0.04 | F6: 0.06 | G6: 0.08 | H6: 0.1 | I6: 0.12 | J6: 0.08 | K6: 0.08 | L6: 0.08 | M6: 0.08 | N6: 0.08 | O6: 0.08 | P6: 0.08 | Q6: 0.08 | R6: 0.08 | S6: 0.08 | T6: 0.08 | U6: 0.08 | V6: 0.08 | W6: 0.08 | X6: 0.08 | Y6: 0.08 | Z6: 0.08 | AA6: 0.08 | AB6: 0.08 | AC6: 0.08 | AD6: 0.08 | AE6: 0.08 | AF6: 0.08 | AG6: 0.08 | AH6: 0.08 | AI6: 0.08 | AJ6: 0.08 | AK6: 0.08 | AL6: 0.08 | AM6: 0.08
C7: $B$22 | D7: 0.5 | E7: 0.5 | F7: 0.5 | G7: 0.5 | H7: 0.5 | I7: 0.5 | J7: 0.25 | K7: 0.5 | L7: 0.75 | M7: 1 | N7: 0.5 | O7: 0.5 | P7: 0.5 | Q7: 0.5 | R7: 0.5 | S7: 0.5 | T7: 0.5 | U7: 0.5 | V7: 0.5 | W7: 0.5 | X7: 0.5 | Y7: 0.5 | Z7: 0.5 | AA7: 0.5 | AB7: 0.5 | AC7: 0.5 | AD7: 0.5 | AE7: 0.5 | AF7: 0.5 | AG7: 0.5 | AH7: 0.5 | AI7: 0.5 | AJ7: 0.5 | AK7: 0.5 | AL7: 0.5 | AM7: 0.5
C8: $B$15 | D8: 1 | E8: 1 | F8: 1 | G8: 1 | H8: 1 | I8: 1 | J8: 1 | K8: 1 | L8: 1 | M8: 1 | N8: 0.5 | O8: 0.75 | P8: 1 | Q8: 1.25 | R8: 1.5 | S8: 1 | T8: 1 | U8: 1 | V8: 1 | W8: 1 | X8: 1 | Y8: 1 | Z8: 1 | AA8: 1 | AB8: 1 | AC8: 1 | AD8: 1 | AE8: 1 | AF8: 1 | AG8: 1 | AH8: 1 | AI8: 1 | AJ8: 1 | AK8: 1 | AL8: 1 | AM8: 1
C9: $B$16 | D9: 1 | E9: 1 | F9: 1 | G9: 1 | H9: 1 | I9: 1 | J9: 1 | K9: 1 | L9: 1 | M9: 1 | N9: 1 | O9: 1 | P9: 1 | Q9: 1 | R9: 1 | S9: 0.5 | T9: 0.75 | U9: 1 | V9: 1.25 | W9: 1.5 | X9: 1.75 | Y9: 2 | Z9: 2.25 | AA9: 2.5 | AB9: 2.75 | AC9: 3 | AD9: 1 | AE9: 1 | AF9: 1 | AG9: 1 | AH9: 1 | AI9: 1 | AJ9: 1 | AK9: 1 | AL9: 1 | AM9: 1
C10: $B$14 | D10: 1 | E10: 1 | F10: 1 | G10: 1 | H10: 1 | I10: 1 | J10: 1 | K10: 1 | L10: 1 | M10: 1 | N10: 1 | O10: 1 | P10: 1 | Q10: 1 | R10: 1 | S10: 1 | T10: 1 | U10: 1 | V10: 1 | W10: 1 | X10: 1 | Y10: 1 | Z10: 1 | AA10: 1 | AB10: 1 | AC10: 1 | AD10: 0.6 | AE10: 0.8 | AF10: 1 | AG10: 1.2 | AH10: 1.4 | AI10: 1 | AJ10: 1 | AK10: 1 | AL10: 1 | AM10: 1
C11: $B$18 | D11: 1 | E11: 1 | F11: 1 | G11: 1 | H11: 1 | I11: 1 | J11: 1 | K11: 1 | L11: 1 | M11: 1 | N11: 1 | O11: 1 | P11: 1 | Q11: 1 | R11: 1 | S11: 1 | T11: 1 | U11: 1 | V11: 1 | W11: 1 | X11: 1 | Y11: 1 | Z11: 1 | AA11: 1 | AB11: 1 | AC11: 1 | AD11: 1 | AE11: 1 | AF11: 1 | AG11: 1 | AH11: 1 | AI11: 0.5 | AJ11: 0.75 | AK11: 1 | AL11: 1.25 | AM11: 1.5
B12: Result Cells:
C13: $B$46 | D13: 1162953858 | E13: 1120837981 | F13: 1140265425 | G13: 1162953858 | H13: 1189485796 | I13: 1220545697 | J13: -303823820.4 | K13: 1162953858 | L13: 2629731536 | M13: 4096509214 | N13: 1717499312 | O13: 1440226585 | P13: 1162953858 | Q13: 885681130.4 | R13: 608408403.2 | S13: 1167393858 | T13: 1165173858 | U13: 1162953858 | V13: 1160733858 | W13: 1158513858 | X13: 1156293858 | Y13: 1154073858 | Z13: 1151853858 | AA13: 1149633858 | AB13: 1147413858 | AC13: 1145193858 | AD13: 1081648346 | AE13: 1122301102 | AF13: 1162953858 | AG13: 1203606613 | AH13: 1244259369 | AI13: -303823820.4 | AJ13: 429565018.6 | AK13: 1162953858 | AL13: 1896342697 | AM13: 2629731536
B14: Notes: Current Values column represents values of changing cells at
B15: time Scenario Summary Report was created. Changing cells for each
B16: scenario are highlighted in gray.

Sheet SA PBP WSP with tertiary (hidden)
B2: Scenario Summary
D3: Current Values: | E3: Elec Tariff rate of increase | F3: E1 | G3: E2 | H3: E3 | I3: E4 | J3: Industrial Water sale potential | K3: I1 | L3: I2 | M3: I3 | N3: Land Cost Variation | O3: L1 | P3: L2 | Q3: L3 | R3: L4 | S3: Dist to Industry | T3: D1 | U3: D2 | V3: D3 | W3: D4 | X3: D5 | Y3: D6 | Z3: D7 | AA3: D8 | AB3: D9 | AC3: D10 | AD3: Elec Tariff Variation | AE3: T1 | AF3: T2 | AG3: T3 | AH3: T4 | AI3: Industrial Water Tariff | AJ3: W1 | AK3: W2 | AL3: W3 | AM3: W4
E4: Created by A on 11-05-2016 Modified by A on 11-05-2016 | F4: Created by A on 11-05-2016 Modified by A on 11-05-2016 | G4: Created by A on 11-05-2016 | H4: Created by A on 11-05-2016 | I4: Created by A on 11-05-2016 | J4: Created by A on 11-05-2016 | K4: Created by A on 11-05-2016 | L4: Created by A on 11-05-2016 | M4: Created by A on 11-05-2016 | N4: Created by A on 11-05-2016 | O4: Created by A on 11-05-2016 | P4: Created by A on 11-05-2016 | Q4: Created by A on 11-05-2016 | R4: Created by A on 11-05-2016 | S4: Created by A on 11-05-2016 | T4: Created by A on 11-05-2016 | U4: Created by A on 11-05-2016 | V4: Created by A on 11-05-2016 | W4: Created by A on 11-05-2016 | X4: Created by A on 11-05-2016 | Y4: Created by A on 11-05-2016 | Z4: Created by A on 11-05-2016 | AA4: Created by A on 11-05-2016 | AB4: Created by A on 11-05-2016 | AC4: Created by A on 11-05-2016 | AD4: Created by A on 11-05-2016 Modified by A on 11-05-2016 | AE4: Created by A on 11-05-2016 | AF4: Created by A on 11-05-2016 | AG4: Created by A on 11-05-2016 | AH4: Created by A on 11-05-2016 | AI4: Created by A on 11-05-2016 | AJ4: Created by A on 11-05-2016 | AK4: Created by A on 11-05-2016 | AL4: Created by A on 11-05-2016 | AM4: Created by A on 11-05-2016
B5: Changing Cells:
C6: $B$17 | D6: 0.08 | E6: 0.04 | F6: 0.06 | G6: 0.08 | H6: 0.1 | I6: 0.12 | J6: 0.08 | K6: 0.08 | L6: 0.08 | M6: 0.08 | N6: 0.08 | O6: 0.08 | P6: 0.08 | Q6: 0.08 | R6: 0.08 | S6: 0.08 | T6: 0.08 | U6: 0.08 | V6: 0.08 | W6: 0.08 | X6: 0.08 | Y6: 0.08 | Z6: 0.08 | AA6: 0.08 | AB6: 0.08 | AC6: 0.08 | AD6: 0.08 | AE6: 0.08 | AF6: 0.08 | AG6: 0.08 | AH6: 0.08 | AI6: 0.08 | AJ6: 0.08 | AK6: 0.08 | AL6: 0.08 | AM6: 0.08
C7: $B$22 | D7: 0.5 | E7: 0.5 | F7: 0.5 | G7: 0.5 | H7: 0.5 | I7: 0.5 | J7: 0.25 | K7: 0.5 | L7: 0.75 | M7: 1 | N7: 0.5 | O7: 0.5 | P7: 0.5 | Q7: 0.5 | R7: 0.5 | S7: 0.5 | T7: 0.5 | U7: 0.5 | V7: 0.5 | W7: 0.5 | X7: 0.5 | Y7: 0.5 | Z7: 0.5 | AA7: 0.5 | AB7: 0.5 | AC7: 0.5 | AD7: 0.5 | AE7: 0.5 | AF7: 0.5 | AG7: 0.5 | AH7: 0.5 | AI7: 0.5 | AJ7: 0.5 | AK7: 0.5 | AL7: 0.5 | AM7: 0.5
C8: $B$15 | D8: 1 | E8: 1 | F8: 1 | G8: 1 | H8: 1 | I8: 1 | J8: 1 | K8: 1 | L8: 1 | M8: 1 | N8: 0.5 | O8: 0.75 | P8: 1 | Q8: 1.25 | R8: 1.5 | S8: 1 | T8: 1 | U8: 1 | V8: 1 | W8: 1 | X8: 1 | Y8: 1 | Z8: 1 | AA8: 1 | AB8: 1 | AC8: 1 | AD8: 1 | AE8: 1 | AF8: 1 | AG8: 1 | AH8: 1 | AI8: 1 | AJ8: 1 | AK8: 1 | AL8: 1 | AM8: 1
C9: $B$16 | D9: 1 | E9: 1 | F9: 1 | G9: 1 | H9: 1 | I9: 1 | J9: 1 | K9: 1 | L9: 1 | M9: 1 | N9: 1 | O9: 1 | P9: 1 | Q9: 1 | R9: 1 | S9: 0.5 | T9: 0.75 | U9: 1 | V9: 1.25 | W9: 1.5 | X9: 1.75 | Y9: 2 | Z9: 2.25 | AA9: 2.5 | AB9: 2.75 | AC9: 3 | AD9: 1 | AE9: 1 | AF9: 1 | AG9: 1 | AH9: 1 | AI9: 1 | AJ9: 1 | AK9: 1 | AL9: 1 | AM9: 1
C10: $B$14 | D10: 1 | E10: 1 | F10: 1 | G10: 1 | H10: 1 | I10: 1 | J10: 1 | K10: 1 | L10: 1 | M10: 1 | N10: 1 | O10: 1 | P10: 1 | Q10: 1 | R10: 1 | S10: 1 | T10: 1 | U10: 1 | V10: 1 | W10: 1 | X10: 1 | Y10: 1 | Z10: 1 | AA10: 1 | AB10: 1 | AC10: 1 | AD10: 0.6 | AE10: 0.8 | AF10: 1 | AG10: 1.2 | AH10: 1.4 | AI10: 1 | AJ10: 1 | AK10: 1 | AL10: 1 | AM10: 1
C11: $B$18 | D11: 1 | E11: 1 | F11: 1 | G11: 1 | H11: 1 | I11: 1 | J11: 1 | K11: 1 | L11: 1 | M11: 1 | N11: 1 | O11: 1 | P11: 1 | Q11: 1 | R11: 1 | S11: 1 | T11: 1 | U11: 1 | V11: 1 | W11: 1 | X11: 1 | Y11: 1 | Z11: 1 | AA11: 1 | AB11: 1 | AC11: 1 | AD11: 1 | AE11: 1 | AF11: 1 | AG11: 1 | AH11: 1 | AI11: 0.5 | AJ11: 0.75 | AK11: 1 | AL11: 1.25 | AM11: 1.5
B12: Result Cells:
C13: $B$51 | D13: 7.42158084 | E13: 7.490499421 | F13: 7.456887873 | G13: 7.42158084 | H13: 7.384589937 | I13: 7.345943899 | J13: 0 | K13: 7.42158084 | L13: 4.409375996 | M13: 3.137048217 | N13: 4.291306342 | O13: 5.787349386 | P13: 7.42158084 | Q13: 9.213549637 | R13: 11.20495861 | S13: 7.394103968 | T13: 7.407842404 | U13: 7.42158084 | V13: 7.435319276 | W13: 7.449057713 | X13: 7.462796149 | Y13: 7.476534585 | Z13: 7.490273021 | AA13: 7.504011457 | AB13: 7.517749894 | AC13: 7.53148833 | AD13: 7.687828221 | AE13: 7.552597155 | AF13: 7.42158084 | AG13: 7.294585259 | AH13: 7.171428121 | AI13: 0 | AJ13: 11.33002939 | AK13: 7.42158084 | AL13: 5.529739219 | AM13: 4.409375996
B14: Notes: Current Values column represents values of changing cells at
B15: time Scenario Summary Report was created. Changing cells for each
B16: scenario are highlighted in gray.

Sheet SA NPV ASP (hidden)
B2: Scenario Summary
D3: Current Values: | E3: Elec Tariff rate of increase | F3: E1 | G3: E2 | H3: E3 | I3: E4 | J3: Industrial Water sale potential | K3: I1 | L3: I2 | M3: I3 | N3: Land Cost Variation | O3: L1 | P3: L2 | Q3: L3 | R3: L4 | S3: Dist to Industry | T3: D1 | U3: D2 | V3: D3 | W3: D4 | X3: D5 | Y3: D6 | Z3: D7 | AA3: D8 | AB3: D9 | AC3: D10 | AD3: Elec Tariff Variation | AE3: T1 | AF3: T2 | AG3: T3 | AH3: T4 | AI3: Industrial Water Tariff | AJ3: W1 | AK3: W2 | AL3: W3 | AM3: W4
E4: Created by A on 11-05-2016 Modified by A on 11-05-2016 | F4: Created by A on 11-05-2016 Modified by A on 11-05-2016 | G4: Created by A on 11-05-2016 | H4: Created by A on 11-05-2016 | I4: Created by A on 11-05-2016 | J4: Created by A on 11-05-2016 | K4: Created by A on 11-05-2016 | L4: Created by A on 11-05-2016 | M4: Created by A on 11-05-2016 | N4: Created by A on 11-05-2016 | O4: Created by A on 11-05-2016 | P4: Created by A on 11-05-2016 | Q4: Created by A on 11-05-2016 | R4: Created by A on 11-05-2016 | S4: Created by A on 11-05-2016 | T4: Created by A on 11-05-2016 | U4: Created by A on 11-05-2016 | V4: Created by A on 11-05-2016 | W4: Created by A on 11-05-2016 | X4: Created by A on 11-05-2016 | Y4: Created by A on 11-05-2016 | Z4: Created by A on 11-05-2016 | AA4: Created by A on 11-05-2016 | AB4: Created by A on 11-05-2016 | AC4: Created by A on 11-05-2016 | AD4: Created by A on 11-05-2016 Modified by A on 11-05-2016 | AE4: Created by A on 11-05-2016 | AF4: Created by A on 11-05-2016 | AG4: Created by A on 11-05-2016 | AH4: Created by A on 11-05-2016 | AI4: Created by A on 11-05-2016 | AJ4: Created by A on 11-05-2016 | AK4: Created by A on 11-05-2016 | AL4: Created by A on 11-05-2016 | AM4: Created by A on 11-05-2016
B5: Changing Cells:
C6: $B$17 | D6: 0.08 | E6: 0.04 | F6: 0.06 | G6: 0.08 | H6: 0.1 | I6: 0.12 | J6: 0.08 | K6: 0.08 | L6: 0.08 | M6: 0.08 | N6: 0.08 | O6: 0.08 | P6: 0.08 | Q6: 0.08 | R6: 0.08 | S6: 0.08 | T6: 0.08 | U6: 0.08 | V6: 0.08 | W6: 0.08 | X6: 0.08 | Y6: 0.08 | Z6: 0.08 | AA6: 0.08 | AB6: 0.08 | AC6: 0.08 | AD6: 0.08 | AE6: 0.08 | AF6: 0.08 | AG6: 0.08 | AH6: 0.08 | AI6: 0.08 | AJ6: 0.08 | AK6: 0.08 | AL6: 0.08 | AM6: 0.08
C7: $B$22 | D7: 0.5 | E7: 0.5 | F7: 0.5 | G7: 0.5 | H7: 0.5 | I7: 0.5 | J7: 0.25 | K7: 0.5 | L7: 0.75 | M7: 1 | N7: 0.5 | O7: 0.5 | P7: 0.5 | Q7: 0.5 | R7: 0.5 | S7: 0.5 | T7: 0.5 | U7: 0.5 | V7: 0.5 | W7: 0.5 | X7: 0.5 | Y7: 0.5 | Z7: 0.5 | AA7: 0.5 | AB7: 0.5 | AC7: 0.5 | AD7: 0.5 | AE7: 0.5 | AF7: 0.5 | AG7: 0.5 | AH7: 0.5 | AI7: 0.5 | AJ7: 0.5 | AK7: 0.5 | AL7: 0.5 | AM7: 0.5
C8: $B$15 | D8: 1 | E8: 1 | F8: 1 | G8: 1 | H8: 1 | I8: 1 | J8: 1 | K8: 1 | L8: 1 | M8: 1 | N8: 0.5 | O8: 0.75 | P8: 1 | Q8: 1.25 | R8: 1.5 | S8: 1 | T8: 1 | U8: 1 | V8: 1 | W8: 1 | X8: 1 | Y8: 1 | Z8: 1 | AA8: 1 | AB8: 1 | AC8: 1 | AD8: 1 | AE8: 1 | AF8: 1 | AG8: 1 | AH8: 1 | AI8: 1 | AJ8: 1 | AK8: 1 | AL8: 1 | AM8: 1
C9: $B$16 | D9: 1 | E9: 1 | F9: 1 | G9: 1 | H9: 1 | I9: 1 | J9: 1 | K9: 1 | L9: 1 | M9: 1 | N9: 1 | O9: 1 | P9: 1 | Q9: 1 | R9: 1 | S9: 0.5 | T9: 0.75 | U9: 1 | V9: 1.25 | W9: 1.5 | X9: 1.75 | Y9: 2 | Z9: 2.25 | AA9: 2.5 | AB9: 2.75 | AC9: 3 | AD9: 1 | AE9: 1 | AF9: 1 | AG9: 1 | AH9: 1 | AI9: 1 | AJ9: 1 | AK9: 1 | AL9: 1 | AM9: 1
C10: $B$14 | D10: 1 | E10: 1 | F10: 1 | G10: 1 | H10: 1 | I10: 1 | J10: 1 | K10: 1 | L10: 1 | M10: 1 | N10: 1 | O10: 1 | P10: 1 | Q10: 1 | R10: 1 | S10: 1 | T10: 1 | U10: 1 | V10: 1 | W10: 1 | X10: 1 | Y10: 1 | Z10: 1 | AA10: 1 | AB10: 1 | AC10: 1 | AD10: 0.6 | AE10: 0.8 | AF10: 1 | AG10: 1.2 | AH10: 1.4 | AI10: 1 | AJ10: 1 | AK10: 1 | AL10: 1 | AM10: 1
C11: $B$18 | D11: 1 | E11: 1 | F11: 1 | G11: 1 | H11: 1 | I11: 1 | J11: 1 | K11: 1 | L11: 1 | M11: 1 | N11: 1 | O11: 1 | P11: 1 | Q11: 1 | R11: 1 | S11: 1 | T11: 1 | U11: 1 | V11: 1 | W11: 1 | X11: 1 | Y11: 1 | Z11: 1 | AA11: 1 | AB11: 1 | AC11: 1 | AD11: 1 | AE11: 1 | AF11: 1 | AG11: 1 | AH11: 1 | AI11: 0.5 | AJ11: 0.75 | AK11: 1 | AL11: 1.25 | AM11: 1.5
B12: Result Cells:
C13: $B$46 | D13: 2910793179 | E13: 2918588166 | F13: 2914992451 | G13: 2910793179 | H13: 2905882533 | I13: 2900133833 | J13: 1077321081 | K13: 2910793179 | L13: 4744265276 | M13: 6577737374 | N13: 2992611360 | O13: 2951702270 | P13: 2910793179 | Q13: 2869884088 | R13: 2828974997 | S13: 2915233179 | T13: 2913013179 | U13: 2910793179 | V13: 2908573179 | W13: 2906353179 | X13: 2904133179 | Y13: 2901913179 | Z13: 2899693179 | AA13: 2897473179 | AB13: 2895253179 | AC13: 2893033179 | AD13: 2923702997 | AE13: 2917248088 | AF13: 2910793179 | AG13: 2904338269 | AH13: 2897883360 | AI13: 1077321081 | AJ13: 1994057130 | AK13: 2910793179 | AL13: 3827529227 | AM13: 4744265276
B14: Notes: Current Values column represents values of changing cells at
B15: time Scenario Summary Report was created. Changing cells for each
B16: scenario are highlighted in gray.

Sheet SA PBP ASP (hidden)
B2: Scenario Summary
D3: Current Values: | E3: Elec Tariff rate of increase | F3: E1 | G3: E2 | H3: E3 | I3: E4 | J3: Industrial Water sale potential | K3: I1 | L3: I2 | M3: I3 | N3: Land Cost Variation | O3: L1 | P3: L2 | Q3: L3 | R3: L4 | S3: Dist to Industry | T3: D1 | U3: D2 | V3: D3 | W3: D4 | X3: D5 | Y3: D6 | Z3: D7 | AA3: D8 | AB3: D9 | AC3: D10 | AD3: Elec Tariff Variation | AE3: T1 | AF3: T2 | AG3: T3 | AH3: T4 | AI3: Industrial Water Tariff | AJ3: W1 | AK3: W2 | AL3: W3 | AM3: W4
E4: Created by A on 11-05-2016 Modified by A on 11-05-2016 | F4: Created by A on 11-05-2016 Modified by A on 11-05-2016 | G4: Created by A on 11-05-2016 | H4: Created by A on 11-05-2016 | I4: Created by A on 11-05-2016 | J4: Created by A on 11-05-2016 | K4: Created by A on 11-05-2016 | L4: Created by A on 11-05-2016 | M4: Created by A on 11-05-2016 | N4: Created by A on 11-05-2016 | O4: Created by A on 11-05-2016 | P4: Created by A on 11-05-2016 | Q4: Created by A on 11-05-2016 | R4: Created by A on 11-05-2016 | S4: Created by A on 11-05-2016 | T4: Created by A on 11-05-2016 | U4: Created by A on 11-05-2016 | V4: Created by A on 11-05-2016 | W4: Created by A on 11-05-2016 | X4: Created by A on 11-05-2016 | Y4: Created by A on 11-05-2016 | Z4: Created by A on 11-05-2016 | AA4: Created by A on 11-05-2016 | AB4: Created by A on 11-05-2016 | AC4: Created by A on 11-05-2016 | AD4: Created by A on 11-05-2016 Modified by A on 11-05-2016 | AE4: Created by A on 11-05-2016 | AF4: Created by A on 11-05-2016 | AG4: Created by A on 11-05-2016 | AH4: Created by A on 11-05-2016 | AI4: Created by A on 11-05-2016 | AJ4: Created by A on 11-05-2016 | AK4: Created by A on 11-05-2016 | AL4: Created by A on 11-05-2016 | AM4: Created by A on 11-05-2016
B5: Changing Cells:
C6: $B$17 | D6: 0.08 | E6: 0.04 | F6: 0.06 | G6: 0.08 | H6: 0.1 | I6: 0.12 | J6: 0.08 | K6: 0.08 | L6: 0.08 | M6: 0.08 | N6: 0.08 | O6: 0.08 | P6: 0.08 | Q6: 0.08 | R6: 0.08 | S6: 0.08 | T6: 0.08 | U6: 0.08 | V6: 0.08 | W6: 0.08 | X6: 0.08 | Y6: 0.08 | Z6: 0.08 | AA6: 0.08 | AB6: 0.08 | AC6: 0.08 | AD6: 0.08 | AE6: 0.08 | AF6: 0.08 | AG6: 0.08 | AH6: 0.08 | AI6: 0.08 | AJ6: 0.08 | AK6: 0.08 | AL6: 0.08 | AM6: 0.08
C7: $B$22 | D7: 0.5 | E7: 0.5 | F7: 0.5 | G7: 0.5 | H7: 0.5 | I7: 0.5 | J7: 0.25 | K7: 0.5 | L7: 0.75 | M7: 1 | N7: 0.5 | O7: 0.5 | P7: 0.5 | Q7: 0.5 | R7: 0.5 | S7: 0.5 | T7: 0.5 | U7: 0.5 | V7: 0.5 | W7: 0.5 | X7: 0.5 | Y7: 0.5 | Z7: 0.5 | AA7: 0.5 | AB7: 0.5 | AC7: 0.5 | AD7: 0.5 | AE7: 0.5 | AF7: 0.5 | AG7: 0.5 | AH7: 0.5 | AI7: 0.5 | AJ7: 0.5 | AK7: 0.5 | AL7: 0.5 | AM7: 0.5
C8: $B$15 | D8: 1 | E8: 1 | F8: 1 | G8: 1 | H8: 1 | I8: 1 | J8: 1 | K8: 1 | L8: 1 | M8: 1 | N8: 0.5 | O8: 0.75 | P8: 1 | Q8: 1.25 | R8: 1.5 | S8: 1 | T8: 1 | U8: 1 | V8: 1 | W8: 1 | X8: 1 | Y8: 1 | Z8: 1 | AA8: 1 | AB8: 1 | AC8: 1 | AD8: 1 | AE8: 1 | AF8: 1 | AG8: 1 | AH8: 1 | AI8: 1 | AJ8: 1 | AK8: 1 | AL8: 1 | AM8: 1
C9: $B$16 | D9: 1 | E9: 1 | F9: 1 | G9: 1 | H9: 1 | I9: 1 | J9: 1 | K9: 1 | L9: 1 | M9: 1 | N9: 1 | O9: 1 | P9: 1 | Q9: 1 | R9: 1 | S9: 0.5 | T9: 0.75 | U9: 1 | V9: 1.25 | W9: 1.5 | X9: 1.75 | Y9: 2 | Z9: 2.25 | AA9: 2.5 | AB9: 2.75 | AC9: 3 | AD9: 1 | AE9: 1 | AF9: 1 | AG9: 1 | AH9: 1 | AI9: 1 | AJ9: 1 | AK9: 1 | AL9: 1 | AM9: 1
C10: $B$14 | D10: 1 | E10: 1 | F10: 1 | G10: 1 | H10: 1 | I10: 1 | J10: 1 | K10: 1 | L10: 1 | M10: 1 | N10: 1 | O10: 1 | P10: 1 | Q10: 1 | R10: 1 | S10: 1 | T10: 1 | U10: 1 | V10: 1 | W10: 1 | X10: 1 | Y10: 1 | Z10: 1 | AA10: 1 | AB10: 1 | AC10: 1 | AD10: 0.6 | AE10: 0.8 | AF10: 1 | AG10: 1.2 | AH10: 1.4 | AI10: 1 | AJ10: 1 | AK10: 1 | AL10: 1 | AM10: 1
C11: $B$18 | D11: 1 | E11: 1 | F11: 1 | G11: 1 | H11: 1 | I11: 1 | J11: 1 | K11: 1 | L11: 1 | M11: 1 | N11: 1 | O11: 1 | P11: 1 | Q11: 1 | R11: 1 | S11: 1 | T11: 1 | U11: 1 | V11: 1 | W11: 1 | X11: 1 | Y11: 1 | Z11: 1 | AA11: 1 | AB11: 1 | AC11: 1 | AD11: 1 | AE11: 1 | AF11: 1 | AG11: 1 | AH11: 1 | AI11: 0.5 | AJ11: 0.75 | AK11: 1 | AL11: 1.25 | AM11: 1.5
B12: Result Cells:
C13: $B$51 | D13: 1.833402757 | E13: 1.833123618 | F13: 1.833263164 | G13: 1.833402757 | H13: 1.833542397 | I13: 1.833682084 | J13: 4.107368394 | K13: 1.833402757 | L13: 1.182251336 | M13: 0 | N13: 1.55946637 | O13: 1.696434564 | P13: 1.833402757 | Q13: 1.970370951 | R13: 2.113676538 | S13: 1.818537143 | T13: 1.82596995 | U13: 1.833402757 | V13: 1.840835564 | W13: 1.848268372 | X13: 1.855701179 | Y13: 1.863133986 | Z13: 1.870566794 | AA13: 1.877999601 | AB13: 1.885432408 | AC13: 1.892865216 | AD13: 1.827509362 | AE13: 1.830451389 | AF13: 1.833402757 | AG13: 1.83636351 | AH13: 1.839333692 | AI13: 4.107368394 | AJ13: 2.536624365 | AK13: 1.833402757 | AL13: 1.440140175 | AM13: 1.182251336
B14: Notes: Current Values column represents values of changing cells at
B15: time Scenario Summary Report was created. Changing cells for each
B16: scenario are highlighted in gray.

Sheet SA NPV ASP with tertiary (hidden)
B2: Scenario Summary
D3: Current Values: | E3: Elec Tariff rate of increase | F3: E1 | G3: E2 | H3: E3 | I3: E4 | J3: Industrial Water sale potential | K3: I1 | L3: I2 | M3: I3 | N3: Land Cost Variation | O3: L1 | P3: L2 | Q3: L3 | R3: L4 | S3: Dist to Industry | T3: D1 | U3: D2 | V3: D3 | W3: D4 | X3: D5 | Y3: D6 | Z3: D7 | AA3: D8 | AB3: D9 | AC3: D10 | AD3: Elec Tariff Variation | AE3: T1 | AF3: T2 | AG3: T3 | AH3: T4 | AI3: Industrial Water Tariff | AJ3: W1 | AK3: W2 | AL3: W3 | AM3: W4
E4: Created by A on 11-05-2016 Modified by A on 11-05-2016 | F4: Created by A on 11-05-2016 Modified by A on 11-05-2016 | G4: Created by A on 11-05-2016 | H4: Created by A on 11-05-2016 | I4: Created by A on 11-05-2016 | J4: Created by A on 11-05-2016 | K4: Created by A on 11-05-2016 | L4: Created by A on 11-05-2016 | M4: Created by A on 11-05-2016 | N4: Created by A on 11-05-2016 | O4: Created by A on 11-05-2016 | P4: Created by A on 11-05-2016 | Q4: Created by A on 11-05-2016 | R4: Created by A on 11-05-2016 | S4: Created by A on 11-05-2016 | T4: Created by A on 11-05-2016 | U4: Created by A on 11-05-2016 | V4: Created by A on 11-05-2016 | W4: Created by A on 11-05-2016 | X4: Created by A on 11-05-2016 | Y4: Created by A on 11-05-2016 | Z4: Created by A on 11-05-2016 | AA4: Created by A on 11-05-2016 | AB4: Created by A on 11-05-2016 | AC4: Created by A on 11-05-2016 | AD4: Created by A on 11-05-2016 Modified by A on 11-05-2016 | AE4: Created by A on 11-05-2016 | AF4: Created by A on 11-05-2016 | AG4: Created by A on 11-05-2016 | AH4: Created by A on 11-05-2016 | AI4: Created by A on 11-05-2016 | AJ4: Created by A on 11-05-2016 | AK4: Created by A on 11-05-2016 | AL4: Created by A on 11-05-2016 | AM4: Created by A on 11-05-2016
B5: Changing Cells:
C6: $B$17 | D6: 0.08 | E6: 0.04 | F6: 0.06 | G6: 0.08 | H6: 0.1 | I6: 0.12 | J6: 0.08 | K6: 0.08 | L6: 0.08 | M6: 0.08 | N6: 0.08 | O6: 0.08 | P6: 0.08 | Q6: 0.08 | R6: 0.08 | S6: 0.08 | T6: 0.08 | U6: 0.08 | V6: 0.08 | W6: 0.08 | X6: 0.08 | Y6: 0.08 | Z6: 0.08 | AA6: 0.08 | AB6: 0.08 | AC6: 0.08 | AD6: 0.08 | AE6: 0.08 | AF6: 0.08 | AG6: 0.08 | AH6: 0.08 | AI6: 0.08 | AJ6: 0.08 | AK6: 0.08 | AL6: 0.08 | AM6: 0.08
C7: $B$22 | D7: 0.5 | E7: 0.5 | F7: 0.5 | G7: 0.5 | H7: 0.5 | I7: 0.5 | J7: 0.25 | K7: 0.5 | L7: 0.75 | M7: 1 | N7: 0.5 | O7: 0.5 | P7: 0.5 | Q7: 0.5 | R7: 0.5 | S7: 0.5 | T7: 0.5 | U7: 0.5 | V7: 0.5 | W7: 0.5 | X7: 0.5 | Y7: 0.5 | Z7: 0.5 | AA7: 0.5 | AB7: 0.5 | AC7: 0.5 | AD7: 0.5 | AE7: 0.5 | AF7: 0.5 | AG7: 0.5 | AH7: 0.5 | AI7: 0.5 | AJ7: 0.5 | AK7: 0.5 | AL7: 0.5 | AM7: 0.5
C8: $B$15 | D8: 1 | E8: 1 | F8: 1 | G8: 1 | H8: 1 | I8: 1 | J8: 1 | K8: 1 | L8: 1 | M8: 1 | N8: 0.5 | O8: 0.75 | P8: 1 | Q8: 1.25 | R8: 1.5 | S8: 1 | T8: 1 | U8: 1 | V8: 1 | W8: 1 | X8: 1 | Y8: 1 | Z8: 1 | AA8: 1 | AB8: 1 | AC8: 1 | AD8: 1 | AE8: 1 | AF8: 1 | AG8: 1 | AH8: 1 | AI8: 1 | AJ8: 1 | AK8: 1 | AL8: 1 | AM8: 1
C9: $B$16 | D9: 1 | E9: 1 | F9: 1 | G9: 1 | H9: 1 | I9: 1 | J9: 1 | K9: 1 | L9: 1 | M9: 1 | N9: 1 | O9: 1 | P9: 1 | Q9: 1 | R9: 1 | S9: 0.5 | T9: 0.75 | U9: 1 | V9: 1.25 | W9: 1.5 | X9: 1.75 | Y9: 2 | Z9: 2.25 | AA9: 2.5 | AB9: 2.75 | AC9: 3 | AD9: 1 | AE9: 1 | AF9: 1 | AG9: 1 | AH9: 1 | AI9: 1 | AJ9: 1 | AK9: 1 | AL9: 1 | AM9: 1
C10: $B$14 | D10: 1 | E10: 1 | F10: 1 | G10: 1 | H10: 1 | I10: 1 | J10: 1 | K10: 1 | L10: 1 | M10: 1 | N10: 1 | O10: 1 | P10: 1 | Q10: 1 | R10: 1 | S10: 1 | T10: 1 | U10: 1 | V10: 1 | W10: 1 | X10: 1 | Y10: 1 | Z10: 1 | AA10: 1 | AB10: 1 | AC10: 1 | AD10: 0.6 | AE10: 0.8 | AF10: 1 | AG10: 1.2 | AH10: 1.4 | AI10: 1 | AJ10: 1 | AK10: 1 | AL10: 1 | AM10: 1
C11: $B$18 | D11: 1 | E11: 1 | F11: 1 | G11: 1 | H11: 1 | I11: 1 | J11: 1 | K11: 1 | L11: 1 | M11: 1 | N11: 1 | O11: 1 | P11: 1 | Q11: 1 | R11: 1 | S11: 1 | T11: 1 | U11: 1 | V11: 1 | W11: 1 | X11: 1 | Y11: 1 | Z11: 1 | AA11: 1 | AB11: 1 | AC11: 1 | AD11: 1 | AE11: 1 | AF11: 1 | AG11: 1 | AH11: 1 | AI11: 0.5 | AJ11: 0.75 | AK11: 1 | AL11: 1.25 | AM11: 1.5
B12: Result Cells:
C13: $B$46 | D13: 1699222751 | E13: 1707352711 | F13: 1703602478 | G13: 1699222751 | H13: 1694101081 | I13: 1688105344 | J13: 232445072.6 | K13: 1699222751 | L13: 3166000429 | M13: 4632778107 | N13: 1790131842 | O13: 1744677296 | P13: 1699222751 | Q13: 1653768205 | R13: 1608313660 | S13: 1703662751 | T13: 1701442751 | U13: 1699222751 | V13: 1697002751 | W13: 1694782751 | X13: 1692562751 | Y13: 1690342751 | Z13: 1688122751 | AA13: 1685902751 | AB13: 1683682751 | AC13: 1681462751 | AD13: 1712764887 | AE13: 1705993819 | AF13: 1699222751 | AG13: 1692451683 | AH13: 1685680614 | AI13: 232445072.6 | AJ13: 965833911.7 | AK13: 1699222751 | AL13: 2432611590 | AM13: 3166000429
B14: Notes: Current Values column represents values of changing cells at
B15: time Scenario Summary Report was created. Changing cells for each
B16: scenario are highlighted in gray.

Sheet SA PBP ASP with tertiary (hidden)
B2: Scenario Summary
D3: Current Values: | E3: Elec Tariff rate of increase | F3: E1 | G3: E2 | H3: E3 | I3: E4 | J3: Industrial Water sale potential | K3: I1 | L3: I2 | M3: I3 | N3: Land Cost Variation | O3: L1 | P3: L2 | Q3: L3 | R3: L4 | S3: Dist to Industry | T3: D1 | U3: D2 | V3: D3 | W3: D4 | X3: D5 | Y3: D6 | Z3: D7 | AA3: D8 | AB3: D9 | AC3: D10 | AD3: Elec Tariff Variation | AE3: T1 | AF3: T2 | AG3: T3 | AH3: T4 | AI3: Industrial Water Tariff | AJ3: W1 | AK3: W2 | AL3: W3 | AM3: W4
E4: Created by A on 11-05-2016 Modified by A on 11-05-2016 | F4: Created by A on 11-05-2016 Modified by A on 11-05-2016 | G4: Created by A on 11-05-2016 | H4: Created by A on 11-05-2016 | I4: Created by A on 11-05-2016 | J4: Created by A on 11-05-2016 | K4: Created by A on 11-05-2016 | L4: Created by A on 11-05-2016 | M4: Created by A on 11-05-2016 | N4: Created by A on 11-05-2016 | O4: Created by A on 11-05-2016 | P4: Created by A on 11-05-2016 | Q4: Created by A on 11-05-2016 | R4: Created by A on 11-05-2016 | S4: Created by A on 11-05-2016 | T4: Created by A on 11-05-2016 | U4: Created by A on 11-05-2016 | V4: Created by A on 11-05-2016 | W4: Created by A on 11-05-2016 | X4: Created by A on 11-05-2016 | Y4: Created by A on 11-05-2016 | Z4: Created by A on 11-05-2016 | AA4: Created by A on 11-05-2016 | AB4: Created by A on 11-05-2016 | AC4: Created by A on 11-05-2016 | AD4: Created by A on 11-05-2016 Modified by A on 11-05-2016 | AE4: Created by A on 11-05-2016 | AF4: Created by A on 11-05-2016 | AG4: Created by A on 11-05-2016 | AH4: Created by A on 11-05-2016 | AI4: Created by A on 11-05-2016 | AJ4: Created by A on 11-05-2016 | AK4: Created by A on 11-05-2016 | AL4: Created by A on 11-05-2016 | AM4: Created by A on 11-05-2016
B5: Changing Cells:
C6: $B$17 | D6: 0.08 | E6: 0.04 | F6: 0.06 | G6: 0.08 | H6: 0.1 | I6: 0.12 | J6: 0.08 | K6: 0.08 | L6: 0.08 | M6: 0.08 | N6: 0.08 | O6: 0.08 | P6: 0.08 | Q6: 0.08 | R6: 0.08 | S6: 0.08 | T6: 0.08 | U6: 0.08 | V6: 0.08 | W6: 0.08 | X6: 0.08 | Y6: 0.08 | Z6: 0.08 | AA6: 0.08 | AB6: 0.08 | AC6: 0.08 | AD6: 0.08 | AE6: 0.08 | AF6: 0.08 | AG6: 0.08 | AH6: 0.08 | AI6: 0.08 | AJ6: 0.08 | AK6: 0.08 | AL6: 0.08 | AM6: 0.08
C7: $B$22 | D7: 0.5 | E7: 0.5 | F7: 0.5 | G7: 0.5 | H7: 0.5 | I7: 0.5 | J7: 0.25 | K7: 0.5 | L7: 0.75 | M7: 1 | N7: 0.5 | O7: 0.5 | P7: 0.5 | Q7: 0.5 | R7: 0.5 | S7: 0.5 | T7: 0.5 | U7: 0.5 | V7: 0.5 | W7: 0.5 | X7: 0.5 | Y7: 0.5 | Z7: 0.5 | AA7: 0.5 | AB7: 0.5 | AC7: 0.5 | AD7: 0.5 | AE7: 0.5 | AF7: 0.5 | AG7: 0.5 | AH7: 0.5 | AI7: 0.5 | AJ7: 0.5 | AK7: 0.5 | AL7: 0.5 | AM7: 0.5
C8: $B$15 | D8: 1 | E8: 1 | F8: 1 | G8: 1 | H8: 1 | I8: 1 | J8: 1 | K8: 1 | L8: 1 | M8: 1 | N8: 0.5 | O8: 0.75 | P8: 1 | Q8: 1.25 | R8: 1.5 | S8: 1 | T8: 1 | U8: 1 | V8: 1 | W8: 1 | X8: 1 | Y8: 1 | Z8: 1 | AA8: 1 | AB8: 1 | AC8: 1 | AD8: 1 | AE8: 1 | AF8: 1 | AG8: 1 | AH8: 1 | AI8: 1 | AJ8: 1 | AK8: 1 | AL8: 1 | AM8: 1
C9: $B$16 | D9: 1 | E9: 1 | F9: 1 | G9: 1 | H9: 1 | I9: 1 | J9: 1 | K9: 1 | L9: 1 | M9: 1 | N9: 1 | O9: 1 | P9: 1 | Q9: 1 | R9: 1 | S9: 0.5 | T9: 0.75 | U9: 1 | V9: 1.25 | W9: 1.5 | X9: 1.75 | Y9: 2 | Z9: 2.25 | AA9: 2.5 | AB9: 2.75 | AC9: 3 | AD9: 1 | AE9: 1 | AF9: 1 | AG9: 1 | AH9: 1 | AI9: 1 | AJ9: 1 | AK9: 1 | AL9: 1 | AM9: 1
C10: $B$14 | D10: 1 | E10: 1 | F10: 1 | G10: 1 | H10: 1 | I10: 1 | J10: 1 | K10: 1 | L10: 1 | M10: 1 | N10: 1 | O10: 1 | P10: 1 | Q10: 1 | R10: 1 | S10: 1 | T10: 1 | U10: 1 | V10: 1 | W10: 1 | X10: 1 | Y10: 1 | Z10: 1 | AA10: 1 | AB10: 1 | AC10: 1 | AD10: 0.6 | AE10: 0.8 | AF10: 1 | AG10: 1.2 | AH10: 1.4 | AI10: 1 | AJ10: 1 | AK10: 1 | AL10: 1 | AM10: 1
C11: $B$18 | D11: 1 | E11: 1 | F11: 1 | G11: 1 | H11: 1 | I11: 1 | J11: 1 | K11: 1 | L11: 1 | M11: 1 | N11: 1 | O11: 1 | P11: 1 | Q11: 1 | R11: 1 | S11: 1 | T11: 1 | U11: 1 | V11: 1 | W11: 1 | X11: 1 | Y11: 1 | Z11: 1 | AA11: 1 | AB11: 1 | AC11: 1 | AD11: 1 | AE11: 1 | AF11: 1 | AG11: 1 | AH11: 1 | AI11: 0.5 | AJ11: 0.75 | AK11: 1 | AL11: 1.25 | AM11: 1.5
B12: Result Cells:
C13: $B$51 | D13: 3.67360702 | E13: 3.6709915 | F13: 3.672283766 | G13: 3.67360702 | H13: 3.674961809 | I13: 3.67634869 | J13: 10.98974468 | K13: 3.67360702 | L13: 2.218514258 | M13: 1.593159801 | N13: 3.193012682 | O13: 3.433309851 | P13: 3.67360702 | Q13: 3.913904189 | R13: 4.163400494 | S13: 3.650134792 | T13: 3.661870906 | U13: 3.67360702 | V13: 3.685343134 | W13: 3.697079247 | X13: 3.708815361 | Y13: 3.720551475 | Z13: 3.732287588 | AA13: 3.744023702 | AB13: 3.755759816 | AC13: 3.76749593 | AD13: 3.654575677 | AE13: 3.66406777 | AF13: 3.67360702 | AG13: 3.683193779 | AH13: 3.692828404 | AI13: 10.98974468 | AJ13: 5.48144067 | AK13: 3.67360702 | AL13: 2.76541017 | AM13: 2.218514258
B14: Notes: Current Values column represents values of changing cells at
B15: time Scenario Summary Report was created. Changing cells for each
B16: scenario are highlighted in gray.

Sheet SA NPV SBR (hidden)
B2: Scenario Summary
D3: Current Values: | E3: Elec Tariff rate of increase | F3: E1 | G3: E2 | H3: E3 | I3: E4 | J3: Industrial Water sale potential | K3: I1 | L3: I2 | M3: I3 | N3: Land Cost Variation | O3: L1 | P3: L2 | Q3: L3 | R3: L4 | S3: Dist to Industry | T3: D1 | U3: D2 | V3: D3 | W3: D4 | X3: D5 | Y3: D6 | Z3: D7 | AA3: D8 | AB3: D9 | AC3: D10 | AD3: Elec Tariff Variation | AE3: T1 | AF3: T2 | AG3: T3 | AH3: T4 | AI3: Industrial Water Tariff | AJ3: W1 | AK3: W2 | AL3: W3 | AM3: W4
E4: Created by A on 11-05-2016 Modified by A on 11-05-2016 | F4: Created by A on 11-05-2016 Modified by A on 11-05-2016 | G4: Created by A on 11-05-2016 | H4: Created by A on 11-05-2016 | I4: Created by A on 11-05-2016 | J4: Created by A on 11-05-2016 | K4: Created by A on 11-05-2016 | L4: Created by A on 11-05-2016 | M4: Created by A on 11-05-2016 | N4: Created by A on 11-05-2016 | O4: Created by A on 11-05-2016 | P4: Created by A on 11-05-2016 | Q4: Created by A on 11-05-2016 | R4: Created by A on 11-05-2016 | S4: Created by A on 11-05-2016 | T4: Created by A on 11-05-2016 | U4: Created by A on 11-05-2016 | V4: Created by A on 11-05-2016 | W4: Created by A on 11-05-2016 | X4: Created by A on 11-05-2016 | Y4: Created by A on 11-05-2016 | Z4: Created by A on 11-05-2016 | AA4: Created by A on 11-05-2016 | AB4: Created by A on 11-05-2016 | AC4: Created by A on 11-05-2016 | AD4: Created by A on 11-05-2016 Modified by A on 11-05-2016 | AE4: Created by A on 11-05-2016 | AF4: Created by A on 11-05-2016 | AG4: Created by A on 11-05-2016 | AH4: Created by A on 11-05-2016 | AI4: Created by A on 11-05-2016 | AJ4: Created by A on 11-05-2016 | AK4: Created by A on 11-05-2016 | AL4: Created by A on 11-05-2016 | AM4: Created by A on 11-05-2016
B5: Changing Cells:
C6: $B$17 | D6: 0.08 | E6: 0.04 | F6: 0.06 | G6: 0.08 | H6: 0.1 | I6: 0.12 | J6: 0.08 | K6: 0.08 | L6: 0.08 | M6: 0.08 | N6: 0.08 | O6: 0.08 | P6: 0.08 | Q6: 0.08 | R6: 0.08 | S6: 0.08 | T6: 0.08 | U6: 0.08 | V6: 0.08 | W6: 0.08 | X6: 0.08 | Y6: 0.08 | Z6: 0.08 | AA6: 0.08 | AB6: 0.08 | AC6: 0.08 | AD6: 0.08 | AE6: 0.08 | AF6: 0.08 | AG6: 0.08 | AH6: 0.08 | AI6: 0.08 | AJ6: 0.08 | AK6: 0.08 | AL6: 0.08 | AM6: 0.08
C7: $B$22 | D7: 0.5 | E7: 0.5 | F7: 0.5 | G7: 0.5 | H7: 0.5 | I7: 0.5 | J7: 0.25 | K7: 0.5 | L7: 0.75 | M7: 1 | N7: 0.5 | O7: 0.5 | P7: 0.5 | Q7: 0.5 | R7: 0.5 | S7: 0.5 | T7: 0.5 | U7: 0.5 | V7: 0.5 | W7: 0.5 | X7: 0.5 | Y7: 0.5 | Z7: 0.5 | AA7: 0.5 | AB7: 0.5 | AC7: 0.5 | AD7: 0.5 | AE7: 0.5 | AF7: 0.5 | AG7: 0.5 | AH7: 0.5 | AI7: 0.5 | AJ7: 0.5 | AK7: 0.5 | AL7: 0.5 | AM7: 0.5
C8: $B$15 | D8: 1 | E8: 1 | F8: 1 | G8: 1 | H8: 1 | I8: 1 | J8: 1 | K8: 1 | L8: 1 | M8: 1 | N8: 0.5 | O8: 0.75 | P8: 1 | Q8: 1.25 | R8: 1.5 | S8: 1 | T8: 1 | U8: 1 | V8: 1 | W8: 1 | X8: 1 | Y8: 1 | Z8: 1 | AA8: 1 | AB8: 1 | AC8: 1 | AD8: 1 | AE8: 1 | AF8: 1 | AG8: 1 | AH8: 1 | AI8: 1 | AJ8: 1 | AK8: 1 | AL8: 1 | AM8: 1
C9: $B$16 | D9: 1 | E9: 1 | F9: 1 | G9: 1 | H9: 1 | I9: 1 | J9: 1 | K9: 1 | L9: 1 | M9: 1 | N9: 1 | O9: 1 | P9: 1 | Q9: 1 | R9: 1 | S9: 0.5 | T9: 0.75 | U9: 1 | V9: 1.25 | W9: 1.5 | X9: 1.75 | Y9: 2 | Z9: 2.25 | AA9: 2.5 | AB9: 2.75 | AC9: 3 | AD9: 1 | AE9: 1 | AF9: 1 | AG9: 1 | AH9: 1 | AI9: 1 | AJ9: 1 | AK9: 1 | AL9: 1 | AM9: 1
C10: $B$14 | D10: 1 | E10: 1 | F10: 1 | G10: 1 | H10: 1 | I10: 1 | J10: 1 | K10: 1 | L10: 1 | M10: 1 | N10: 1 | O10: 1 | P10: 1 | Q10: 1 | R10: 1 | S10: 1 | T10: 1 | U10: 1 | V10: 1 | W10: 1 | X10: 1 | Y10: 1 | Z10: 1 | AA10: 1 | AB10: 1 | AC10: 1 | AD10: 0.6 | AE10: 0.8 | AF10: 1 | AG10: 1.2 | AH10: 1.4 | AI10: 1 | AJ10: 1 | AK10: 1 | AL10: 1 | AM10: 1
C11: $B$18 | D11: 1 | E11: 1 | F11: 1 | G11: 1 | H11: 1 | I11: 1 | J11: 1 | K11: 1 | L11: 1 | M11: 1 | N11: 1 | O11: 1 | P11: 1 | Q11: 1 | R11: 1 | S11: 1 | T11: 1 | U11: 1 | V11: 1 | W11: 1 | X11: 1 | Y11: 1 | Z11: 1 | AA11: 1 | AB11: 1 | AC11: 1 | AD11: 1 | AE11: 1 | AF11: 1 | AG11: 1 | AH11: 1 | AI11: 0.5 | AJ11: 0.75 | AK11: 1 | AL11: 1.25 | AM11: 1.5
B12: Result Cells:
C13: $B$46 | D13: 3037753880 | E13: 3036616274 | F13: 3037141035 | G13: 3037753880 | H13: 3038470542 | I13: 3039309511 | J13: 1204281782 | K13: 3037753880 | L13: 4871225977 | M13: 6704698075 | N13: 3078662971 | O13: 3058208425 | P13: 3037753880 | Q13: 3017299334 | R13: 2996844789 | S13: 3042193880 | T13: 3039973880 | U13: 3037753880 | V13: 3035533880 | W13: 3033313880 | X13: 3031093880 | Y13: 3028873880 | Z13: 3026653880 | AA13: 3024433880 | AB13: 3022213880 | AC13: 3019993880 | AD13: 3033801894 | AE13: 3035777887 | AF13: 3037753880 | AG13: 3039729872 | AH13: 3041705865 | AI13: 1204281782 | AJ13: 2121017831 | AK13: 3037753880 | AL13: 3954489929 | AM13: 4871225977
B14: Notes: Current Values column represents values of changing cells at
B15: time Scenario Summary Report was created. Changing cells for each
B16: scenario are highlighted in gray.

Sheet SA PBP SBR (hidden)
B2: Scenario Summary
D3: Current Values: | E3: Elec Tariff rate of increase | F3: E1 | G3: E2 | H3: E3 | I3: E4 | J3: Industrial Water sale potential | K3: I1 | L3: I2 | M3: I3 | N3: Land Cost Variation | O3: L1 | P3: L2 | Q3: L3 | R3: L4 | S3: Dist to Industry | T3: D1 | U3: D2 | V3: D3 | W3: D4 | X3: D5 | Y3: D6 | Z3: D7 | AA3: D8 | AB3: D9 | AC3: D10 | AD3: Elec Tariff Variation | AE3: T1 | AF3: T2 | AG3: T3 | AH3: T4 | AI3: Industrial Water Tariff | AJ3: W1 | AK3: W2 | AL3: W3 | AM3: W4
E4: Created by A on 11-05-2016 Modified by A on 11-05-2016 | F4: Created by A on 11-05-2016 Modified by A on 11-05-2016 | G4: Created by A on 11-05-2016 | H4: Created by A on 11-05-2016 | I4: Created by A on 11-05-2016 | J4: Created by A on 11-05-2016 | K4: Created by A on 11-05-2016 | L4: Created by A on 11-05-2016 | M4: Created by A on 11-05-2016 | N4: Created by A on 11-05-2016 | O4: Created by A on 11-05-2016 | P4: Created by A on 11-05-2016 | Q4: Created by A on 11-05-2016 | R4: Created by A on 11-05-2016 | S4: Created by A on 11-05-2016 | T4: Created by A on 11-05-2016 | U4: Created by A on 11-05-2016 | V4: Created by A on 11-05-2016 | W4: Created by A on 11-05-2016 | X4: Created by A on 11-05-2016 | Y4: Created by A on 11-05-2016 | Z4: Created by A on 11-05-2016 | AA4: Created by A on 11-05-2016 | AB4: Created by A on 11-05-2016 | AC4: Created by A on 11-05-2016 | AD4: Created by A on 11-05-2016 Modified by A on 11-05-2016 | AE4: Created by A on 11-05-2016 | AF4: Created by A on 11-05-2016 | AG4: Created by A on 11-05-2016 | AH4: Created by A on 11-05-2016 | AI4: Created by A on 11-05-2016 | AJ4: Created by A on 11-05-2016 | AK4: Created by A on 11-05-2016 | AL4: Created by A on 11-05-2016 | AM4: Created by A on 11-05-2016
B5: Changing Cells:
C6: $B$17 | D6: 0.08 | E6: 0.04 | F6: 0.06 | G6: 0.08 | H6: 0.1 | I6: 0.12 | J6: 0.08 | K6: 0.08 | L6: 0.08 | M6: 0.08 | N6: 0.08 | O6: 0.08 | P6: 0.08 | Q6: 0.08 | R6: 0.08 | S6: 0.08 | T6: 0.08 | U6: 0.08 | V6: 0.08 | W6: 0.08 | X6: 0.08 | Y6: 0.08 | Z6: 0.08 | AA6: 0.08 | AB6: 0.08 | AC6: 0.08 | AD6: 0.08 | AE6: 0.08 | AF6: 0.08 | AG6: 0.08 | AH6: 0.08 | AI6: 0.08 | AJ6: 0.08 | AK6: 0.08 | AL6: 0.08 | AM6: 0.08
C7: $B$22 | D7: 0.5 | E7: 0.5 | F7: 0.5 | G7: 0.5 | H7: 0.5 | I7: 0.5 | J7: 0.25 | K7: 0.5 | L7: 0.75 | M7: 1 | N7: 0.5 | O7: 0.5 | P7: 0.5 | Q7: 0.5 | R7: 0.5 | S7: 0.5 | T7: 0.5 | U7: 0.5 | V7: 0.5 | W7: 0.5 | X7: 0.5 | Y7: 0.5 | Z7: 0.5 | AA7: 0.5 | AB7: 0.5 | AC7: 0.5 | AD7: 0.5 | AE7: 0.5 | AF7: 0.5 | AG7: 0.5 | AH7: 0.5 | AI7: 0.5 | AJ7: 0.5 | AK7: 0.5 | AL7: 0.5 | AM7: 0.5
C8: $B$15 | D8: 1 | E8: 1 | F8: 1 | G8: 1 | H8: 1 | I8: 1 | J8: 1 | K8: 1 | L8: 1 | M8: 1 | N8: 0.5 | O8: 0.75 | P8: 1 | Q8: 1.25 | R8: 1.5 | S8: 1 | T8: 1 | U8: 1 | V8: 1 | W8: 1 | X8: 1 | Y8: 1 | Z8: 1 | AA8: 1 | AB8: 1 | AC8: 1 | AD8: 1 | AE8: 1 | AF8: 1 | AG8: 1 | AH8: 1 | AI8: 1 | AJ8: 1 | AK8: 1 | AL8: 1 | AM8: 1
C9: $B$16 | D9: 1 | E9: 1 | F9: 1 | G9: 1 | H9: 1 | I9: 1 | J9: 1 | K9: 1 | L9: 1 | M9: 1 | N9: 1 | O9: 1 | P9: 1 | Q9: 1 | R9: 1 | S9: 0.5 | T9: 0.75 | U9: 1 | V9: 1.25 | W9: 1.5 | X9: 1.75 | Y9: 2 | Z9: 2.25 | AA9: 2.5 | AB9: 2.75 | AC9: 3 | AD9: 1 | AE9: 1 | AF9: 1 | AG9: 1 | AH9: 1 | AI9: 1 | AJ9: 1 | AK9: 1 | AL9: 1 | AM9: 1
C10: $B$14 | D10: 1 | E10: 1 | F10: 1 | G10: 1 | H10: 1 | I10: 1 | J10: 1 | K10: 1 | L10: 1 | M10: 1 | N10: 1 | O10: 1 | P10: 1 | Q10: 1 | R10: 1 | S10: 1 | T10: 1 | U10: 1 | V10: 1 | W10: 1 | X10: 1 | Y10: 1 | Z10: 1 | AA10: 1 | AB10: 1 | AC10: 1 | AD10: 0.6 | AE10: 0.8 | AF10: 1 | AG10: 1.2 | AH10: 1.4 | AI10: 1 | AJ10: 1 | AK10: 1 | AL10: 1 | AM10: 1
C11: $B$18 | D11: 1 | E11: 1 | F11: 1 | G11: 1 | H11: 1 | I11: 1 | J11: 1 | K11: 1 | L11: 1 | M11: 1 | N11: 1 | O11: 1 | P11: 1 | Q11: 1 | R11: 1 | S11: 1 | T11: 1 | U11: 1 | V11: 1 | W11: 1 | X11: 1 | Y11: 1 | Z11: 1 | AA11: 1 | AB11: 1 | AC11: 1 | AD11: 1 | AE11: 1 | AF11: 1 | AG11: 1 | AH11: 1 | AI11: 0.5 | AJ11: 0.75 | AK11: 1 | AL11: 1.25 | AM11: 1.5
B12: Result Cells:
C13: $B$51 | D13: 1.634043763 | E13: 1.634074184 | F13: 1.634058973 | G13: 1.634043763 | H13: 1.634028553 | I13: 1.634013344 | J13: 3.545987561 | K13: 1.634043763 | L13: 1.058751602 | M13: 0 | N13: 1.499652348 | O13: 1.566848056 | P13: 1.634043763 | Q13: 1.70123947 | R13: 1.768435178 | S13: 1.619457815 | T13: 1.626750789 | U13: 1.634043763 | V13: 1.641336737 | W13: 1.648629711 | X13: 1.655922685 | Y13: 1.663215659 | Z13: 1.670508634 | AA13: 1.677801608 | AB13: 1.685094582 | AC13: 1.692387556 | AD13: 1.63563095 | AE13: 1.634836978 | AF13: 1.634043763 | AG13: 1.633251304 | AH13: 1.6324596 | AI13: 3.545987561 | AJ13: 2.23395953 | AK13: 1.634043763 | AL13: 1.287490989 | AM13: 1.058751602
B14: Notes: Current Values column represents values of changing cells at
B15: time Scenario Summary Report was created. Changing cells for each
B16: scenario are highlighted in gray.

Sheet SA NPV SBR with tertiary (hidden)
B2: Scenario Summary
D3: Current Values: | E3: Elec Tariff rate of increase | F3: E1 | G3: E2 | H3: E3 | I3: E4 | J3: Industrial Water sale potential | K3: I1 | L3: I2 | M3: I3 | N3: Land Cost Variation | O3: L1 | P3: L2 | Q3: L3 | R3: L4 | S3: Dist to Industry | T3: D1 | U3: D2 | V3: D3 | W3: D4 | X3: D5 | Y3: D6 | Z3: D7 | AA3: D8 | AB3: D9 | AC3: D10 | AD3: Elec Tariff Variation | AE3: T1 | AF3: T2 | AG3: T3 | AH3: T4 | AI3: Industrial Water Tariff | AJ3: W1 | AK3: W2 | AL3: W3 | AM3: W4
E4: Created by A on 11-05-2016 Modified by A on 11-05-2016 | F4: Created by A on 11-05-2016 Modified by A on 11-05-2016 | G4: Created by A on 11-05-2016 | H4: Created by A on 11-05-2016 | I4: Created by A on 11-05-2016 | J4: Created by A on 11-05-2016 | K4: Created by A on 11-05-2016 | L4: Created by A on 11-05-2016 | M4: Created by A on 11-05-2016 | N4: Created by A on 11-05-2016 | O4: Created by A on 11-05-2016 | P4: Created by A on 11-05-2016 | Q4: Created by A on 11-05-2016 | R4: Created by A on 11-05-2016 | S4: Created by A on 11-05-2016 | T4: Created by A on 11-05-2016 | U4: Created by A on 11-05-2016 | V4: Created by A on 11-05-2016 | W4: Created by A on 11-05-2016 | X4: Created by A on 11-05-2016 | Y4: Created by A on 11-05-2016 | Z4: Created by A on 11-05-2016 | AA4: Created by A on 11-05-2016 | AB4: Created by A on 11-05-2016 | AC4: Created by A on 11-05-2016 | AD4: Created by A on 11-05-2016 Modified by A on 11-05-2016 | AE4: Created by A on 11-05-2016 | AF4: Created by A on 11-05-2016 | AG4: Created by A on 11-05-2016 | AH4: Created by A on 11-05-2016 | AI4: Created by A on 11-05-2016 | AJ4: Created by A on 11-05-2016 | AK4: Created by A on 11-05-2016 | AL4: Created by A on 11-05-2016 | AM4: Created by A on 11-05-2016
B5: Changing Cells:
C6: $B$17 | D6: 0.08 | E6: 0.04 | F6: 0.06 | G6: 0.08 | H6: 0.1 | I6: 0.12 | J6: 0.08 | K6: 0.08 | L6: 0.08 | M6: 0.08 | N6: 0.08 | O6: 0.08 | P6: 0.08 | Q6: 0.08 | R6: 0.08 | S6: 0.08 | T6: 0.08 | U6: 0.08 | V6: 0.08 | W6: 0.08 | X6: 0.08 | Y6: 0.08 | Z6: 0.08 | AA6: 0.08 | AB6: 0.08 | AC6: 0.08 | AD6: 0.08 | AE6: 0.08 | AF6: 0.08 | AG6: 0.08 | AH6: 0.08 | AI6: 0.08 | AJ6: 0.08 | AK6: 0.08 | AL6: 0.08 | AM6: 0.08
C7: $B$22 | D7: 0.5 | E7: 0.5 | F7: 0.5 | G7: 0.5 | H7: 0.5 | I7: 0.5 | J7: 0.25 | K7: 0.5 | L7: 0.75 | M7: 1 | N7: 0.5 | O7: 0.5 | P7: 0.5 | Q7: 0.5 | R7: 0.5 | S7: 0.5 | T7: 0.5 | U7: 0.5 | V7: 0.5 | W7: 0.5 | X7: 0.5 | Y7: 0.5 | Z7: 0.5 | AA7: 0.5 | AB7: 0.5 | AC7: 0.5 | AD7: 0.5 | AE7: 0.5 | AF7: 0.5 | AG7: 0.5 | AH7: 0.5 | AI7: 0.5 | AJ7: 0.5 | AK7: 0.5 | AL7: 0.5 | AM7: 0.5
C8: $B$15 | D8: 1 | E8: 1 | F8: 1 | G8: 1 | H8: 1 | I8: 1 | J8: 1 | K8: 1 | L8: 1 | M8: 1 | N8: 0.5 | O8: 0.75 | P8: 1 | Q8: 1.25 | R8: 1.5 | S8: 1 | T8: 1 | U8: 1 | V8: 1 | W8: 1 | X8: 1 | Y8: 1 | Z8: 1 | AA8: 1 | AB8: 1 | AC8: 1 | AD8: 1 | AE8: 1 | AF8: 1 | AG8: 1 | AH8: 1 | AI8: 1 | AJ8: 1 | AK8: 1 | AL8: 1 | AM8: 1
C9: $B$16 | D9: 1 | E9: 1 | F9: 1 | G9: 1 | H9: 1 | I9: 1 | J9: 1 | K9: 1 | L9: 1 | M9: 1 | N9: 1 | O9: 1 | P9: 1 | Q9: 1 | R9: 1 | S9: 0.5 | T9: 0.75 | U9: 1 | V9: 1.25 | W9: 1.5 | X9: 1.75 | Y9: 2 | Z9: 2.25 | AA9: 2.5 | AB9: 2.75 | AC9: 3 | AD9: 1 | AE9: 1 | AF9: 1 | AG9: 1 | AH9: 1 | AI9: 1 | AJ9: 1 | AK9: 1 | AL9: 1 | AM9: 1
C10: $B$14 | D10: 1 | E10: 1 | F10: 1 | G10: 1 | H10: 1 | I10: 1 | J10: 1 | K10: 1 | L10: 1 | M10: 1 | N10: 1 | O10: 1 | P10: 1 | Q10: 1 | R10: 1 | S10: 1 | T10: 1 | U10: 1 | V10: 1 | W10: 1 | X10: 1 | Y10: 1 | Z10: 1 | AA10: 1 | AB10: 1 | AC10: 1 | AD10: 0.6 | AE10: 0.8 | AF10: 1 | AG10: 1.2 | AH10: 1.4 | AI10: 1 | AJ10: 1 | AK10: 1 | AL10: 1 | AM10: 1
C11: $B$18 | D11: 1 | E11: 1 | F11: 1 | G11: 1 | H11: 1 | I11: 1 | J11: 1 | K11: 1 | L11: 1 | M11: 1 | N11: 1 | O11: 1 | P11: 1 | Q11: 1 | R11: 1 | S11: 1 | T11: 1 | U11: 1 | V11: 1 | W11: 1 | X11: 1 | Y11: 1 | Z11: 1 | AA11: 1 | AB11: 1 | AC11: 1 | AD11: 1 | AE11: 1 | AF11: 1 | AG11: 1 | AH11: 1 | AI11: 0.5 | AJ11: 0.75 | AK11: 1 | AL11: 1.25 | AM11: 1.5
B12: Result Cells:
C13: $B$46 | D13: 1838957147 | E13: 1838154514 | F13: 1838524757 | G13: 1838957147 | H13: 1839462786 | I13: 1840054717 | J13: 372179468.9 | K13: 1838957147 | L13: 3305734825 | M13: 4772512503 | N13: 1888957147 | O13: 1863957147 | P13: 1838957147 | Q13: 1813957147 | R13: 1788957147 | S13: 1843397147 | T13: 1841177147 | U13: 1838957147 | V13: 1836737147 | W13: 1834517147 | X13: 1832297147 | Y13: 1830077147 | Z13: 1827857147 | AA13: 1825637147 | AB13: 1823417147 | AC13: 1821197147 | AD13: 1835637479 | AE13: 1837297313 | AF13: 1838957147 | AG13: 1840616981 | AH13: 1842276815 | AI13: 372179468.9 | AJ13: 1105568308 | AK13: 1838957147 | AL13: 2572345986 | AM13: 3305734825
B14: Notes: Current Values column represents values of changing cells at
B15: time Scenario Summary Report was created. Changing cells for each
B16: scenario are highlighted in gray.

Sheet SA PBP SBR with tertiary (hidden)
B2: Scenario Summary
D3: Current Values: | E3: Elec Tariff rate of increase | F3: E1 | G3: E2 | H3: E3 | I3: E4 | J3: Industrial Water sale potential | K3: I1 | L3: I2 | M3: I3 | N3: Land Cost Variation | O3: L1 | P3: L2 | Q3: L3 | R3: L4 | S3: Dist to Industry | T3: D1 | U3: D2 | V3: D3 | W3: D4 | X3: D5 | Y3: D6 | Z3: D7 | AA3: D8 | AB3: D9 | AC3: D10 | AD3: Elec Tariff Variation | AE3: T1 | AF3: T2 | AG3: T3 | AH3: T4 | AI3: Industrial Water Tariff | AJ3: W1 | AK3: W2 | AL3: W3 | AM3: W4
E4: Created by A on 11-05-2016 Modified by A on 11-05-2016 | F4: Created by A on 11-05-2016 Modified by A on 11-05-2016 | G4: Created by A on 11-05-2016 | H4: Created by A on 11-05-2016 | I4: Created by A on 11-05-2016 | J4: Created by A on 11-05-2016 | K4: Created by A on 11-05-2016 | L4: Created by A on 11-05-2016 | M4: Created by A on 11-05-2016 | N4: Created by A on 11-05-2016 | O4: Created by A on 11-05-2016 | P4: Created by A on 11-05-2016 | Q4: Created by A on 11-05-2016 | R4: Created by A on 11-05-2016 | S4: Created by A on 11-05-2016 | T4: Created by A on 11-05-2016 | U4: Created by A on 11-05-2016 | V4: Created by A on 11-05-2016 | W4: Created by A on 11-05-2016 | X4: Created by A on 11-05-2016 | Y4: Created by A on 11-05-2016 | Z4: Created by A on 11-05-2016 | AA4: Created by A on 11-05-2016 | AB4: Created by A on 11-05-2016 | AC4: Created by A on 11-05-2016 | AD4: Created by A on 11-05-2016 Modified by A on 11-05-2016 | AE4: Created by A on 11-05-2016 | AF4: Created by A on 11-05-2016 | AG4: Created by A on 11-05-2016 | AH4: Created by A on 11-05-2016 | AI4: Created by A on 11-05-2016 | AJ4: Created by A on 11-05-2016 | AK4: Created by A on 11-05-2016 | AL4: Created by A on 11-05-2016 | AM4: Created by A on 11-05-2016
B5: Changing Cells:
C6: $B$17 | D6: 0.08 | E6: 0.04 | F6: 0.06 | G6: 0.08 | H6: 0.1 | I6: 0.12 | J6: 0.08 | K6: 0.08 | L6: 0.08 | M6: 0.08 | N6: 0.08 | O6: 0.08 | P6: 0.08 | Q6: 0.08 | R6: 0.08 | S6: 0.08 | T6: 0.08 | U6: 0.08 | V6: 0.08 | W6: 0.08 | X6: 0.08 | Y6: 0.08 | Z6: 0.08 | AA6: 0.08 | AB6: 0.08 | AC6: 0.08 | AD6: 0.08 | AE6: 0.08 | AF6: 0.08 | AG6: 0.08 | AH6: 0.08 | AI6: 0.08 | AJ6: 0.08 | AK6: 0.08 | AL6: 0.08 | AM6: 0.08
C7: $B$22 | D7: 0.5 | E7: 0.5 | F7: 0.5 | G7: 0.5 | H7: 0.5 | I7: 0.5 | J7: 0.25 | K7: 0.5 | L7: 0.75 | M7: 1 | N7: 0.5 | O7: 0.5 | P7: 0.5 | Q7: 0.5 | R7: 0.5 | S7: 0.5 | T7: 0.5 | U7: 0.5 | V7: 0.5 | W7: 0.5 | X7: 0.5 | Y7: 0.5 | Z7: 0.5 | AA7: 0.5 | AB7: 0.5 | AC7: 0.5 | AD7: 0.5 | AE7: 0.5 | AF7: 0.5 | AG7: 0.5 | AH7: 0.5 | AI7: 0.5 | AJ7: 0.5 | AK7: 0.5 | AL7: 0.5 | AM7: 0.5
C8: $B$15 | D8: 1 | E8: 1 | F8: 1 | G8: 1 | H8: 1 | I8: 1 | J8: 1 | K8: 1 | L8: 1 | M8: 1 | N8: 0.5 | O8: 0.75 | P8: 1 | Q8: 1.25 | R8: 1.5 | S8: 1 | T8: 1 | U8: 1 | V8: 1 | W8: 1 | X8: 1 | Y8: 1 | Z8: 1 | AA8: 1 | AB8: 1 | AC8: 1 | AD8: 1 | AE8: 1 | AF8: 1 | AG8: 1 | AH8: 1 | AI8: 1 | AJ8: 1 | AK8: 1 | AL8: 1 | AM8: 1
C9: $B$16 | D9: 1 | E9: 1 | F9: 1 | G9: 1 | H9: 1 | I9: 1 | J9: 1 | K9: 1 | L9: 1 | M9: 1 | N9: 1 | O9: 1 | P9: 1 | Q9: 1 | R9: 1 | S9: 0.5 | T9: 0.75 | U9: 1 | V9: 1.25 | W9: 1.5 | X9: 1.75 | Y9: 2 | Z9: 2.25 | AA9: 2.5 | AB9: 2.75 | AC9: 3 | AD9: 1 | AE9: 1 | AF9: 1 | AG9: 1 | AH9: 1 | AI9: 1 | AJ9: 1 | AK9: 1 | AL9: 1 | AM9: 1
C10: $B$14 | D10: 1 | E10: 1 | F10: 1 | G10: 1 | H10: 1 | I10: 1 | J10: 1 | K10: 1 | L10: 1 | M10: 1 | N10: 1 | O10: 1 | P10: 1 | Q10: 1 | R10: 1 | S10: 1 | T10: 1 | U10: 1 | V10: 1 | W10: 1 | X10: 1 | Y10: 1 | Z10: 1 | AA10: 1 | AB10: 1 | AC10: 1 | AD10: 0.6 | AE10: 0.8 | AF10: 1 | AG10: 1.2 | AH10: 1.4 | AI10: 1 | AJ10: 1 | AK10: 1 | AL10: 1 | AM10: 1
C11: $B$18 | D11: 1 | E11: 1 | F11: 1 | G11: 1 | H11: 1 | I11: 1 | J11: 1 | K11: 1 | L11: 1 | M11: 1 | N11: 1 | O11: 1 | P11: 1 | Q11: 1 | R11: 1 | S11: 1 | T11: 1 | U11: 1 | V11: 1 | W11: 1 | X11: 1 | Y11: 1 | Z11: 1 | AA11: 1 | AB11: 1 | AC11: 1 | AD11: 1 | AE11: 1 | AF11: 1 | AG11: 1 | AH11: 1 | AI11: 0.5 | AJ11: 0.75 | AK11: 1 | AL11: 1.25 | AM11: 1.5
B12: Result Cells:
C13: $B$51 | D13: 3.292162687 | E13: 3.292358056 | F13: 3.292261236 | G13: 3.292162687 | H13: 3.292062395 | I13: 3.291960348 | J13: 8.97544255 | K13: 3.292162687 | L13: 2.018212705 | M13: 1.463333055 | N13: 3.036381477 | O13: 3.164272082 | P13: 3.292162687 | Q13: 3.420053291 | R13: 3.547943896 | S13: 3.269449315 | T13: 3.280806001 | U13: 3.292162687 | V13: 3.303519372 | W13: 3.314876058 | X13: 3.326232744 | Y13: 3.337589429 | Z13: 3.348946115 | AA13: 3.360302801 | AB13: 3.371659487 | AC13: 3.383016172 | AD13: 3.296254858 | AE13: 3.294207566 | AF13: 3.292162687 | AG13: 3.290120216 | AH13: 3.288080149 | AI13: 8.97544255 | AJ13: 4.804719195 | AK13: 3.292162687 | AL13: 2.507090868 | AM13: 2.018212705
B14: Notes: Current Values column represents values of changing cells at
B15: time Scenario Summary Report was created. Changing cells for each
B16: scenario are highlighted in gray.

Sheet SA NPV MBBR (hidden)
B2: Scenario Summary
D3: Current Values: | E3: Elec Tariff rate of increase | F3: E1 | G3: E2 | H3: E3 | I3: E4 | J3: Industrial Water sale potential | K3: I1 | L3: I2 | M3: I3 | N3: Land Cost Variation | O3: L1 | P3: L2 | Q3: L3 | R3: L4 | S3: Dist to Industry | T3: D1 | U3: D2 | V3: D3 | W3: D4 | X3: D5 | Y3: D6 | Z3: D7 | AA3: D8 | AB3: D9 | AC3: D10 | AD3: Elec Tariff Variation | AE3: T1 | AF3: T2 | AG3: T3 | AH3: T4 | AI3: Industrial Water Tariff | AJ3: W1 | AK3: W2 | AL3: W3 | AM3: W4
E4: Created by A on 11-05-2016 Modified by A on 11-05-2016 | F4: Created by A on 11-05-2016 Modified by A on 11-05-2016 | G4: Created by A on 11-05-2016 | H4: Created by A on 11-05-2016 | I4: Created by A on 11-05-2016 | J4: Created by A on 11-05-2016 | K4: Created by A on 11-05-2016 | L4: Created by A on 11-05-2016 | M4: Created by A on 11-05-2016 | N4: Created by A on 11-05-2016 | O4: Created by A on 11-05-2016 | P4: Created by A on 11-05-2016 | Q4: Created by A on 11-05-2016 | R4: Created by A on 11-05-2016 | S4: Created by A on 11-05-2016 | T4: Created by A on 11-05-2016 | U4: Created by A on 11-05-2016 | V4: Created by A on 11-05-2016 | W4: Created by A on 11-05-2016 | X4: Created by A on 11-05-2016 | Y4: Created by A on 11-05-2016 | Z4: Created by A on 11-05-2016 | AA4: Created by A on 11-05-2016 | AB4: Created by A on 11-05-2016 | AC4: Created by A on 11-05-2016 | AD4: Created by A on 11-05-2016 Modified by A on 11-05-2016 | AE4: Created by A on 11-05-2016 | AF4: Created by A on 11-05-2016 | AG4: Created by A on 11-05-2016 | AH4: Created by A on 11-05-2016 | AI4: Created by A on 11-05-2016 | AJ4: Created by A on 11-05-2016 | AK4: Created by A on 11-05-2016 | AL4: Created by A on 11-05-2016 | AM4: Created by A on 11-05-2016
B5: Changing Cells:
C6: $B$17 | D6: 0.08 | E6: 0.04 | F6: 0.06 | G6: 0.08 | H6: 0.1 | I6: 0.12 | J6: 0.08 | K6: 0.08 | L6: 0.08 | M6: 0.08 | N6: 0.08 | O6: 0.08 | P6: 0.08 | Q6: 0.08 | R6: 0.08 | S6: 0.08 | T6: 0.08 | U6: 0.08 | V6: 0.08 | W6: 0.08 | X6: 0.08 | Y6: 0.08 | Z6: 0.08 | AA6: 0.08 | AB6: 0.08 | AC6: 0.08 | AD6: 0.08 | AE6: 0.08 | AF6: 0.08 | AG6: 0.08 | AH6: 0.08 | AI6: 0.08 | AJ6: 0.08 | AK6: 0.08 | AL6: 0.08 | AM6: 0.08
C7: $B$22 | D7: 0.5 | E7: 0.5 | F7: 0.5 | G7: 0.5 | H7: 0.5 | I7: 0.5 | J7: 0.25 | K7: 0.5 | L7: 0.75 | M7: 1 | N7: 0.5 | O7: 0.5 | P7: 0.5 | Q7: 0.5 | R7: 0.5 | S7: 0.5 | T7: 0.5 | U7: 0.5 | V7: 0.5 | W7: 0.5 | X7: 0.5 | Y7: 0.5 | Z7: 0.5 | AA7: 0.5 | AB7: 0.5 | AC7: 0.5 | AD7: 0.5 | AE7: 0.5 | AF7: 0.5 | AG7: 0.5 | AH7: 0.5 | AI7: 0.5 | AJ7: 0.5 | AK7: 0.5 | AL7: 0.5 | AM7: 0.5
C8: $B$15 | D8: 1 | E8: 1 | F8: 1 | G8: 1 | H8: 1 | I8: 1 | J8: 1 | K8: 1 | L8: 1 | M8: 1 | N8: 0.5 | O8: 0.75 | P8: 1 | Q8: 1.25 | R8: 1.5 | S8: 1 | T8: 1 | U8: 1 | V8: 1 | W8: 1 | X8: 1 | Y8: 1 | Z8: 1 | AA8: 1 | AB8: 1 | AC8: 1 | AD8: 1 | AE8: 1 | AF8: 1 | AG8: 1 | AH8: 1 | AI8: 1 | AJ8: 1 | AK8: 1 | AL8: 1 | AM8: 1
C9: $B$16 | D9: 1 | E9: 1 | F9: 1 | G9: 1 | H9: 1 | I9: 1 | J9: 1 | K9: 1 | L9: 1 | M9: 1 | N9: 1 | O9: 1 | P9: 1 | Q9: 1 | R9: 1 | S9: 0.5 | T9: 0.75 | U9: 1 | V9: 1.25 | W9: 1.5 | X9: 1.75 | Y9: 2 | Z9: 2.25 | AA9: 2.5 | AB9: 2.75 | AC9: 3 | AD9: 1 | AE9: 1 | AF9: 1 | AG9: 1 | AH9: 1 | AI9: 1 | AJ9: 1 | AK9: 1 | AL9: 1 | AM9: 1
C10: $B$14 | D10: 1 | E10: 1 | F10: 1 | G10: 1 | H10: 1 | I10: 1 | J10: 1 | K10: 1 | L10: 1 | M10: 1 | N10: 1 | O10: 1 | P10: 1 | Q10: 1 | R10: 1 | S10: 1 | T10: 1 | U10: 1 | V10: 1 | W10: 1 | X10: 1 | Y10: 1 | Z10: 1 | AA10: 1 | AB10: 1 | AC10: 1 | AD10: 0.6 | AE10: 0.8 | AF10: 1 | AG10: 1.2 | AH10: 1.4 | AI10: 1 | AJ10: 1 | AK10: 1 | AL10: 1 | AM10: 1
C11: $B$18 | D11: 1 | E11: 1 | F11: 1 | G11: 1 | H11: 1 | I11: 1 | J11: 1 | K11: 1 | L11: 1 | M11: 1 | N11: 1 | O11: 1 | P11: 1 | Q11: 1 | R11: 1 | S11: 1 | T11: 1 | U11: 1 | V11: 1 | W11: 1 | X11: 1 | Y11: 1 | Z11: 1 | AA11: 1 | AB11: 1 | AC11: 1 | AD11: 1 | AE11: 1 | AF11: 1 | AG11: 1 | AH11: 1 | AI11: 0.5 | AJ11: 0.75 | AK11: 1 | AL11: 1.25 | AM11: 1.5
B12: Result Cells:
C13: $B$46 | D13: 2968890598 | E13: 2987293040 | F13: 2978804261 | G13: 2968890598 | H13: 2957297525 | I13: 2943725967 | J13: 1135418501 | K13: 2968890598 | L13: 4802362696 | M13: 6635834794 | N13: 3009799689 | O13: 2989345144 | P13: 2968890598 | Q13: 2948436053 | R13: 2927981507 | S13: 2973330598 | T13: 2971110598 | U13: 2968890598 | V13: 2966670598 | W13: 2964450598 | X13: 2962230598 | Y13: 2960010598 | Z13: 2957790598 | AA13: 2955570598 | AB13: 2953350598 | AC13: 2951130598 | AD13: 3001823809 | AE13: 2985357204 | AF13: 2968890598 | AG13: 2952423993 | AH13: 2935957387 | AI13: 1135418501 | AJ13: 2052154550 | AK13: 2968890598 | AL13: 3885626647 | AM13: 4802362696
B14: Notes: Current Values column represents values of changing cells at
B15: time Scenario Summary Report was created. Changing cells for each
B16: scenario are highlighted in gray.

Sheet SA PBP MBBR (hidden)
B2: Scenario Summary
D3: Current Values: | E3: Elec Tariff rate of increase | F3: E1 | G3: E2 | H3: E3 | I3: E4 | J3: Industrial Water sale potential | K3: I1 | L3: I2 | M3: I3 | N3: Land Cost Variation | O3: L1 | P3: L2 | Q3: L3 | R3: L4 | S3: Dist to Industry | T3: D1 | U3: D2 | V3: D3 | W3: D4 | X3: D5 | Y3: D6 | Z3: D7 | AA3: D8 | AB3: D9 | AC3: D10 | AD3: Elec Tariff Variation | AE3: T1 | AF3: T2 | AG3: T3 | AH3: T4 | AI3: Industrial Water Tariff | AJ3: W1 | AK3: W2 | AL3: W3 | AM3: W4
E4: Created by A on 11-05-2016 Modified by A on 11-05-2016 | F4: Created by A on 11-05-2016 Modified by A on 11-05-2016 | G4: Created by A on 11-05-2016 | H4: Created by A on 11-05-2016 | I4: Created by A on 11-05-2016 | J4: Created by A on 11-05-2016 | K4: Created by A on 11-05-2016 | L4: Created by A on 11-05-2016 | M4: Created by A on 11-05-2016 | N4: Created by A on 11-05-2016 | O4: Created by A on 11-05-2016 | P4: Created by A on 11-05-2016 | Q4: Created by A on 11-05-2016 | R4: Created by A on 11-05-2016 | S4: Created by A on 11-05-2016 | T4: Created by A on 11-05-2016 | U4: Created by A on 11-05-2016 | V4: Created by A on 11-05-2016 | W4: Created by A on 11-05-2016 | X4: Created by A on 11-05-2016 | Y4: Created by A on 11-05-2016 | Z4: Created by A on 11-05-2016 | AA4: Created by A on 11-05-2016 | AB4: Created by A on 11-05-2016 | AC4: Created by A on 11-05-2016 | AD4: Created by A on 11-05-2016 Modified by A on 11-05-2016 | AE4: Created by A on 11-05-2016 | AF4: Created by A on 11-05-2016 | AG4: Created by A on 11-05-2016 | AH4: Created by A on 11-05-2016 | AI4: Created by A on 11-05-2016 | AJ4: Created by A on 11-05-2016 | AK4: Created by A on 11-05-2016 | AL4: Created by A on 11-05-2016 | AM4: Created by A on 11-05-2016
B5: Changing Cells:
C6: $B$17 | D6: 0.08 | E6: 0.04 | F6: 0.06 | G6: 0.08 | H6: 0.1 | I6: 0.12 | J6: 0.08 | K6: 0.08 | L6: 0.08 | M6: 0.08 | N6: 0.08 | O6: 0.08 | P6: 0.08 | Q6: 0.08 | R6: 0.08 | S6: 0.08 | T6: 0.08 | U6: 0.08 | V6: 0.08 | W6: 0.08 | X6: 0.08 | Y6: 0.08 | Z6: 0.08 | AA6: 0.08 | AB6: 0.08 | AC6: 0.08 | AD6: 0.08 | AE6: 0.08 | AF6: 0.08 | AG6: 0.08 | AH6: 0.08 | AI6: 0.08 | AJ6: 0.08 | AK6: 0.08 | AL6: 0.08 | AM6: 0.08
C7: $B$22 | D7: 0.5 | E7: 0.5 | F7: 0.5 | G7: 0.5 | H7: 0.5 | I7: 0.5 | J7: 0.25 | K7: 0.5 | L7: 0.75 | M7: 1 | N7: 0.5 | O7: 0.5 | P7: 0.5 | Q7: 0.5 | R7: 0.5 | S7: 0.5 | T7: 0.5 | U7: 0.5 | V7: 0.5 | W7: 0.5 | X7: 0.5 | Y7: 0.5 | Z7: 0.5 | AA7: 0.5 | AB7: 0.5 | AC7: 0.5 | AD7: 0.5 | AE7: 0.5 | AF7: 0.5 | AG7: 0.5 | AH7: 0.5 | AI7: 0.5 | AJ7: 0.5 | AK7: 0.5 | AL7: 0.5 | AM7: 0.5
C8: $B$15 | D8: 1 | E8: 1 | F8: 1 | G8: 1 | H8: 1 | I8: 1 | J8: 1 | K8: 1 | L8: 1 | M8: 1 | N8: 0.5 | O8: 0.75 | P8: 1 | Q8: 1.25 | R8: 1.5 | S8: 1 | T8: 1 | U8: 1 | V8: 1 | W8: 1 | X8: 1 | Y8: 1 | Z8: 1 | AA8: 1 | AB8: 1 | AC8: 1 | AD8: 1 | AE8: 1 | AF8: 1 | AG8: 1 | AH8: 1 | AI8: 1 | AJ8: 1 | AK8: 1 | AL8: 1 | AM8: 1
C9: $B$16 | D9: 1 | E9: 1 | F9: 1 | G9: 1 | H9: 1 | I9: 1 | J9: 1 | K9: 1 | L9: 1 | M9: 1 | N9: 1 | O9: 1 | P9: 1 | Q9: 1 | R9: 1 | S9: 0.5 | T9: 0.75 | U9: 1 | V9: 1.25 | W9: 1.5 | X9: 1.75 | Y9: 2 | Z9: 2.25 | AA9: 2.5 | AB9: 2.75 | AC9: 3 | AD9: 1 | AE9: 1 | AF9: 1 | AG9: 1 | AH9: 1 | AI9: 1 | AJ9: 1 | AK9: 1 | AL9: 1 | AM9: 1
C10: $B$14 | D10: 1 | E10: 1 | F10: 1 | G10: 1 | H10: 1 | I10: 1 | J10: 1 | K10: 1 | L10: 1 | M10: 1 | N10: 1 | O10: 1 | P10: 1 | Q10: 1 | R10: 1 | S10: 1 | T10: 1 | U10: 1 | V10: 1 | W10: 1 | X10: 1 | Y10: 1 | Z10: 1 | AA10: 1 | AB10: 1 | AC10: 1 | AD10: 0.6 | AE10: 0.8 | AF10: 1 | AG10: 1.2 | AH10: 1.4 | AI10: 1 | AJ10: 1 | AK10: 1 | AL10: 1 | AM10: 1
C11: $B$18 | D11: 1 | E11: 1 | F11: 1 | G11: 1 | H11: 1 | I11: 1 | J11: 1 | K11: 1 | L11: 1 | M11: 1 | N11: 1 | O11: 1 | P11: 1 | Q11: 1 | R11: 1 | S11: 1 | T11: 1 | U11: 1 | V11: 1 | W11: 1 | X11: 1 | Y11: 1 | Z11: 1 | AA11: 1 | AB11: 1 | AC11: 1 | AD11: 1 | AE11: 1 | AF11: 1 | AG11: 1 | AH11: 1 | AI11: 0.5 | AJ11: 0.75 | AK11: 1 | AL11: 1.25 | AM11: 1.5
B12: Result Cells:
C13: $B$51 | D13: 1.568297054 | E13: 1.567845377 | F13: 1.568071126 | G13: 1.568297054 | H13: 1.568523163 | I13: 1.568749451 | J13: 3.499247525 | K13: 1.568297054 | L13: 1.006350473 | M13: 0 | N13: 1.430561462 | O13: 1.499429258 | P13: 1.568297054 | Q13: 1.637164851 | R13: 1.706032647 | S13: 1.553348151 | T13: 1.560822603 | U13: 1.568297054 | V13: 1.575771506 | W13: 1.583245957 | X13: 1.590720409 | Y13: 1.59819486 | Z13: 1.605669312 | AA13: 1.613143763 | AB13: 1.620618215 | AC13: 1.628092666 | AD13: 1.555394834 | AE13: 1.561819781 | AF13: 1.568297054 | AG13: 1.574827297 | AH13: 1.58141116 | AI13: 3.499247525 | AJ13: 2.160563717 | AK13: 1.568297054 | AL13: 1.228650754 | AM13: 1.006350473
B14: Notes: Current Values column represents values of changing cells at
B15: time Scenario Summary Report was created. Changing cells for each
B16: scenario are highlighted in gray.

Sheet SA NPV MBBR with tertiary (hidden)
B2: Scenario Summary
D3: Current Values: | E3: Elec Tariff rate of increase | F3: E1 | G3: E2 | H3: E3 | I3: E4 | J3: Industrial Water sale potential | K3: I1 | L3: I2 | M3: I3 | N3: Land Cost Variation | O3: L1 | P3: L2 | Q3: L3 | R3: L4 | S3: Dist to Industry | T3: D1 | U3: D2 | V3: D3 | W3: D4 | X3: D5 | Y3: D6 | Z3: D7 | AA3: D8 | AB3: D9 | AC3: D10 | AD3: Elec Tariff Variation | AE3: T1 | AF3: T2 | AG3: T3 | AH3: T4 | AI3: Industrial Water Tariff | AJ3: W1 | AK3: W2 | AL3: W3 | AM3: W4
E4: Created by A on 11-05-2016 Modified by A on 11-05-2016 | F4: Created by A on 11-05-2016 Modified by A on 11-05-2016 | G4: Created by A on 11-05-2016 | H4: Created by A on 11-05-2016 | I4: Created by A on 11-05-2016 | J4: Created by A on 11-05-2016 | K4: Created by A on 11-05-2016 | L4: Created by A on 11-05-2016 | M4: Created by A on 11-05-2016 | N4: Created by A on 11-05-2016 | O4: Created by A on 11-05-2016 | P4: Created by A on 11-05-2016 | Q4: Created by A on 11-05-2016 | R4: Created by A on 11-05-2016 | S4: Created by A on 11-05-2016 | T4: Created by A on 11-05-2016 | U4: Created by A on 11-05-2016 | V4: Created by A on 11-05-2016 | W4: Created by A on 11-05-2016 | X4: Created by A on 11-05-2016 | Y4: Created by A on 11-05-2016 | Z4: Created by A on 11-05-2016 | AA4: Created by A on 11-05-2016 | AB4: Created by A on 11-05-2016 | AC4: Created by A on 11-05-2016 | AD4: Created by A on 11-05-2016 Modified by A on 11-05-2016 | AE4: Created by A on 11-05-2016 | AF4: Created by A on 11-05-2016 | AG4: Created by A on 11-05-2016 | AH4: Created by A on 11-05-2016 | AI4: Created by A on 11-05-2016 | AJ4: Created by A on 11-05-2016 | AK4: Created by A on 11-05-2016 | AL4: Created by A on 11-05-2016 | AM4: Created by A on 11-05-2016
B5: Changing Cells:
C6: $B$17 | D6: 0.08 | E6: 0.04 | F6: 0.06 | G6: 0.08 | H6: 0.1 | I6: 0.12 | J6: 0.08 | K6: 0.08 | L6: 0.08 | M6: 0.08 | N6: 0.08 | O6: 0.08 | P6: 0.08 | Q6: 0.08 | R6: 0.08 | S6: 0.08 | T6: 0.08 | U6: 0.08 | V6: 0.08 | W6: 0.08 | X6: 0.08 | Y6: 0.08 | Z6: 0.08 | AA6: 0.08 | AB6: 0.08 | AC6: 0.08 | AD6: 0.08 | AE6: 0.08 | AF6: 0.08 | AG6: 0.08 | AH6: 0.08 | AI6: 0.08 | AJ6: 0.08 | AK6: 0.08 | AL6: 0.08 | AM6: 0.08
C7: $B$22 | D7: 0.5 | E7: 0.5 | F7: 0.5 | G7: 0.5 | H7: 0.5 | I7: 0.5 | J7: 0.25 | K7: 0.5 | L7: 0.75 | M7: 1 | N7: 0.5 | O7: 0.5 | P7: 0.5 | Q7: 0.5 | R7: 0.5 | S7: 0.5 | T7: 0.5 | U7: 0.5 | V7: 0.5 | W7: 0.5 | X7: 0.5 | Y7: 0.5 | Z7: 0.5 | AA7: 0.5 | AB7: 0.5 | AC7: 0.5 | AD7: 0.5 | AE7: 0.5 | AF7: 0.5 | AG7: 0.5 | AH7: 0.5 | AI7: 0.5 | AJ7: 0.5 | AK7: 0.5 | AL7: 0.5 | AM7: 0.5
C8: $B$15 | D8: 1 | E8: 1 | F8: 1 | G8: 1 | H8: 1 | I8: 1 | J8: 1 | K8: 1 | L8: 1 | M8: 1 | N8: 0.5 | O8: 0.75 | P8: 1 | Q8: 1.25 | R8: 1.5 | S8: 1 | T8: 1 | U8: 1 | V8: 1 | W8: 1 | X8: 1 | Y8: 1 | Z8: 1 | AA8: 1 | AB8: 1 | AC8: 1 | AD8: 1 | AE8: 1 | AF8: 1 | AG8: 1 | AH8: 1 | AI8: 1 | AJ8: 1 | AK8: 1 | AL8: 1 | AM8: 1
C9: $B$16 | D9: 1 | E9: 1 | F9: 1 | G9: 1 | H9: 1 | I9: 1 | J9: 1 | K9: 1 | L9: 1 | M9: 1 | N9: 1 | O9: 1 | P9: 1 | Q9: 1 | R9: 1 | S9: 0.5 | T9: 0.75 | U9: 1 | V9: 1.25 | W9: 1.5 | X9: 1.75 | Y9: 2 | Z9: 2.25 | AA9: 2.5 | AB9: 2.75 | AC9: 3 | AD9: 1 | AE9: 1 | AF9: 1 | AG9: 1 | AH9: 1 | AI9: 1 | AJ9: 1 | AK9: 1 | AL9: 1 | AM9: 1
C10: $B$14 | D10: 1 | E10: 1 | F10: 1 | G10: 1 | H10: 1 | I10: 1 | J10: 1 | K10: 1 | L10: 1 | M10: 1 | N10: 1 | O10: 1 | P10: 1 | Q10: 1 | R10: 1 | S10: 1 | T10: 1 | U10: 1 | V10: 1 | W10: 1 | X10: 1 | Y10: 1 | Z10: 1 | AA10: 1 | AB10: 1 | AC10: 1 | AD10: 0.6 | AE10: 0.8 | AF10: 1 | AG10: 1.2 | AH10: 1.4 | AI10: 1 | AJ10: 1 | AK10: 1 | AL10: 1 | AM10: 1
C11: $B$18 | D11: 1 | E11: 1 | F11: 1 | G11: 1 | H11: 1 | I11: 1 | J11: 1 | K11: 1 | L11: 1 | M11: 1 | N11: 1 | O11: 1 | P11: 1 | Q11: 1 | R11: 1 | S11: 1 | T11: 1 | U11: 1 | V11: 1 | W11: 1 | X11: 1 | Y11: 1 | Z11: 1 | AA11: 1 | AB11: 1 | AC11: 1 | AD11: 1 | AE11: 1 | AF11: 1 | AG11: 1 | AH11: 1 | AI11: 0.5 | AJ11: 0.75 | AK11: 1 | AL11: 1.25 | AM11: 1.5
B12: Result Cells:
C13: $B$46 | D13: 1618033892 | E13: 1636771307 | F13: 1628128009 | G13: 1618033892 | H13: 1606229795 | I13: 1592411200 | J13: 151256214.3 | K13: 1618033892 | L13: 3084811571 | M13: 4551589249 | N13: 1668033892 | O13: 1643033892 | P13: 1618033892 | Q13: 1593033892 | R13: 1568033892 | S13: 1622473892 | T13: 1620253892 | U13: 1618033892 | V13: 1615813892 | W13: 1613593892 | X13: 1611373892 | Y13: 1609153892 | Z13: 1606933892 | AA13: 1604713892 | AB13: 1602493892 | AC13: 1600273892 | AD13: 1651599421 | AE13: 1634816657 | AF13: 1618033892 | AG13: 1601251128 | AH13: 1584468364 | AI13: 151256214.3 | AJ13: 884645053.4 | AK13: 1618033892 | AL13: 2351422732 | AM13: 3084811571
B14: Notes: Current Values column represents values of changing cells at
B15: time Scenario Summary Report was created. Changing cells for each
B16: scenario are highlighted in gray.

Sheet SA PBP MBBR with tertiary (hidden)
B2: Scenario Summary
D3: Current Values: | E3: Elec Tariff rate of increase | F3: E1 | G3: E2 | H3: E3 | I3: E4 | J3: Industrial Water sale potential | K3: I1 | L3: I2 | M3: I3 | N3: Land Cost Variation | O3: L1 | P3: L2 | Q3: L3 | R3: L4 | S3: Dist to Industry | T3: D1 | U3: D2 | V3: D3 | W3: D4 | X3: D5 | Y3: D6 | Z3: D7 | AA3: D8 | AB3: D9 | AC3: D10 | AD3: Elec Tariff Variation | AE3: T1 | AF3: T2 | AG3: T3 | AH3: T4 | AI3: Industrial Water Tariff | AJ3: W1 | AK3: W2 | AL3: W3 | AM3: W4
E4: Created by A on 11-05-2016 Modified by A on 11-05-2016 | F4: Created by A on 11-05-2016 Modified by A on 11-05-2016 | G4: Created by A on 11-05-2016 | H4: Created by A on 11-05-2016 | I4: Created by A on 11-05-2016 | J4: Created by A on 11-05-2016 | K4: Created by A on 11-05-2016 | L4: Created by A on 11-05-2016 | M4: Created by A on 11-05-2016 | N4: Created by A on 11-05-2016 | O4: Created by A on 11-05-2016 | P4: Created by A on 11-05-2016 | Q4: Created by A on 11-05-2016 | R4: Created by A on 11-05-2016 | S4: Created by A on 11-05-2016 | T4: Created by A on 11-05-2016 | U4: Created by A on 11-05-2016 | V4: Created by A on 11-05-2016 | W4: Created by A on 11-05-2016 | X4: Created by A on 11-05-2016 | Y4: Created by A on 11-05-2016 | Z4: Created by A on 11-05-2016 | AA4: Created by A on 11-05-2016 | AB4: Created by A on 11-05-2016 | AC4: Created by A on 11-05-2016 | AD4: Created by A on 11-05-2016 Modified by A on 11-05-2016 | AE4: Created by A on 11-05-2016 | AF4: Created by A on 11-05-2016 | AG4: Created by A on 11-05-2016 | AH4: Created by A on 11-05-2016 | AI4: Created by A on 11-05-2016 | AJ4: Created by A on 11-05-2016 | AK4: Created by A on 11-05-2016 | AL4: Created by A on 11-05-2016 | AM4: Created by A on 11-05-2016
B5: Changing Cells:
C6: $B$17 | D6: 0.08 | E6: 0.04 | F6: 0.06 | G6: 0.08 | H6: 0.1 | I6: 0.12 | J6: 0.08 | K6: 0.08 | L6: 0.08 | M6: 0.08 | N6: 0.08 | O6: 0.08 | P6: 0.08 | Q6: 0.08 | R6: 0.08 | S6: 0.08 | T6: 0.08 | U6: 0.08 | V6: 0.08 | W6: 0.08 | X6: 0.08 | Y6: 0.08 | Z6: 0.08 | AA6: 0.08 | AB6: 0.08 | AC6: 0.08 | AD6: 0.08 | AE6: 0.08 | AF6: 0.08 | AG6: 0.08 | AH6: 0.08 | AI6: 0.08 | AJ6: 0.08 | AK6: 0.08 | AL6: 0.08 | AM6: 0.08
C7: $B$22 | D7: 0.5 | E7: 0.5 | F7: 0.5 | G7: 0.5 | H7: 0.5 | I7: 0.5 | J7: 0.25 | K7: 0.5 | L7: 0.75 | M7: 1 | N7: 0.5 | O7: 0.5 | P7: 0.5 | Q7: 0.5 | R7: 0.5 | S7: 0.5 | T7: 0.5 | U7: 0.5 | V7: 0.5 | W7: 0.5 | X7: 0.5 | Y7: 0.5 | Z7: 0.5 | AA7: 0.5 | AB7: 0.5 | AC7: 0.5 | AD7: 0.5 | AE7: 0.5 | AF7: 0.5 | AG7: 0.5 | AH7: 0.5 | AI7: 0.5 | AJ7: 0.5 | AK7: 0.5 | AL7: 0.5 | AM7: 0.5
C8: $B$15 | D8: 1 | E8: 1 | F8: 1 | G8: 1 | H8: 1 | I8: 1 | J8: 1 | K8: 1 | L8: 1 | M8: 1 | N8: 0.5 | O8: 0.75 | P8: 1 | Q8: 1.25 | R8: 1.5 | S8: 1 | T8: 1 | U8: 1 | V8: 1 | W8: 1 | X8: 1 | Y8: 1 | Z8: 1 | AA8: 1 | AB8: 1 | AC8: 1 | AD8: 1 | AE8: 1 | AF8: 1 | AG8: 1 | AH8: 1 | AI8: 1 | AJ8: 1 | AK8: 1 | AL8: 1 | AM8: 1
C9: $B$16 | D9: 1 | E9: 1 | F9: 1 | G9: 1 | H9: 1 | I9: 1 | J9: 1 | K9: 1 | L9: 1 | M9: 1 | N9: 1 | O9: 1 | P9: 1 | Q9: 1 | R9: 1 | S9: 0.5 | T9: 0.75 | U9: 1 | V9: 1.25 | W9: 1.5 | X9: 1.75 | Y9: 2 | Z9: 2.25 | AA9: 2.5 | AB9: 2.75 | AC9: 3 | AD9: 1 | AE9: 1 | AF9: 1 | AG9: 1 | AH9: 1 | AI9: 1 | AJ9: 1 | AK9: 1 | AL9: 1 | AM9: 1
C10: $B$14 | D10: 1 | E10: 1 | F10: 1 | G10: 1 | H10: 1 | I10: 1 | J10: 1 | K10: 1 | L10: 1 | M10: 1 | N10: 1 | O10: 1 | P10: 1 | Q10: 1 | R10: 1 | S10: 1 | T10: 1 | U10: 1 | V10: 1 | W10: 1 | X10: 1 | Y10: 1 | Z10: 1 | AA10: 1 | AB10: 1 | AC10: 1 | AD10: 0.6 | AE10: 0.8 | AF10: 1 | AG10: 1.2 | AH10: 1.4 | AI10: 1 | AJ10: 1 | AK10: 1 | AL10: 1 | AM10: 1
C11: $B$18 | D11: 1 | E11: 1 | F11: 1 | G11: 1 | H11: 1 | I11: 1 | J11: 1 | K11: 1 | L11: 1 | M11: 1 | N11: 1 | O11: 1 | P11: 1 | Q11: 1 | R11: 1 | S11: 1 | T11: 1 | U11: 1 | V11: 1 | W11: 1 | X11: 1 | Y11: 1 | Z11: 1 | AA11: 1 | AB11: 1 | AC11: 1 | AD11: 1 | AE11: 1 | AF11: 1 | AG11: 1 | AH11: 1 | AI11: 0.5 | AJ11: 0.75 | AK11: 1 | AL11: 1.25 | AM11: 1.5
B12: Result Cells:
C13: $B$51 | D13: 3.488649122 | E13: 3.482901733 | F13: 3.485740904 | G13: 3.488649122 | H13: 3.49162804 | I13: 3.494679375 | J13: 12.03918146 | K13: 3.488649122 | L13: 2.051655121 | M13: 1.460998673 | N13: 3.206005843 | O13: 3.347327482 | P13: 3.488649122 | Q13: 3.629970761 | R13: 3.7712924 | S13: 3.463550398 | T13: 3.47609976 | U13: 3.488649122 | V13: 3.501198483 | W13: 3.513747845 | X13: 3.526297206 | Y13: 3.538846568 | Z13: 3.551395929 | AA13: 3.563945291 | AB13: 3.576494653 | AC13: 3.589044014 | AD13: 3.441021236 | AE13: 3.464679424 | AF13: 3.488649122 | AG13: 3.51293652 | AH13: 3.537547979 | AI13: 12.03918146 | AJ13: 5.37192804 | AK13: 3.488649122 | AL13: 2.5870947 | AM13: 2.051655121
B14: Notes: Current Values column represents values of changing cells at
B15: time Scenario Summary Report was created. Changing cells for each
B16: scenario are highlighted in gray.

Sheet SA NPV MBR (hidden)
B2: Scenario Summary
D3: Current Values: | E3: Elec Tariff rate of increase | F3: E1 | G3: E2 | H3: E3 | I3: E4 | J3: Industrial Water sale potential | K3: I1 | L3: I2 | M3: I3 | N3: Land Cost Variation | O3: L1 | P3: L2 | Q3: L3 | R3: L4 | S3: Dist to Industry | T3: D1 | U3: D2 | V3: D3 | W3: D4 | X3: D5 | Y3: D6 | Z3: D7 | AA3: D8 | AB3: D9 | AC3: D10 | AD3: Elec Tariff Variation | AE3: T1 | AF3: T2 | AG3: T3 | AH3: T4 | AI3: Industrial Water Tariff | AJ3: W1 | AK3: W2 | AL3: W3 | AM3: W4
E4: Created by A on 11-05-2016 Modified by A on 11-05-2016 | F4: Created by A on 11-05-2016 Modified by A on 11-05-2016 | G4: Created by A on 11-05-2016 | H4: Created by A on 11-05-2016 | I4: Created by A on 11-05-2016 | J4: Created by A on 11-05-2016 | K4: Created by A on 11-05-2016 | L4: Created by A on 11-05-2016 | M4: Created by A on 11-05-2016 | N4: Created by A on 11-05-2016 | O4: Created by A on 11-05-2016 | P4: Created by A on 11-05-2016 | Q4: Created by A on 11-05-2016 | R4: Created by A on 11-05-2016 | S4: Created by A on 11-05-2016 | T4: Created by A on 11-05-2016 | U4: Created by A on 11-05-2016 | V4: Created by A on 11-05-2016 | W4: Created by A on 11-05-2016 | X4: Created by A on 11-05-2016 | Y4: Created by A on 11-05-2016 | Z4: Created by A on 11-05-2016 | AA4: Created by A on 11-05-2016 | AB4: Created by A on 11-05-2016 | AC4: Created by A on 11-05-2016 | AD4: Created by A on 11-05-2016 Modified by A on 11-05-2016 | AE4: Created by A on 11-05-2016 | AF4: Created by A on 11-05-2016 | AG4: Created by A on 11-05-2016 | AH4: Created by A on 11-05-2016 | AI4: Created by A on 11-05-2016 | AJ4: Created by A on 11-05-2016 | AK4: Created by A on 11-05-2016 | AL4: Created by A on 11-05-2016 | AM4: Created by A on 11-05-2016
B5: Changing Cells:
C6: $B$17 | D6: 0.08 | E6: 0.04 | F6: 0.06 | G6: 0.08 | H6: 0.1 | I6: 0.12 | J6: 0.08 | K6: 0.08 | L6: 0.08 | M6: 0.08 | N6: 0.08 | O6: 0.08 | P6: 0.08 | Q6: 0.08 | R6: 0.08 | S6: 0.08 | T6: 0.08 | U6: 0.08 | V6: 0.08 | W6: 0.08 | X6: 0.08 | Y6: 0.08 | Z6: 0.08 | AA6: 0.08 | AB6: 0.08 | AC6: 0.08 | AD6: 0.08 | AE6: 0.08 | AF6: 0.08 | AG6: 0.08 | AH6: 0.08 | AI6: 0.08 | AJ6: 0.08 | AK6: 0.08 | AL6: 0.08 | AM6: 0.08
C7: $B$22 | D7: 0.5 | E7: 0.5 | F7: 0.5 | G7: 0.5 | H7: 0.5 | I7: 0.5 | J7: 0.25 | K7: 0.5 | L7: 0.75 | M7: 1 | N7: 0.5 | O7: 0.5 | P7: 0.5 | Q7: 0.5 | R7: 0.5 | S7: 0.5 | T7: 0.5 | U7: 0.5 | V7: 0.5 | W7: 0.5 | X7: 0.5 | Y7: 0.5 | Z7: 0.5 | AA7: 0.5 | AB7: 0.5 | AC7: 0.5 | AD7: 0.5 | AE7: 0.5 | AF7: 0.5 | AG7: 0.5 | AH7: 0.5 | AI7: 0.5 | AJ7: 0.5 | AK7: 0.5 | AL7: 0.5 | AM7: 0.5
C8: $B$15 | D8: 1 | E8: 1 | F8: 1 | G8: 1 | H8: 1 | I8: 1 | J8: 1 | K8: 1 | L8: 1 | M8: 1 | N8: 0.5 | O8: 0.75 | P8: 1 | Q8: 1.25 | R8: 1.5 | S8: 1 | T8: 1 | U8: 1 | V8: 1 | W8: 1 | X8: 1 | Y8: 1 | Z8: 1 | AA8: 1 | AB8: 1 | AC8: 1 | AD8: 1 | AE8: 1 | AF8: 1 | AG8: 1 | AH8: 1 | AI8: 1 | AJ8: 1 | AK8: 1 | AL8: 1 | AM8: 1
C9: $B$16 | D9: 1 | E9: 1 | F9: 1 | G9: 1 | H9: 1 | I9: 1 | J9: 1 | K9: 1 | L9: 1 | M9: 1 | N9: 1 | O9: 1 | P9: 1 | Q9: 1 | R9: 1 | S9: 0.5 | T9: 0.75 | U9: 1 | V9: 1.25 | W9: 1.5 | X9: 1.75 | Y9: 2 | Z9: 2.25 | AA9: 2.5 | AB9: 2.75 | AC9: 3 | AD9: 1 | AE9: 1 | AF9: 1 | AG9: 1 | AH9: 1 | AI9: 1 | AJ9: 1 | AK9: 1 | AL9: 1 | AM9: 1
C10: $B$14 | D10: 1 | E10: 1 | F10: 1 | G10: 1 | H10: 1 | I10: 1 | J10: 1 | K10: 1 | L10: 1 | M10: 1 | N10: 1 | O10: 1 | P10: 1 | Q10: 1 | R10: 1 | S10: 1 | T10: 1 | U10: 1 | V10: 1 | W10: 1 | X10: 1 | Y10: 1 | Z10: 1 | AA10: 1 | AB10: 1 | AC10: 1 | AD10: 0.6 | AE10: 0.8 | AF10: 1 | AG10: 1.2 | AH10: 1.4 | AI10: 1 | AJ10: 1 | AK10: 1 | AL10: 1 | AM10: 1
C11: $B$18 | D11: 1 | E11: 1 | F11: 1 | G11: 1 | H11: 1 | I11: 1 | J11: 1 | K11: 1 | L11: 1 | M11: 1 | N11: 1 | O11: 1 | P11: 1 | Q11: 1 | R11: 1 | S11: 1 | T11: 1 | U11: 1 | V11: 1 | W11: 1 | X11: 1 | Y11: 1 | Z11: 1 | AA11: 1 | AB11: 1 | AC11: 1 | AD11: 1 | AE11: 1 | AF11: 1 | AG11: 1 | AH11: 1 | AI11: 0.5 | AJ11: 0.75 | AK11: 1 | AL11: 1.25 | AM11: 1.5
B12: Result Cells:
C13: $B$46 | D13: 689098822.9 | E13: 729832747.4 | F13: 711042778.5 | G13: 689098822.9 | H13: 663437479.3 | I13: 633396748.8 | J13: -777678855.3 | K13: 689098822.9 | L13: 2155876501 | M13: 3622654179 | N13: 730007913.8 | O13: 709553368.3 | P13: 689098822.9 | Q13: 668644277.4 | R13: 648189731.9 | S13: 693538822.9 | T13: 691318822.9 | U13: 689098822.9 | V13: 686878822.9 | W13: 684658822.9 | X13: 682438822.9 | Y13: 680218822.9 | Z13: 677998822.9 | AA13: 675778822.9 | AB13: 673558822.9 | AC13: 671338822.9 | AD13: 764186544.1 | AE13: 726642683.5 | AF13: 689098822.9 | AG13: 651554962.2 | AH13: 614011101.6 | AI13: -777678855.3 | AJ13: -44290016.2 | AK13: 689098822.9 | AL13: 1422487662 | AM13: 2155876501
B14: Notes: Current Values column represents values of changing cells at
B15: time Scenario Summary Report was created. Changing cells for each
B16: scenario are highlighted in gray.

Sheet SA PBP MBR (hidden)
B2: Scenario Summary
D3: Current Values: | E3: Elec Tariff rate of increase | F3: E1 | G3: E2 | H3: E3 | I3: E4 | J3: Industrial Water sale potential | K3: I1 | L3: I2 | M3: I3 | N3: Land Cost Variation | O3: L1 | P3: L2 | Q3: L3 | R3: L4 | S3: Dist to Industry | T3: D1 | U3: D2 | V3: D3 | W3: D4 | X3: D5 | Y3: D6 | Z3: D7 | AA3: D8 | AB3: D9 | AC3: D10 | AD3: Elec Tariff Variation | AE3: T1 | AF3: T2 | AG3: T3 | AH3: T4 | AI3: Industrial Water Tariff | AJ3: W1 | AK3: W2 | AL3: W3 | AM3: W4
E4: Created by A on 11-05-2016 Modified by A on 11-05-2016 | F4: Created by A on 11-05-2016 Modified by A on 11-05-2016 | G4: Created by A on 11-05-2016 | H4: Created by A on 11-05-2016 | I4: Created by A on 11-05-2016 | J4: Created by A on 11-05-2016 | K4: Created by A on 11-05-2016 | L4: Created by A on 11-05-2016 | M4: Created by A on 11-05-2016 | N4: Created by A on 11-05-2016 | O4: Created by A on 11-05-2016 | P4: Created by A on 11-05-2016 | Q4: Created by A on 11-05-2016 | R4: Created by A on 11-05-2016 | S4: Created by A on 11-05-2016 | T4: Created by A on 11-05-2016 | U4: Created by A on 11-05-2016 | V4: Created by A on 11-05-2016 | W4: Created by A on 11-05-2016 | X4: Created by A on 11-05-2016 | Y4: Created by A on 11-05-2016 | Z4: Created by A on 11-05-2016 | AA4: Created by A on 11-05-2016 | AB4: Created by A on 11-05-2016 | AC4: Created by A on 11-05-2016 | AD4: Created by A on 11-05-2016 Modified by A on 11-05-2016 | AE4: Created by A on 11-05-2016 | AF4: Created by A on 11-05-2016 | AG4: Created by A on 11-05-2016 | AH4: Created by A on 11-05-2016 | AI4: Created by A on 11-05-2016 | AJ4: Created by A on 11-05-2016 | AK4: Created by A on 11-05-2016 | AL4: Created by A on 11-05-2016 | AM4: Created by A on 11-05-2016
B5: Changing Cells:
C6: $B$17 | D6: 0.08 | E6: 0.04 | F6: 0.06 | G6: 0.08 | H6: 0.1 | I6: 0.12 | J6: 0.08 | K6: 0.08 | L6: 0.08 | M6: 0.08 | N6: 0.08 | O6: 0.08 | P6: 0.08 | Q6: 0.08 | R6: 0.08 | S6: 0.08 | T6: 0.08 | U6: 0.08 | V6: 0.08 | W6: 0.08 | X6: 0.08 | Y6: 0.08 | Z6: 0.08 | AA6: 0.08 | AB6: 0.08 | AC6: 0.08 | AD6: 0.08 | AE6: 0.08 | AF6: 0.08 | AG6: 0.08 | AH6: 0.08 | AI6: 0.08 | AJ6: 0.08 | AK6: 0.08 | AL6: 0.08 | AM6: 0.08
C7: $B$22 | D7: 0.5 | E7: 0.5 | F7: 0.5 | G7: 0.5 | H7: 0.5 | I7: 0.5 | J7: 0.25 | K7: 0.5 | L7: 0.75 | M7: 1 | N7: 0.5 | O7: 0.5 | P7: 0.5 | Q7: 0.5 | R7: 0.5 | S7: 0.5 | T7: 0.5 | U7: 0.5 | V7: 0.5 | W7: 0.5 | X7: 0.5 | Y7: 0.5 | Z7: 0.5 | AA7: 0.5 | AB7: 0.5 | AC7: 0.5 | AD7: 0.5 | AE7: 0.5 | AF7: 0.5 | AG7: 0.5 | AH7: 0.5 | AI7: 0.5 | AJ7: 0.5 | AK7: 0.5 | AL7: 0.5 | AM7: 0.5
C8: $B$15 | D8: 1 | E8: 1 | F8: 1 | G8: 1 | H8: 1 | I8: 1 | J8: 1 | K8: 1 | L8: 1 | M8: 1 | N8: 0.5 | O8: 0.75 | P8: 1 | Q8: 1.25 | R8: 1.5 | S8: 1 | T8: 1 | U8: 1 | V8: 1 | W8: 1 | X8: 1 | Y8: 1 | Z8: 1 | AA8: 1 | AB8: 1 | AC8: 1 | AD8: 1 | AE8: 1 | AF8: 1 | AG8: 1 | AH8: 1 | AI8: 1 | AJ8: 1 | AK8: 1 | AL8: 1 | AM8: 1
C9: $B$16 | D9: 1 | E9: 1 | F9: 1 | G9: 1 | H9: 1 | I9: 1 | J9: 1 | K9: 1 | L9: 1 | M9: 1 | N9: 1 | O9: 1 | P9: 1 | Q9: 1 | R9: 1 | S9: 0.5 | T9: 0.75 | U9: 1 | V9: 1.25 | W9: 1.5 | X9: 1.75 | Y9: 2 | Z9: 2.25 | AA9: 2.5 | AB9: 2.75 | AC9: 3 | AD9: 1 | AE9: 1 | AF9: 1 | AG9: 1 | AH9: 1 | AI9: 1 | AJ9: 1 | AK9: 1 | AL9: 1 | AM9: 1
C10: $B$14 | D10: 1 | E10: 1 | F10: 1 | G10: 1 | H10: 1 | I10: 1 | J10: 1 | K10: 1 | L10: 1 | M10: 1 | N10: 1 | O10: 1 | P10: 1 | Q10: 1 | R10: 1 | S10: 1 | T10: 1 | U10: 1 | V10: 1 | W10: 1 | X10: 1 | Y10: 1 | Z10: 1 | AA10: 1 | AB10: 1 | AC10: 1 | AD10: 0.6 | AE10: 0.8 | AF10: 1 | AG10: 1.2 | AH10: 1.4 | AI10: 1 | AJ10: 1 | AK10: 1 | AL10: 1 | AM10: 1
C11: $B$18 | D11: 1 | E11: 1 | F11: 1 | G11: 1 | H11: 1 | I11: 1 | J11: 1 | K11: 1 | L11: 1 | M11: 1 | N11: 1 | O11: 1 | P11: 1 | Q11: 1 | R11: 1 | S11: 1 | T11: 1 | U11: 1 | V11: 1 | W11: 1 | X11: 1 | Y11: 1 | Z11: 1 | AA11: 1 | AB11: 1 | AC11: 1 | AD11: 1 | AE11: 1 | AF11: 1 | AG11: 1 | AH11: 1 | AI11: 0.5 | AJ11: 0.75 | AK11: 1 | AL11: 1.25 | AM11: 1.5
B12: Result Cells:
C13: $B$51 | D13: 9.500408181 | E13: 9.36367994 | F13: 9.428058153 | G13: 9.500408181 | H13: 9.582170416 | I13: 9.675166982 | J13: 0 | K13: 9.500408181 | L13: 5.097373758 | M13: 3.505854042 | N13: 9.158806925 | O13: 9.329607553 | P13: 9.500408181 | Q13: 9.671208809 | R13: 9.842009436 | S13: 9.463333058 | T13: 9.481870619 | U13: 9.500408181 | V13: 9.518945742 | W13: 9.537483304 | X13: 9.556020865 | Y13: 9.574558427 | Z13: 9.593095988 | AA13: 9.61163355 | AB13: 9.630171111 | AC13: 9.648708673 | AD13: 9.114550369 | AE13: 9.304003402 | AF13: 9.500408181 | AG13: 9.704154485 | AH13: 9.915661788 | AI13: 0 | AJ13: 0 | AK13: 9.500408181 | AL13: 6.623228011 | AM13: 5.097373758
B14: Notes: Current Values column represents values of changing cells at
B15: time Scenario Summary Report was created. Changing cells for each
B16: scenario are highlighted in gray.

Sheet SA NPV UASB (hidden)
B2: Scenario Summary
D3: Current Values: | E3: Elec Tariff rate of increase | F3: E1 | G3: E2 | H3: E3 | I3: E4 | J3: Industrial Water sale potential | K3: I1 | L3: I2 | M3: I3 | N3: Land Cost Variation | O3: L1 | P3: L2 | Q3: L3 | R3: L4 | S3: Dist to Industry | T3: D1 | U3: D2 | V3: D3 | W3: D4 | X3: D5 | Y3: D6 | Z3: D7 | AA3: D8 | AB3: D9 | AC3: D10 | AD3: Elec Tariff Variation | AE3: T1 | AF3: T2 | AG3: T3 | AH3: T4 | AI3: Industrial Water Tariff | AJ3: W1 | AK3: W2 | AL3: W3 | AM3: W4
E4: Created by A on 11-05-2016 Modified by A on 11-05-2016 | F4: Created by A on 11-05-2016 Modified by A on 11-05-2016 | G4: Created by A on 11-05-2016 | H4: Created by A on 11-05-2016 | I4: Created by A on 11-05-2016 | J4: Created by A on 11-05-2016 | K4: Created by A on 11-05-2016 | L4: Created by A on 11-05-2016 | M4: Created by A on 11-05-2016 | N4: Created by A on 11-05-2016 | O4: Created by A on 11-05-2016 | P4: Created by A on 11-05-2016 | Q4: Created by A on 11-05-2016 | R4: Created by A on 11-05-2016 | S4: Created by A on 11-05-2016 | T4: Created by A on 11-05-2016 | U4: Created by A on 11-05-2016 | V4: Created by A on 11-05-2016 | W4: Created by A on 11-05-2016 | X4: Created by A on 11-05-2016 | Y4: Created by A on 11-05-2016 | Z4: Created by A on 11-05-2016 | AA4: Created by A on 11-05-2016 | AB4: Created by A on 11-05-2016 | AC4: Created by A on 11-05-2016 | AD4: Created by A on 11-05-2016 Modified by A on 11-05-2016 | AE4: Created by A on 11-05-2016 | AF4: Created by A on 11-05-2016 | AG4: Created by A on 11-05-2016 | AH4: Created by A on 11-05-2016 | AI4: Created by A on 11-05-2016 | AJ4: Created by A on 11-05-2016 | AK4: Created by A on 11-05-2016 | AL4: Created by A on 11-05-2016 | AM4: Created by A on 11-05-2016
B5: Changing Cells:
C6: $B$17 | D6: 0.08 | E6: 0.04 | F6: 0.06 | G6: 0.08 | H6: 0.1 | I6: 0.12 | J6: 0.08 | K6: 0.08 | L6: 0.08 | M6: 0.08 | N6: 0.08 | O6: 0.08 | P6: 0.08 | Q6: 0.08 | R6: 0.08 | S6: 0.08 | T6: 0.08 | U6: 0.08 | V6: 0.08 | W6: 0.08 | X6: 0.08 | Y6: 0.08 | Z6: 0.08 | AA6: 0.08 | AB6: 0.08 | AC6: 0.08 | AD6: 0.08 | AE6: 0.08 | AF6: 0.08 | AG6: 0.08 | AH6: 0.08 | AI6: 0.08 | AJ6: 0.08 | AK6: 0.08 | AL6: 0.08 | AM6: 0.08
C7: $B$22 | D7: 0.5 | E7: 0.5 | F7: 0.5 | G7: 0.5 | H7: 0.5 | I7: 0.5 | J7: 0.25 | K7: 0.5 | L7: 0.75 | M7: 1 | N7: 0.5 | O7: 0.5 | P7: 0.5 | Q7: 0.5 | R7: 0.5 | S7: 0.5 | T7: 0.5 | U7: 0.5 | V7: 0.5 | W7: 0.5 | X7: 0.5 | Y7: 0.5 | Z7: 0.5 | AA7: 0.5 | AB7: 0.5 | AC7: 0.5 | AD7: 0.5 | AE7: 0.5 | AF7: 0.5 | AG7: 0.5 | AH7: 0.5 | AI7: 0.5 | AJ7: 0.5 | AK7: 0.5 | AL7: 0.5 | AM7: 0.5
C8: $B$15 | D8: 1 | E8: 1 | F8: 1 | G8: 1 | H8: 1 | I8: 1 | J8: 1 | K8: 1 | L8: 1 | M8: 1 | N8: 0.5 | O8: 0.75 | P8: 1 | Q8: 1.25 | R8: 1.5 | S8: 1 | T8: 1 | U8: 1 | V8: 1 | W8: 1 | X8: 1 | Y8: 1 | Z8: 1 | AA8: 1 | AB8: 1 | AC8: 1 | AD8: 1 | AE8: 1 | AF8: 1 | AG8: 1 | AH8: 1 | AI8: 1 | AJ8: 1 | AK8: 1 | AL8: 1 | AM8: 1
C9: $B$16 | D9: 1 | E9: 1 | F9: 1 | G9: 1 | H9: 1 | I9: 1 | J9: 1 | K9: 1 | L9: 1 | M9: 1 | N9: 1 | O9: 1 | P9: 1 | Q9: 1 | R9: 1 | S9: 0.5 | T9: 0.75 | U9: 1 | V9: 1.25 | W9: 1.5 | X9: 1.75 | Y9: 2 | Z9: 2.25 | AA9: 2.5 | AB9: 2.75 | AC9: 3 | AD9: 1 | AE9: 1 | AF9: 1 | AG9: 1 | AH9: 1 | AI9: 1 | AJ9: 1 | AK9: 1 | AL9: 1 | AM9: 1
C10: $B$14 | D10: 1 | E10: 1 | F10: 1 | G10: 1 | H10: 1 | I10: 1 | J10: 1 | K10: 1 | L10: 1 | M10: 1 | N10: 1 | O10: 1 | P10: 1 | Q10: 1 | R10: 1 | S10: 1 | T10: 1 | U10: 1 | V10: 1 | W10: 1 | X10: 1 | Y10: 1 | Z10: 1 | AA10: 1 | AB10: 1 | AC10: 1 | AD10: 0.6 | AE10: 0.8 | AF10: 1 | AG10: 1.2 | AH10: 1.4 | AI10: 1 | AJ10: 1 | AK10: 1 | AL10: 1 | AM10: 1
C11: $B$18 | D11: 1 | E11: 1 | F11: 1 | G11: 1 | H11: 1 | I11: 1 | J11: 1 | K11: 1 | L11: 1 | M11: 1 | N11: 1 | O11: 1 | P11: 1 | Q11: 1 | R11: 1 | S11: 1 | T11: 1 | U11: 1 | V11: 1 | W11: 1 | X11: 1 | Y11: 1 | Z11: 1 | AA11: 1 | AB11: 1 | AC11: 1 | AD11: 1 | AE11: 1 | AF11: 1 | AG11: 1 | AH11: 1 | AI11: 0.5 | AJ11: 0.75 | AK11: 1 | AL11: 1.25 | AM11: 1.5
B12: Result Cells:
C13: $B$46 | D13: 1883916225 | E13: 1875297573 | F13: 1879273232 | G13: 1883916225 | H13: 1889345758 | I13: 1895701900 | J13: 417138546.6 | K13: 1883916225 | L13: 3350693903 | M13: 4817471581 | N13: 1983916225 | O13: 1933916225 | P13: 1883916225 | Q13: 1833916225 | R13: 1783916225 | S13: 1888356225 | T13: 1886136225 | U13: 1883916225 | V13: 1881696225 | W13: 1879476225 | X13: 1877256225 | Y13: 1875036225 | Z13: 1872816225 | AA13: 1870596225 | AB13: 1868376225 | AC13: 1866156225 | AD13: 1865842479 | AE13: 1874879352 | AF13: 1883916225 | AG13: 1892953098 | AH13: 1901989971 | AI13: 417138546.6 | AJ13: 1150527386 | AK13: 1883916225 | AL13: 2617305064 | AM13: 3350693903
B14: Notes: Current Values column represents values of changing cells at
B15: time Scenario Summary Report was created. Changing cells for each
B16: scenario are highlighted in gray.

Sheet SA PBP UASB (hidden)
B2: Scenario Summary
D3: Current Values: | E3: Elec Tariff rate of increase | F3: E1 | G3: E2 | H3: E3 | I3: E4 | J3: Industrial Water sale potential | K3: I1 | L3: I2 | M3: I3 | N3: Land Cost Variation | O3: L1 | P3: L2 | Q3: L3 | R3: L4 | S3: Dist to Industry | T3: D1 | U3: D2 | V3: D3 | W3: D4 | X3: D5 | Y3: D6 | Z3: D7 | AA3: D8 | AB3: D9 | AC3: D10 | AD3: Elec Tariff Variation | AE3: T1 | AF3: T2 | AG3: T3 | AH3: T4 | AI3: Industrial Water Tariff | AJ3: W1 | AK3: W2 | AL3: W3 | AM3: W4
E4: Created by A on 11-05-2016 Modified by A on 11-05-2016 | F4: Created by A on 11-05-2016 Modified by A on 11-05-2016 | G4: Created by A on 11-05-2016 | H4: Created by A on 11-05-2016 | I4: Created by A on 11-05-2016 | J4: Created by A on 11-05-2016 | K4: Created by A on 11-05-2016 | L4: Created by A on 11-05-2016 | M4: Created by A on 11-05-2016 | N4: Created by A on 11-05-2016 | O4: Created by A on 11-05-2016 | P4: Created by A on 11-05-2016 | Q4: Created by A on 11-05-2016 | R4: Created by A on 11-05-2016 | S4: Created by A on 11-05-2016 | T4: Created by A on 11-05-2016 | U4: Created by A on 11-05-2016 | V4: Created by A on 11-05-2016 | W4: Created by A on 11-05-2016 | X4: Created by A on 11-05-2016 | Y4: Created by A on 11-05-2016 | Z4: Created by A on 11-05-2016 | AA4: Created by A on 11-05-2016 | AB4: Created by A on 11-05-2016 | AC4: Created by A on 11-05-2016 | AD4: Created by A on 11-05-2016 Modified by A on 11-05-2016 | AE4: Created by A on 11-05-2016 | AF4: Created by A on 11-05-2016 | AG4: Created by A on 11-05-2016 | AH4: Created by A on 11-05-2016 | AI4: Created by A on 11-05-2016 | AJ4: Created by A on 11-05-2016 | AK4: Created by A on 11-05-2016 | AL4: Created by A on 11-05-2016 | AM4: Created by A on 11-05-2016
B5: Changing Cells:
C6: $B$17 | D6: 0.08 | E6: 0.04 | F6: 0.06 | G6: 0.08 | H6: 0.1 | I6: 0.12 | J6: 0.08 | K6: 0.08 | L6: 0.08 | M6: 0.08 | N6: 0.08 | O6: 0.08 | P6: 0.08 | Q6: 0.08 | R6: 0.08 | S6: 0.08 | T6: 0.08 | U6: 0.08 | V6: 0.08 | W6: 0.08 | X6: 0.08 | Y6: 0.08 | Z6: 0.08 | AA6: 0.08 | AB6: 0.08 | AC6: 0.08 | AD6: 0.08 | AE6: 0.08 | AF6: 0.08 | AG6: 0.08 | AH6: 0.08 | AI6: 0.08 | AJ6: 0.08 | AK6: 0.08 | AL6: 0.08 | AM6: 0.08
C7: $B$22 | D7: 0.5 | E7: 0.5 | F7: 0.5 | G7: 0.5 | H7: 0.5 | I7: 0.5 | J7: 0.25 | K7: 0.5 | L7: 0.75 | M7: 1 | N7: 0.5 | O7: 0.5 | P7: 0.5 | Q7: 0.5 | R7: 0.5 | S7: 0.5 | T7: 0.5 | U7: 0.5 | V7: 0.5 | W7: 0.5 | X7: 0.5 | Y7: 0.5 | Z7: 0.5 | AA7: 0.5 | AB7: 0.5 | AC7: 0.5 | AD7: 0.5 | AE7: 0.5 | AF7: 0.5 | AG7: 0.5 | AH7: 0.5 | AI7: 0.5 | AJ7: 0.5 | AK7: 0.5 | AL7: 0.5 | AM7: 0.5
C8: $B$15 | D8: 1 | E8: 1 | F8: 1 | G8: 1 | H8: 1 | I8: 1 | J8: 1 | K8: 1 | L8: 1 | M8: 1 | N8: 0.5 | O8: 0.75 | P8: 1 | Q8: 1.25 | R8: 1.5 | S8: 1 | T8: 1 | U8: 1 | V8: 1 | W8: 1 | X8: 1 | Y8: 1 | Z8: 1 | AA8: 1 | AB8: 1 | AC8: 1 | AD8: 1 | AE8: 1 | AF8: 1 | AG8: 1 | AH8: 1 | AI8: 1 | AJ8: 1 | AK8: 1 | AL8: 1 | AM8: 1
C9: $B$16 | D9: 1 | E9: 1 | F9: 1 | G9: 1 | H9: 1 | I9: 1 | J9: 1 | K9: 1 | L9: 1 | M9: 1 | N9: 1 | O9: 1 | P9: 1 | Q9: 1 | R9: 1 | S9: 0.5 | T9: 0.75 | U9: 1 | V9: 1.25 | W9: 1.5 | X9: 1.75 | Y9: 2 | Z9: 2.25 | AA9: 2.5 | AB9: 2.75 | AC9: 3 | AD9: 1 | AE9: 1 | AF9: 1 | AG9: 1 | AH9: 1 | AI9: 1 | AJ9: 1 | AK9: 1 | AL9: 1 | AM9: 1
C10: $B$14 | D10: 1 | E10: 1 | F10: 1 | G10: 1 | H10: 1 | I10: 1 | J10: 1 | K10: 1 | L10: 1 | M10: 1 | N10: 1 | O10: 1 | P10: 1 | Q10: 1 | R10: 1 | S10: 1 | T10: 1 | U10: 1 | V10: 1 | W10: 1 | X10: 1 | Y10: 1 | Z10: 1 | AA10: 1 | AB10: 1 | AC10: 1 | AD10: 0.6 | AE10: 0.8 | AF10: 1 | AG10: 1.2 | AH10: 1.4 | AI10: 1 | AJ10: 1 | AK10: 1 | AL10: 1 | AM10: 1
C11: $B$18 | D11: 1 | E11: 1 | F11: 1 | G11: 1 | H11: 1 | I11: 1 | J11: 1 | K11: 1 | L11: 1 | M11: 1 | N11: 1 | O11: 1 | P11: 1 | Q11: 1 | R11: 1 | S11: 1 | T11: 1 | U11: 1 | V11: 1 | W11: 1 | X11: 1 | Y11: 1 | Z11: 1 | AA11: 1 | AB11: 1 | AC11: 1 | AD11: 1 | AE11: 1 | AF11: 1 | AG11: 1 | AH11: 1 | AI11: 0.5 | AJ11: 0.75 | AK11: 1 | AL11: 1.25 | AM11: 1.5
B12: Result Cells:
C13: $B$51 | D13: 2.806843202 | E13: 2.808239578 | F13: 2.807545018 | G13: 2.806843202 | H13: 2.806134161 | I13: 2.805417929 | J13: 7.811464042 | K13: 2.806843202 | L13: 1.717650551 | M13: 1.23773249 | N13: 2.310399022 | O13: 2.558621112 | P13: 2.806843202 | Q13: 3.05830232 | R13: 3.321116212 | S13: 2.78480108 | T13: 2.795822141 | U13: 2.806843202 | V13: 2.817864262 | W13: 2.828885323 | X13: 2.839906384 | Y13: 2.850927445 | Z13: 2.861948506 | AA13: 2.872969566 | AB13: 2.883990627 | AC13: 2.895011688 | AD13: 2.825501925 | AE13: 2.816142586 | AF13: 2.806843202 | AG13: 2.797603198 | AH13: 2.788422007 | AI13: 7.811464042 | AJ13: 4.119835463 | AK13: 2.806843202 | AL13: 2.12829912 | AM13: 1.717650551
B14: Notes: Current Values column represents values of changing cells at
B15: time Scenario Summary Report was created. Changing cells for each
B16: scenario are highlighted in gray.

Sheet Tool (hidden)
B5: Enter your Desired Payback period | C5: 10 | D5: years
B7: Enter the proportion of treated water for sale | C7: 0.3
C10: ='Revenue Earned'!B19 -> 30.78091916 | D10: INR/kl

Sheet Sheet1 (hidden)

Sheet Assumptions for Sens Analysis
A1: Assumption for sensitivity analysis
A2: Cost of land /m2 in INR | B2: 4000
A3: Power tariff in INR | B3: 6
A4: Distance to industry from STP in m | B4: 500
A5: Water Sale tariff for industries per kL in INR | B5: 50
A6: Water Sale tariff for agriculture per kL in INR | B6: 0
A7: Variation in the electricity tariff | B7: 1
A8: Variation in the cost of land | B8: 1
A9: Variation in distance of industry from point of STP discharge | B9: 1
A10: Nominal rate of increase in electricity Tariff | B10: 0.08
A11: Variation in industrial water sale tariff | B11: 1
A12: Enter the proportion of treated water for sale | B12: 0.5
A13: Discount rate | B13: 0.1
A14: Rate of increase of repair costs | B14: 0.05
A15: Rate of increase of chemical cost | B15: 0.05
A16: Rate of increase of manpower cost | B16: 0.1
A17: Rate of increase of agricultural water tariff | B17: 0.04
A18: Rate of increase of industrial water tariff | B18: 0.05
A19: Rate of increase of fertiliser tariff | B19: 0.05

Sheet SA of technologies against NPV
A1: NPV | B1: Rate of increase in electricity tariff | G1: Industrial water sale potential | K1: Land cost | P1: Distance to industry | AA1: Electricity tariff | AF1: Industrial water tariff
A2: % variation | B2: 0.04 | C2: 0.06 | D2: 0.08 | E2: 0.1 | F2: 0.12 | G2: 0.25 | H2: 0.5 | I2: 0.75 | J2: 1 | K2: 0.5 | L2: 0.75 | M2: 1 | N2: 1.25 | O2: 1.5 | P2: 0.5 | Q2: 0.75 | R2: 1 | S2: 1.25 | T2: 1.5 | U2: 1.75 | V2: 2 | W2: 2.25 | X2: 2.5 | Y2: 2.75 | Z2: 3 | AA2: 0.6 | AB2: 0.8 | AC2: 1 | AD2: 1.2 | AE2: 1.4 | AF2: 0.5 | AG2: 0.75 | AH2: 1 | AI2: 1.25 | AJ2: 1.5
A3: Waste Stabilisation Pond (WSP) | B3: 2315.956178 | C3: 2315.376737 | D3: 2314.700033 | E3: 2313.908692 | F3: 2312.982301 | G3: 481.2279349 | H3: 2314.700033 | I3: 4148.17213 | J3: 5981.644228 | K3: 2860.154578 | L3: 2587.427305 | M3: 2314.700033 | N3: 2041.97276 | O3: 1769.245487 | P3: 2316.180033 | Q3: 2315.440033 | R3: 2314.700033 | S3: 2313.960033 | T3: 2313.220033 | U3: 2312.480033 | V3: 2311.740033 | W3: 2311.000033 | X3: 2310.260033 | Y3: 2309.520033 | Z3: 2308.780033 | AA3: 2317.071224 | AB3: 2315.885628 | AC3: 2314.700033 | AD3: 2313.514437 | AE3: 2312.328841 | AF3: 481.2279349 | AG3: 1397.963984 | AH3: 2314.700033 | AI3: 3231.436081 | AJ3: 4148.17213
A4: WSP with Tertiary Treatment | B4: 1011.00234 | C4: 1010.26838 | D4: 1009.411222 | E4: 1008.408858 | F4: 1007.235429 | G4: -457.3664563 | H4: 1009.411222 | I4: 2476.1889 | J4: 3942.966578 | K4: 1563.956676 | L4: 1286.683949 | M4: 1009.411222 | N4: 732.1384946 | O4: 454.8657673 | P4: 1010.891222 | Q4: 1010.151222 | R4: 1009.411222 | S4: 1008.671222 | T4: 1007.931222 | U4: 1007.191222 | V4: 1006.451222 | W4: 1005.711222 | X4: 1004.971222 | Y4: 1004.231222 | Z4: 1003.491222 | AA4: 1012.414731 | AB4: 1010.912976 | AC4: 1009.411222 | AD4: 1007.909467 | AE4: 1006.407713 | AF4: -457.3664563 | AG4: 276.0223828 | AH4: 1009.411222 | AI4: 1742.800061 | AJ4: 2476.1889
A5: Activated SludgeProcess (ASP) | B5: 2808.752525 | C5: 2784.995407 | D5: 2757.250543 | E5: 2724.805595 | F5: 2686.823565 | G5: 923.7784452 | H5: 2757.250543 | I5: 4590.72264 | J5: 6424.194738 | K5: 2839.068725 | L5: 2798.159634 | M5: 2757.250543 | N5: 2716.341452 | O5: 2675.432361 | P5: 2758.730543 | Q5: 2757.990543 | R5: 2757.250543 | S5: 2756.510543 | T5: 2755.770543 | U5: 2755.030543 | V5: 2754.290543 | W5: 2753.550543 | X5: 2752.810543 | Y5: 2752.070543 | Z5: 2751.330543 | AA5: 2854.469382 | AB5: 2805.859962 | AC5: 2757.250543 | AD5: 2708.641123 | AE5: 2660.031704 | AF5: 923.7784452 | AG5: 1840.514494 | AH5: 2757.250543 | AI5: 3673.986592 | AJ5: 4590.72264
A6: ASP with Tertiary Treatment | B6: 1597.517069 | C6: 1573.605434 | D6: 1545.680115 | E6: 1513.024143 | F6: 1474.795075 | G6: 78.90243677 | H6: 1545.680115 | I6: 3012.457793 | J6: 4479.235471 | K6: 1636.589206 | L6: 1591.13466 | M6: 1545.680115 | N6: 1500.225569 | O6: 1454.771024 | P6: 1547.160115 | Q6: 1546.420115 | R6: 1545.680115 | S6: 1544.940115 | T6: 1544.200115 | U6: 1543.460115 | V6: 1542.720115 | W6: 1541.980115 | X6: 1541.240115 | Y6: 1540.500115 | Z6: 1539.760115 | AA6: 1643.531272 | AB6: 1594.605693 | AC6: 1545.680115 | AD6: 1496.754537 | AE6: 1447.828958 | AF6: 78.90243677 | AG6: 812.2912758 | AH6: 1545.680115 | AI6: 2279.068954 | AJ6: 3012.457793
A7: Sequencing Batch Reactor (SBR) | B7: 2926.780633 | C7: 2907.143991 | D7: 2884.211244 | E7: 2857.393604 | F7: 2825.999243 | G7: 1050.739146 | H7: 2884.211244 | I7: 4717.683342 | J7: 6551.155439 | K7: 2925.120335 | L7: 2904.665789 | M7: 2884.211244 | N7: 2863.756698 | O7: 2843.302153 | P7: 2885.691244 | Q7: 2884.951244 | R7: 2884.211244 | S7: 2883.471244 | T7: 2882.731244 | U7: 2881.991244 | V7: 2881.251244 | W7: 2880.511244 | X7: 2879.771244 | Y7: 2879.031244 | Z7: 2878.291244 | AA7: 2964.568279 | AB7: 2924.389761 | AC7: 2884.211244 | AD7: 2844.032726 | AE7: 2803.854209 | AF7: 1050.739146 | AG7: 1967.475195 | AH7: 2884.211244 | AI7: 3800.947293 | AJ7: 4717.683342
A8: SBR with Tertiary Treatment | B8: 1728.318872 | C8: 1708.527712 | D8: 1685.414511 | E8: 1658.385847 | F8: 1626.744449 | G8: 218.636833 | H8: 1685.414511 | I8: 3152.192189 | J8: 4618.969867 | K8: 1735.414511 | L8: 1710.414511 | M8: 1685.414511 | N8: 1660.414511 | O8: 1635.414511 | P8: 1686.894511 | Q8: 1686.154511 | R8: 1685.414511 | S8: 1684.674511 | T8: 1683.934511 | U8: 1683.194511 | V8: 1682.454511 | W8: 1681.714511 | X8: 1680.974511 | Y8: 1680.234511 | Z8: 1679.494511 | AA8: 1766.403864 | AB8: 1725.909187 | AC8: 1685.414511 | AD8: 1644.919835 | AE8: 1604.425158 | AF8: 218.636833 | AG8: 952.0256721 | AH8: 1685.414511 | AI8: 2418.80335 | AJ8: 3152.192189
A9: Moving Bed Biological Reactor (MBBR) | B9: 2877.457399 | C9: 2848.807216 | D9: 2815.347962 | E9: 2776.220587 | F9: 2730.415699 | G9: 981.8758648 | H9: 2815.347962 | I9: 4648.82006 | J9: 6482.292158 | K9: 2856.257053 | L9: 2835.802508 | M9: 2815.347962 | N9: 2794.893417 | O9: 2774.438872 | P9: 2816.827962 | Q9: 2816.087962 | R9: 2815.347962 | S9: 2814.607962 | T9: 2813.867962 | U9: 2813.127962 | V9: 2812.387962 | W9: 2811.647962 | X9: 2810.907962 | Y9: 2810.167962 | Z9: 2809.427962 | AA9: 2932.590194 | AB9: 2873.969078 | AC9: 2815.347962 | AD9: 2756.726847 | AE9: 2698.105731 | AF9: 981.8758648 | AG9: 1898.611914 | AH9: 2815.347962 | AI9: 3732.084011 | AJ9: 4648.82006
A10: MBBR with Tertiary Treatment | B10: 1526.935665 | C10: 1498.130965 | D10: 1464.491257 | E10: 1425.152857 | F10: 1379.100931 | G10: -2.286421517 | H10: 1464.491257 | I10: 2931.268935 | J10: 4398.046613 | K10: 1514.491257 | L10: 1489.491257 | M10: 1464.491257 | N10: 1439.491257 | O10: 1414.491257 | P10: 1465.971257 | Q10: 1465.231257 | R10: 1464.491257 | S10: 1463.751257 | T10: 1463.011257 | U10: 1462.271257 | V10: 1461.531257 | W10: 1460.791257 | X10: 1460.051257 | Y10: 1459.311257 | Z10: 1458.571257 | AA10: 1582.365806 | AB10: 1523.428531 | AC10: 1464.491257 | AD10: 1405.553982 | AE10: 1346.616708 | AF10: -2.286421517 | AG10: 731.1024175 | AH10: 1464.491257 | AI10: 2197.880096 | AJ10: 2931.268935
A11: Membrane Bioreactor (MBR) | B11: 619.997106 | C11: 581.0457342 | D11: 535.556187 | E11: 482.360541 | F11: 420.0864804 | G11: -931.2214911 | H11: 535.556187 | I11: 2002.333865 | J11: 3469.111543 | K11: 576.4652779 | L11: 556.0107324 | M11: 535.556187 | N11: 515.1016415 | O11: 494.6470961 | P11: 537.036187 | Q11: 536.296187 | R11: 535.556187 | S11: 534.816187 | T11: 534.076187 | U11: 533.336187 | V11: 532.596187 | W11: 531.856187 | X11: 531.116187 | Y11: 530.376187 | Z11: 529.636187 | AA11: 694.9529286 | AB11: 615.2545578 | AC11: 535.556187 | AD11: 455.8578162 | AE11: 376.1594454 | AF11: -931.2214911 | AG11: -197.8326521 | AH11: 535.556187 | AI11: 1268.945026 | AJ11: 2002.333865
A12: Upstream Anaerobic Sludge Blanket | B12: 1765.461931 | C12: 1749.276187 | D12: 1730.373589 | E12: 1708.26882 | F12: 1682.391631 | G12: 263.5959108 | H12: 1730.373589 | I12: 3197.151267 | J12: 4663.928945 | K12: 1830.373589 | L12: 1780.373589 | M12: 1730.373589 | N12: 1680.373589 | O12: 1630.373589 | P12: 1731.853589 | Q12: 1731.113589 | R12: 1730.373589 | S12: 1729.633589 | T12: 1728.893589 | U12: 1728.153589 | V12: 1727.413589 | W12: 1726.673589 | X12: 1725.933589 | Y12: 1725.193589 | Z12: 1724.453589 | AA12: 1796.608863 | AB12: 1763.491226 | AC12: 1730.373589 | AD12: 1697.255952 | AE12: 1664.138315 | AF12: 263.5959108 | AG12: 996.9847498 | AH12: 1730.373589 | AI12: 2463.762428 | AJ12: 3197.151267

Sheet SA of technologies against PBP
A1: NPV | B1: Rate of increase in electricity tariff | G1: Industrial water sale potential | K1: Land cost | P1: Distance to industry | AA1: Electricity tariff | AF1: Industrial water tariff
A2: % variation | B2: 0.04 | C2: 0.06 | D2: 0.08 | E2: 0.1 | F2: 0.12 | G2: 0.25 | H2: 0.5 | I2: 0.75 | J2: 1 | K2: 0.5 | L2: 0.75 | M2: 1 | N2: 1.25 | O2: 1.5 | P2: 0.5 | Q2: 0.75 | R2: 1 | S2: 1.25 | T2: 1.5 | U2: 1.75 | V2: 2 | W2: 2.25 | X2: 2.5 | Y2: 2.75 | Z2: 3 | AA2: 0.6 | AB2: 0.8 | AC2: 1 | AD2: 1.2 | AE2: 1.4 | AF2: 0.5 | AG2: 0.75 | AH2: 1 | AI2: 1.25 | AJ2: 1.5
A3: Waste Stabilisation Pond (WSP) | B3: 4.098053147 | C3: 4.098236144 | D3: 4.098424118 | E3: 4.098617156 | F3: 4.098815351 | G3: 9.593489441 | H3: 4.098424118 | I3: 2.616514152 | J3: 1.918586344 | K3: 2.178986088 | L3: 3.116719108 | M3: 4.098424118 | N3: 5.128493394 | O3: 6.211646121 | P3: 4.092866276 | Q3: 4.095645197 | R3: 4.098424118 | S3: 4.101203039 | T3: 4.10398196 | U3: 4.106760881 | V3: 4.109539802 | W3: 4.112318722 | X3: 4.115097643 | Y3: 4.117876564 | Z3: 4.120655485 | AA3: 4.095745246 | AB3: 4.097084263 | AC3: 4.098424118 | AD3: 4.09976481 | AE3: 4.101106341 | AF3: 9.593489441 | AG3: 5.736261019 | AH3: 4.098424118 | AI3: 3.192402077 | AJ3: 2.616514152
A4: WSP with Tertiary Treatment | B4: 7.464978634 | C4: 7.466307455 | D4: 7.467730401 | E4: 7.469253867 | F4: 7.470884648 | G4: 15 | H4: 7.467730401 | I4: 4.352676491 | J4: 3.072765281 | K4: 4.244183652 | L4: 5.793388051 | M4: 7.467730401 | N4: 9.283077133 | O4: 11.27100239 | P4: 7.458424648 | Q4: 7.463077524 | R4: 7.467730401 | S4: 7.472383277 | T4: 7.477036153 | U4: 7.481689029 | V4: 7.486341905 | W4: 7.490994782 | X4: 7.495647658 | Y4: 7.500300534 | Z4: 7.50495341 | AA4: 7.457695127 | AB4: 7.462709617 | AC4: 7.467730401 | AD4: 7.47275749 | AE4: 7.477790896 | AF4: 15 | AG4: 11.71811366 | AH4: 7.467730401 | AI4: 5.496840092 | AJ4: 4.352676491
A5: Activated SludgeProcess (ASP) | B5: 1.710148839 | C5: 1.710978593 | D5: 1.711810287 | E5: 1.71264393 | F5: 1.713479528 | G5: 4.062004668 | H5: 1.711810287 | I5: 1.084008432 | J5: 0 | K5: 1.425193162 | L5: 1.568501725 | M5: 1.711810287 | N5: 1.85511885 | O5: 1.998427413 | P5: 1.706625702 | Q5: 1.709217995 | R5: 1.711810287 | S5: 1.71440258 | T5: 1.716994873 | U5: 1.719587165 | V5: 1.722179458 | W5: 1.724771751 | X5: 1.727364043 | Y5: 1.729956336 | Z5: 1.732548629 | AA5: 1.669166806 | AB5: 1.690222535 | AC5: 1.711810287 | AD5: 1.733950487 | AE5: 1.756664614 | AF5: 4.062004668 | AG5: 2.406943662 | AH5: 1.711810287 | AI5: 1.329744811 | AJ5: 1.084008432
A6: ASP with Tertiary Treatment | B6: 3.582825858 | C6: 3.59121694 | D6: 3.599880212 | E6: 3.608827463 | F6: 3.618071219 | G6: 12.71719566 | H6: 3.599880212 | I6: 2.118865766 | J6: 1.507100074 | K6: 3.093092314 | L6: 3.346486263 | M6: 3.599880212 | N6: 3.853274161 | O6: 4.112168392 | P6: 3.591629705 | Q6: 3.595754959 | R6: 3.599880212 | S6: 3.604005466 | T6: 3.608130719 | U6: 3.612255973 | V6: 3.616381226 | W6: 3.620506479 | X6: 3.624631733 | Y6: 3.628756986 | Z6: 3.63288224 | AA6: 3.460488866 | AB6: 3.528851044 | AC6: 3.599880212 | AD6: 3.673735544 | AE6: 3.750589139 | AF6: 12.71719566 | AG6: 5.553170584 | AH6: 3.599880212 | AI6: 2.668492643 | AJ6: 2.118865766
A7: Sequencing Batch Reactor (SBR) | B7: 1.504738487 | C7: 1.505216372 | D7: 1.505695163 | E7: 1.506174862 | F7: 1.506655472 | G7: 3.449259401 | H7: 1.505695163 | I7: 0 | J7: 0 | K7: 1.365232911 | L7: 1.435464037 | M7: 1.505695163 | N7: 1.575926288 | O7: 1.646157414 | P7: 1.50061355 | Q7: 1.503154357 | R7: 1.505695163 | S7: 1.508235969 | T7: 1.510776775 | U7: 1.513317581 | V7: 1.515858387 | W7: 1.518399193 | X7: 1.520939999 | Y7: 1.523480805 | Z7: 1.526021611 | AA7: 1.475120078 | AB7: 1.490252736 | AC7: 1.505695163 | AD7: 1.521456967 | AE7: 1.537548162 | AF7: 3.449259401 | AG7: 2.090000874 | AH7: 1.505695163 | AI7: 1.173655536 | AJ7: 0
A8: SBR with Tertiary Treatment | B8: 3.1892331 | C8: 3.194338801 | D8: 3.199572064 | E8: 3.204937614 | F8: 3.21044045 | G8: 9.923243943 | H8: 3.199572064 | I8: 1.918495902 | J8: 1.375215976 | K8: 2.93393876 | L8: 3.065088421 | M8: 3.199572064 | N8: 3.334055707 | O8: 3.468539351 | P8: 3.191610632 | Q8: 3.195591348 | R8: 3.199572064 | S8: 3.20355278 | T8: 3.207533496 | U8: 3.211514212 | V8: 3.215494927 | W8: 3.219475643 | X8: 3.223456359 | Y8: 3.227437075 | Z8: 3.231417791 | AA8: 3.099491244 | AB8: 3.148764019 | AC8: 3.199572064 | AD8: 3.251988271 | AE8: 3.306090219 | AF8: 9.923243943 | AG8: 4.813286597 | AH8: 3.199572064 | AI8: 2.401441627 | AJ8: 1.918495902
A9: Moving Bed Biological Reactor (MBBR) | B9: 1.432446032 | C9: 1.433058836 | D9: 1.43367338 | E9: 1.43428967 | F9: 1.434907715 | G9: 3.394477995 | H9: 1.43367338 | I9: 0 | J9: 0 | K9: 1.28951597 | L9: 1.361594675 | M9: 1.43367338 | N9: 1.505752084 | O9: 1.577830789 | P9: 1.428458085 | Q9: 1.431065732 | R9: 1.43367338 | S9: 1.436281027 | T9: 1.438888675 | U9: 1.441496322 | V9: 1.444103969 | W9: 1.446711617 | X9: 1.449319264 | Y9: 1.451926911 | Z9: 1.454534559 | AA9: 1.390484535 | AB9: 1.411752996 | AC9: 1.43367338 | AD9: 1.456276126 | AE9: 1.479593601 | AF9: 3.394477995 | AG9: 2.007327052 | AH9: 1.43367338 | AI9: 1.110516542 | AJ9: 0
A10: MBBR with Tertiary Treatment | B10: 3.382596181 | C10: 3.392133297 | D10: 3.401987832 | E10: 3.412175996 | F10: 3.422715187 | G10: 15 | H10: 3.401987832 | I10: 1.94551643 | J10: 1.368897418 | K10: 3.102136671 | L10: 3.252062251 | M10: 3.401987832 | N10: 3.551913412 | O10: 3.701838993 | P10: 3.393112238 | Q10: 3.397550035 | R10: 3.401987832 | S10: 3.406425629 | T10: 3.410863426 | U10: 3.415301223 | V10: 3.419739021 | W10: 3.424176818 | X10: 3.428614615 | Y10: 3.433052412 | Z10: 3.437490209 | AA10: 3.232858989 | AB10: 3.315338476 | AC10: 3.401987832 | AD10: 3.493131477 | AE10: 3.589128382 | AF10: 15 | AG10: 5.457236687 | AH10: 3.401987832 | AI10: 2.477970183 | AJ10: 1.94551643
A11: Membrane Bioreactor (MBR) | B11: 9.375454417 | C11: 9.517356697 | D11: 9.682679179 | E11: 9.878005743 | F11: 10.12105386 | G11: 15 | H11: 9.682679179 | I11: 5.050902255 | J11: 3.442523058 | K11: 9.334061942 | L11: 9.50837056 | M11: 9.682679179 | N11: 9.856987798 | O11: 10.03306543 | P11: 9.670066982 | Q11: 9.67637308 | R11: 9.682679179 | S11: 9.688985277 | T11: 9.695291376 | U11: 9.701597474 | V11: 9.707903573 | W11: 9.714209671 | X11: 9.72051577 | Y11: 9.726821868 | Z11: 9.733127967 | AA11: 8.845640281 | AB11: 9.242436237 | AC11: 9.682679179 | AD11: 10.17247924 | AE11: 10.73059482 | AF11: 15 | AG11: 12 | AH11: 9.682679179 | AI11: 6.623603489 | AJ11: 5.050902255
A12: Upstream Anaerobic Sludge Blanket | B12: 2.684623812 | C12: 2.687385219 | D12: 2.690189384 | E12: 2.693036977 | F12: 2.695928682 | G12: 8.59214863 | H12: 2.690189384 | I12: 1.605556542 | J12: 1.142768572 | K12: 2.162838757 | L12: 2.42651407 | M12: 2.690189384 | N12: 2.953864698 | O12: 3.228533518 | P12: 2.682384595 | Q12: 2.686286989 | R12: 2.690189384 | S12: 2.694091779 | T12: 2.697994173 | U12: 2.701896568 | V12: 2.705798963 | W12: 2.709701357 | X12: 2.713603752 | Y12: 2.717506147 | Z12: 2.721408541 | AA12: 2.622052704 | AB12: 2.655693078 | AC12: 2.690189384 | AD12: 2.72557471 | AE12: 2.76188387 | AF12: 8.59214863 | AG12: 4.074063855 | AH12: 2.690189384 | AI12: 2.004669855 | AJ12: 1.605556542
